Workbook

Sheet Instrucciones
D2: HERRAMIENTA DE AUTOEVALUACION DE LA APLICACIÓN DE LAS NICSP
C6: Intrucciones Generales
C8: 1 | D8: Indicar el nombre de la institución que aplicará el instrumento y los datos de los encargados que se solicitan en la hoja de análisis
C9: 2 | D9: Revisar el instrumento, en cada hoja del libro se desglosa una norma. En el encabezado se debe llenar la línea “La norma es aplicable en la entidad”. Si la norma es aplicable colocar “SI”, en caso contrario, si la norma no es aplicable a la institución seleccionar “NO” (SOLO UNA OPCION) las normas aplicables son las que serán evaluadas, las otras no necesitan ser contestadas.
C10: 3 | D10: Leer cada ítem de las normas aplicables. Seleccionar la respuesta en el ítem correspondiente por párrafo, debe escoger solo una opción.
C11: 4 | D11: Al finalizar se encuentra una hoja resumen que calcula el grado de aplicación de las NICSP (No puede manipularse y es para uso de analisis).
C12: 5 | D12: La siguiente información deberá ser completada únicamente para cada una de las preguntas en las cuales se identifique una brecha y cuya respuesta sea "No cumple" o "Cumple Parcialmente": - Impacto (Bajo, Medio o Alto): Considerar el grado de impacto que tiene la brecha en la implementación de las NICSP - Esfuerzo (Bajo, Medio o Alto): Considerar el esfuerzo necesario para cerrar la brecha identificada en la implementación de las NICSP -Plan de Acción: El Plan de acción deberá identificar las actividades necesarias para cerrar cada una de las brechas identificadas.
C13: 6 | D13: Plan de Acción Cada una de las preguntas en las cuales la respuesta sea "no cumple" o "cumple parcialmente" se identifica como una brecha. Para cada brecha identificada se debe elaborar un plan de acción. Una vez haya completado todas las respuestas a la matriz, proceda a filtrar las respuestas "no cumple" y "cumple parcialmente", ejecutando la macro "filtración de brechas" (dar clic al botón indicado en cada una de las normas). Se copiará los textos de las columnas B y C. En la columna D aparecerá un mensaje donde se solicita que indique las acciones para brechas y agregue las actividades correspondientes. Indicar en la columna E, la cantidad de actividades para el cumplimiento de la brecha. El detalle debe presentarse en un auxiliar aparte. De ser necesario, puede incluir más filas. Para agregarlas, copie la totalidad de las fórmulas de la última fila del plan (marcada en color celeste).
C14: 7 | D14: El plan de acción debe considerar la siguiente información: - Actividades de cumplimiento: Detalle de actividades a realizar asociada a cada una de las brechas identificadas - Porcentaje de avance en plan de acción: indicar el porcentaje de avance sobre las actividades planteadas. - Responsable: Indicar la persona responsable de desarrollar la actividad - Requerimientos y recursos: Indicar los recursos necesarios y los requerimientos realizados para cada una de las actividades - Fecha de Inicio: Fecha de inicio de la actividad - Fecha para finalizar: Considerar la fecha en la cual se estima que se cerrará la brecha - Fecha actual, Duración Meses, Meses transcurridos y Meses para finalizar la actividad: Corresponde a información formulada con los insumos incluidos en el plan (No modificar pues se encuentra formulada)
C15: 8 | D15: Adicionalmente, considerar que para la documentación de las actividades que se indicarán en un auxiliar por separado a la matriz, se debe colocar manualmente los siguientes colores a las celdas de la actividad según corresponda el estatus de la siguiente manera:
D16: Color Verde : Realizado Color Amarillo: Por realizar Color Rojo: No realizado
C18: Dato importante: la información debe registrarse utilizando el menú de selección, en caso de registrarse otro dato, los resultados de la información serán alterados, perdiéndose así la veracidad de la información.
C19: DERECHOS RESERVADOS

Sheet Datos Generales
B2: DATOS INSTITUCIONALES
B4: Nombre de la Entidad: | C4: MUNICIPALIDAD DE BUENOS AIRES
B5: Sector: | C5: MUNICIPAL
B6: Codigo Institucional: | C6: 15603
B7: Nombre del Director Administrativo Financiero | C7: N/A
B8: Nombre del Responsable de la Contabilidad | C8: GERARDO CORDERO ARGUEDAS

Sheet NICSP 1
B2: NICSP 1
B3: Presentación de Estados Financieros
B4: Objetivo: Establecer las bases para la presentación de los estados financieros con propósito de información general, para poder asegurar su comparabilidad, tanto con los estados financieros de ejercicios anteriores de la propia entidad, como con los de otras entidades.
B5: La norma es aplicable en la entidad (Indique Si o No) | E5: Si
B7: Complete cada una de las preguntas según corresponda con "No aplica", "Cumple", "No Cumple" o "Cumple Parcialmente".
B8: Número de párrafo | C8: Número pregunta | D8: Requisito de la Norma | E8: Respuesta | F8: Impacto | G8: Esfuerzo | H8: Observaciones
B10: Reconocimiento y medición | E10: No llenar | Q10: 0
B11: 7 | C11: 1 | D11: ¿Tiene la entidad una política contable que define los activos como "recursos controlados por una entidad como resultado de eventos pasados ​​y de los cuales se espera que los beneficios económicos futuros o el potencial de servicio fluyan a la entidad"? | E11: Cumple | Q11: 1
B12: 7 | C12: 2 | D12: ¿Tiene la entidad una política contable que define los pasivos como "obligaciones presentes de la entidad que surgen de eventos pasados, cuya liquidación se espera que resulte en una salida de la entidad de recursos que incorporen beneficios económicos o potencial de servicio"? | E12: Cumple | Q12: 1
B13: 7 | C13: 3 | D13: ¿Tiene la entidad una política contable que defina los ingresos como "la entrada bruta de beneficios económicos o potencial de servicio durante el período de presentación de reportes cuando esas entradas producen un aumento en los activos netos / patrimonio neto, además de los incrementos relacionados con las contribuciones de los propietarios"? | E13: Cumple | Q13: 1
B14: 7 | C14: 4 | D14: ¿Tiene la entidad una política contable que defina los gastos como “disminuciones en los beneficios económicos o el potencial de servicio durante el período de presentación de reportes en forma de salidas o consumo de activos o incurrimientos de pasivos que resultan en disminuciones en los activos netos / patrimonio, distintos de los relacionados a distribuciones a propietarios"? | E14: Cumple | Q14: 1
B15: 7 | C15: 5 | D15: De acuerdo con la política contable actual de la entidad, ¿se requiere que la entidad presente estados financieros basados en valores devengados? | E15: Cumple | Q15: 1
B16: 26 | C16: 6 | D16: ¿Revelan los Estados Financieros información sobre el cumplimiento de las normas legislativas, reglamentarias u otras disposiciones legales? | E16: Cumple | Q16: 1
B17: 69 | C17: 7 | D17: ¿Se presentan los estados financieros dentro de los 6 meses posteriores a la fecha de informe? | E17: Cumple | Q17: 1
B18: 77 | C18: 8 | D18: ¿Se clasifican los activos tangibles o intangibles, de operación o financieros, ligados a la entidad a largo plazo como activos no corrientes? | E18: Cumple | H18: Se está en proceso de revisión de la aplicación de este requerimieto. | Q18: 1
B19: 94 | C19: 9 | D19: ¿Los activos propiedad , planta y equipo se clasifican por clases de conformidad con lo establecido para el tratamiento contable de propiedades, planta y equipo? | E19: Cumple | Q19: 1
B20: 94 | C20: 10 | D20: ¿Las cuentas por cobrar se clasifican en cuentas por cobrar en concepto de ingresos ordinarios/recursos a cobrar por servicios suministrados y otros ingresos ordinarios/recursos con contraprestación, impuestos y otros ingresos ordinarios/recursos sin contraprestación, otras entidades pertenecientes a la entidad económica, de partes relacionadas, de anticipos y de otras partidas (o rubros)? | E20: Cumple | Q20: 1
B21: 94 | C21: 11 | D21: ¿Los inventarios se subdividen, de conformidad con normas adecuadas que aborden el tratamiento contable de las existencias, en categorías tales como mercaderías, materias primas, materiales, productos en proceso y productos terminados? | E21: Cumple | Q21: 1
B22: 94 | C22: 12 | D22: ¿Las cuentas por pagar se clasifican en devoluciones de tributos, las transferencias por pagar y cuantías por pagar a otras entidades pertenecientes a la entidad económica? | E22: Cumple | Q22: 1
B23: 94 | C23: 13 | D23: ¿Las provisiones se desglosan mostrando separadamente las que corresponden a provisiones por beneficios a empleados y cualesquiera otros tipos que sean adecuados según las actividades de la entidad? | E23: Cumple | F23: Medio | G23: Medio | H23: La Municipalidad se encuentra efectuando una revisión y como parte de esta se efectuó la medición y registro del deterioro de las cuntas por cobrar. | Q23: 1
B24: 94 | C24: 14 | D24: ¿Los componentes de los activos netos/patrimonio neto se clasifican mostrando por separado el capital aportado, los resultados netos (ahorro o desahorro) acumulados y las reservas? | E24: Cumple | Q24: 1
B25: 95A | C25: 15 | D25: Si la entidad ha reclasificado los instrumentos de patrimonio entre los pasivos financieros y los activos netos / patrimonio, ¿revela la cantidad reclasificada dentro y fuera de cada categoría, y el momento y la razón de esa reclasificación? | E25: No aplica | H25: Este requerimiento no aplica a la Municipalidad. | Q25: 1
B26: 136 | C26: 16 | D26: ¿Se revelan las políticas contables que corresponden a cada área sobre la que no existe una Norma Internacional de Contabilidad del Sector Público? | E26: No aplica | H26: Este requerimiento no aplica a la Municipalidad. | Q26: 1
B27: 137 | C27: 17 | D27: ¿Se revela, en el resumen de las políticas contables significativas o en otras notas, los juicios profesionales, diferentes de aquellos que impliquen estimaciones, que la gerencia haya realizado al aplicar las políticas contables de la entidad que tengan un efecto significativo sobre los importes reconocidos en los estados financieros? | E27: No aplica | H27: Este requerimiento no aplica a la Municipalidad. | Q27: 1
B28: 140 | C28: 18 | D28: ¿Se revelará en las notas información sobre los posibles riesgos que puedan generar incertidumbre en la información? | E28: Cumple | F28: Medio | G28: Medio | H28: Se está evaluando permanentemente el cumplimiento de este requerimiento. | Q28: 1
B29: 148 D | C29: 19 | D29: En el caso de instrumentos financieros con opción de venta clasificados como instrumentos de patrimonio, una entidad lo revela? | E29: No aplica | H29: Este requerimiento no aplica a la Municipalidad. | Q29: 1
B30: 149 | C30: 20 | D30: ¿Se revela en las notas el importe de los dividendos, o distribución similar, propuestos o anunciados antes de que los estados financieros hayan sido autorizados para su emisión, que no hayan sido reconocidos como distribución a los propietarios durante el periodo, así como los importes correspondientes por acción? | E30: No aplica | H30: Este requerimiento no aplica a la Municipalidad. | Q30: 1
B31: 149 | C31: 21 | D31: ¿Se revela en las notas el importe de cualesquiera dividendos preferidos acumulados, o distribución similar, no reconocidos? | E31: No aplica | H31: Este requerimiento no aplica a la Municipalidad. | Q31: 1
B32: Revelaciones | E32: No llenar | Q32: 0
B33: Componentes de los Estados Financieros | E33: No llenar | Q33: 0
B34: 61 | C34: 22 | D34: ¿Los Estados Financieros están claramente identificados, y se distinguen de cualquier otra información publicada en el mismo documento? | E34: Cumple | Q34: 1
B35: 21 | C35: 23 | D35: ¿Emite la entidad un conjunto completo de Estados Financieros? | E35: No llenar | Q35: 0
B36: 21 | C36: 23 (a) | D36: a. Un Estado de Situación Financiera; | E36: Cumple | Q36: 1
B37: 21 | C37: 23 (b) | D37: b. Un Estado de Rendimientos Financieros; | E37: Cumple | Q37: 1
B38: 21 | C38: 23 (c) | D38: c. Un estado de cambios en los activos netos/patrimonio; | E38: Cumple | Q38: 1
B39: 21 | C39: 23 (d) | D39: d. Un Estado de Flujos de Efectivo | E39: Cumple | Q39: 1
B40: 21 | C40: 23 (e) | D40: (e) En caso de que se exponga el presupuesto, se adjunta una comparación del presupuesto y los importes reales, ya sea como un estado financiero adicional separado o como una columna de presupuesto en los estados financieros; | E40: Cumple | Q40: 1
B41: 21 | C41: 23 (f) | D41: f. Notas en las que se incluya un resumen de las políticas contables significativas y otras notas explicativas; y | E41: Cumple | Q41: 1
B42: 21 | C42: 23 (g) | D42: g. Información comparativa con respecto al período inmediato anterior como se especifica en los párrafos 53 y 53A de la NICSP1. | E42: No aplica | H42: La Municipalidad inició con el proceso de implementación de las NICSP en el pressente año. | Q42: 1
B43: 21 (e.) | C43: 24 | D43: Cuando la entidad pone a disposición pública su presupuesto aprobado, y adjunta una comparación del presupuesto y los montos reales: | E43: No llenar | Q43: 0
B44: 21 (e.) | C44: 24 (a) | D44: a. Como una declaración financiera adicional separada | E44: Cumple | Q44: 1
B45: 21 (e.) | C45: 24 (b) | D45: b. Como columna de presupuesto en los estados financieros. | E45: No aplica | H45: La Municpalidad lleva el Presupuesto con base en el método de efectivo y los registros contables con base en devengo. | Q45: 1
B46: 63 | C46: 25 | D46: ¿Se identifican cada uno de los siguientes componentes de los Estados Financieros? con el nombre de la entidad, naturaleza grupal o individual, fecha o periodo de ejercicio que cubren, moneda en la que se hace la presentación y el nivel de precisión en cifras? | E46: No llenar | Q46: 0
B47: 63 | C47: 25 (a) | D47: a. Nombre u otro tipo de identificación, de la entidad que presenta la información, | E47: Cumple | Q47: 1
B48: 63 | C48: 25 (b) | D48: b. Si los estados corresponden a una entidad individual o a la entidad económica; | E48: Cumple | Q48: 1
B49: 63 | C49: 25 (c) | D49: c. la fecha de presentación o el período cubierto por los Estados Financieros | E49: Cumple | Q49: 1
B50: 63 | C50: 25 (d) | D50: d. La moneda de presentación tal como se define en la NICSP4 | E50: Cumple | Q50: 1
B51: 63 | C51: 25 (e) | D51: e. El grado de redondeo practicado la presentar las cifras de los Estados Financieros | E51: Cumple | Q51: 1
B52: Información de la entidad | E52: No llenar | Q52: 0
B53: 150 | C53: 26 | D53: Si no se revela en otro lugar en la información publicada con los estados financieros, ¿revela la entidad lo siguiente?: | E53: No llenar | Q53: 0
B54: 150 | C54: 26 (a) | D54: a. domicilio y forma legal de la entidad, y jurisdicción en que opera; | E54: Cumple | Q54: 1
B55: 150 | C55: 26 (b) | D55: b. una descripción de la naturaleza de las operaciones de la entidad, así como de sus principales actividades; | E55: Cumple | Q55: 1
B56: 150 | C56: 26 (c) | D56: c. referencia a la legislación pertinente que rige las operaciones de la entidad; y | E56: Cumple | Q56: 1
B57: 150 | C57: 26 (d) | D57: d. nombre de la entidad controladora directa y de la controladora última de la entidad económica (si fuera pertinente). | E57: Cumple | Q57: 1
B58: 150 | C58: 26 (e) | D58: e. si es una entidad de vida limitada, información sobre la duración de la misma | E58: Cumple | Q58: 1
B59: Cumplimiento de las NICSP | E59: No llenar | Q59: 0
B60: 27,29,127 | C60: 27 | D60: ¿La entidad proporciona revelaciones adicionales si los requisitos de las NICSP son insuficientes para permitir que los usuarios entiendan el impacto de transacciones particulares, otros eventos y condiciones en la posición financiera y el desempeño financiero de la entidad? | E60: No aplica | H60: Este requerimiento no aplica a la Municipalidad. | Q60: 1
B61: 28 | C61: 28 | D61: ¿La entidad revela una declaración explícita y sin reservas de cumplimiento con las NICSP? "Una entidad cuyos estados financieros cumplen con las NICSP hará una afirmación explícita e incondicional sobre este cumplimiento en las Notas. No debe describirse que los estados financieros cumplen con las Normas Internacionales de Contabilidad del Sector Público, a menos que aquéllos cumplan con todos los requerimientos de las NICSP. " | E61: Cumple | Q61: 1
B62: 31.32 | C62: 29 | D62: En las circunstancias extremadamente raras en que la administración llega a la conclusión de que el cumplimiento de un requisito en una Norma sería tan engañoso que entraría en conflicto con el objetivo de los estados financieros establecidos en esta NICSP, y se aparta de ese requisito (si el marco regulatorio pertinente requiere o de lo contrario no prohíbe tal partida), la entidad revela: | E62: No llenar | Q62: 0
B63: 31.32 | C63: 29 (a) | D63: (a) que la gerencia ha llegado a la conclusión de que los estados financieros presentan razonablemente la situación financiera y rendimiento financiero y los flujos de efectivo; | E63: No aplica | H63: Este requerimiento no aplica a la Municipalidad. | Q63: 1
B64: 31.32 | C64: 29 (b) | D64: (b) que se ha cumplido con las NICSP aplicables, excepto en el caso particular del requerimiento no aplicado para lograr una presentación razonable; | E64: No aplica | H64: Este requerimiento no aplica a la Municipalidad. | Q64: 1
B65: 31.32 | C65: 29 (c) | D65: (c) el título de la Norma que la entidad ha dejado de aplicar, la naturaleza de la disensión, incluyendo el tratamiento que la Norma requeriría, la razón por la que ese tratamiento llevaría a una interpretación errónea tal que entrase en conflicto con el objetivo de los estados financieros establecido en esta Norma, junto con el tratamiento alternativo adoptado; y | E65: No aplica | H65: Este requerimiento no aplica a la Municipalidad. | Q65: 1
B66: 31.32 | C66: 29 (d) | D66: (d) para cada periodo sobre el que se presente información, el impacto financiero que haya supuesto la falta de aplicación descrita sobre cada partida de los estados financieros que deberían haber sido presentados cumpliendo con el requisito en cuestión. | E66: No aplica | H66: Este requerimiento no aplica a la Municipalidad. | Q66: 1
B67: 33 | C67: 30 | D67: ¿Revelan los Estados financieros el no cumplimiento de alguno de los requisitos de las NICSP y adicionalmente lo siguiente? | E67: No llenar | Q67: 0
B68: 33 | C68: 30 (c) | D68: 32. (c) el título de la Norma que la entidad ha dejado de aplicar, la naturaleza de la disensión, incluyendo el tratamiento que la Norma requeriría, la razón por la que ese tratamiento llevaría a una interpretación errónea tal que entrase en conflicto con el objetivo de los estados financieros establecido en esta Norma, junto con el tratamiento alternativo adoptado; y | E68: No aplica | H68: Este requerimiento no aplica a la Municipalidad. | Q68: 1
B69: 33 | C69: 30 (d) | D69: 32. (d) para cada periodo sobre el que se presente información, el impacto financiero que haya supuesto la falta de aplicación descrita sobre cada partida de los estados financieros que deberían haber sido presentados cumpliendo con el requisito en cuestión. | E69: No aplica | H69: Este requerimiento no aplica a la Municipalidad. | Q69: 1
B70: 35 | C70: 31 | D70: Cuando una entidad no aplique un requisito de una norma por concluir que entra en conflicto con el objetivo de sus Estados Financieros ¿Se revela la siguiente información? | E70: No llenar | Q70: 0
B71: 35 | C71: 31 (a) | D71: (a) el título de la Norma en cuestión | E71: No aplica | H71: Este requerimiento no aplica a la Municipalidad. | Q71: 1
B72: 35 | C72: 31 (b) | D72: (b) la naturaleza del requerimiento | E72: No aplica | H72: Este requerimiento no aplica a la Municipalidad. | Q72: 1
B73: 35 | C73: 31 (c) | D73: (c) la razón por la cual la gerencia ha llegado a la conclusión de que el cumplimiento del mismo llevaría a una interpretación errónea que entraría en conflicto con el objetivo de los estados financieros establecido en esta Norma; y | E73: No aplica | H73: Este requerimiento no aplica a la Municipalidad. | Q73: 1
B74: 35 | C74: 31 (d) | D74: (d) para cada periodo presentado, los ajustes a cada partida de los estados financieros que la gerencia haya concluido que serían necesarios para lograr una presentación razonable. | E74: No aplica | H74: Este requerimiento no aplica a la Municipalidad. | Q74: 1
B75: Negocio en Marcha | E75: No llenar | Q75: 0
B76: 38 | D76: "La entidad no prepara sus estados financieros sobre la base de una empresa en marcha si la administración determina después del período de presentación de informes que tiene la intención de liquidar a la entidad o de cesar la negociación, o que no tiene otra alternativa realista que hacerlo." | E76: No llenar | Q76: 0
B77: 38 | C77: 32 | D77: ¿La entidad revela incertidumbres materiales relacionadas con eventos o condiciones que pueden generar dudas significativas sobre la capacidad de la entidad para continuar como una empresa en marcha? | E77: No aplica | H77: Este requerimiento no aplica a la Municipalidad. | Q77: 1
B78: 38 | C78: 33 | D78: Si los estados financieros no se preparan sobre la base de una empresa en funcionamiento, ¿la entidad revela: | E78: No llenar | Q78: 0
B79: 38 | C79: 33 (a) | D79: (a) El hecho de que los estados financieros no están preparados sobre una base de negocio en marcha | E79: No aplica | H79: Este requerimiento no aplica a la Municipalidad. | Q79: 1
B80: 38 | C80: 33 (b) | D80: (b) La base sobre la cual se preparan los estados financieros. | E80: No aplica | H80: Este requerimiento no aplica a la Municipalidad. | Q80: 1
B81: 38 | C81: 33 (c) | D81: (c) La razón por la cual la entidad no es considerada como una empresa en marcha. | E81: No aplica | H81: Este requerimiento no aplica a la Municipalidad. | Q81: 1
B82: Período sobre el que se informa | E82: No llenar | Q82: 0
B83: 66 | C83: 34 | D83: Cuando cambie la fecha de presentación de la entidad y elabore estados financieros anuales para un periodo superior o inferior a un año, la entidad revela lo siguiente: | E83: No llenar | Q83: 0
B84: 66 | C84: 34 (a) | D84: (a) periodo cubierto por los estados financieros | E84: Cumple | Q84: 1
B85: 66 | C85: 34 (b) | D85: (b) la razón para utilizar un periodo inferior o superior; y | E85: Cumple | H85: Por requerimiento de la Dirección General de Contabilidad Nacional, se emiten estados financieros trimestrales. | Q85: 1
B86: 66 | C86: 34 (c) | D86: (c) el hecho de que las cifra comparativas para algunos estados financieros, como el estado de rendimiento financiero, cambios en los activos netos/patrimonio, el estado de flujos de efectivo, así como en las notas correspondientes, no son totalmente comparables. | E86: Cumple | Q86: 1
B87: Información comparativa | E87: No llenar | Q87: 0
B88: 53 | C88: 35 | D88: ¿Se incluye la información comparativa, respecto del período anterior, para toda clase de información cuantitativa incluida en los estados financieros? | E88: No aplica | H88: La Municipalidad de Buenos Aires inició con el proceso de implementación de las NICSP en el presente año siendo los primeros estados financieros intermedios que se prepararon al 31 de marzo de 2021. | Q88: 1
B89: 53 | C89: 36 | D89: ¿Se incluye información comparativa para la información descriptiva y narrativa, cuando esto sea relevante para la comprensión de los estados financieros del periodo corriente.? | E89: No aplica | H89: La Municipalidad de Buenos Aires inició con el proceso de implementación de las NICSP en el presente año siendo los primeros estados financieros intermedios que se prepararon al 31 de marzo de 2021. | Q89: 1
B90: 53A | C90: 37 | D90: Como mínimo, la entidad presenta información comparativa para lo siguiente: | E90: No llenar | Q90: 0
B91: 53A | C91: 37 (a) | D91: (a) un estado de situación Financiera; | E91: No aplica | H91: La Municipalidad de Buenos Aires inició con el proceso de implementación de las NICSP en el presente año siendo los primeros estados financieros intermedios que se prepararon al 31 de marzo de 2021. | Q91: 1
B92: 53A | C92: 37 (b) | D92: (b) un estado del rendimiento financiero; | E92: No aplica | H92: La Municipalidad de Buenos Aires inició con el proceso de implementación de las NICSP en el presente año siendo los primeros estados financieros intermedios que se prepararon al 31 de marzo de 2021. | Q92: 1
B93: 53A | C93: 37 (c) | D93: (c) un estado de flujos de efectivo; y | E93: No aplica | H93: La Municipalidad de Buenos Aires inició con el proceso de implementación de las NICSP en el presente año siendo los primeros estados financieros intermedios que se prepararon al 31 de marzo de 2021. | Q93: 1
B94: 53A | C94: 37 (d) | D94: (d) un estado de cambios en los activos netos/patrimonio | E94: No aplica | H94: La Municipalidad de Buenos Aires inició con el proceso de implementación de las NICSP en el presente año siendo los primeros estados financieros intermedios que se prepararon al 31 de marzo de 2021. | Q94: 1
B95: 55 | C95: 38 | D95: Si la presentación o clasificación de las partidas en los estados financieros se modifica y los montos comparativos se reclasifican (a menos que la reclasificación no se pueda aplicar después de hacer todos los esfuerzos razonables para hacerlo), ¿la entidad revela lo siguiente? | E95: No llenar | Q95: 0
B96: 55 | C96: 38 (a) | D96: (a) la naturaleza de la reclasificación; | E96: No aplica | H96: La Municipalidad de Buenos Aires inició con el proceso de implementación de las NICSP en el presente año siendo los primeros estados financieros intermedios que se prepararon al 31 de marzo de 2021. | Q96: 1
B97: 55 | C97: 38 (b) | D97: (b) el importe de cada partida o grupo de partidas que se han reclasificado; y | E97: No aplica | H97: La Municipalidad de Buenos Aires inició con el proceso de implementación de las NICSP en el presente año siendo los primeros estados financieros intermedios que se prepararon al 31 de marzo de 2021. | Q97: 1
B98: 55 | C98: 38 (c) | D98: (c) el motivo de la reclasificación. | E98: No aplica | H98: La Municipalidad de Buenos Aires inició con el proceso de implementación de las NICSP en el presente año siendo los primeros estados financieros intermedios que se prepararon al 31 de marzo de 2021. | Q98: 1
B99: 56 | C99: 39 | D99: Si la reclasificación de los importes comparativos es impracticable, ¿la entidad revela lo siguiente? | E99: No llenar | Q99: 0
B100: 56 | C100: 39 (a) | D100: (a) el motivo para no reclasificar los importes; y | E100: No aplica | H100: La Municipalidad de Buenos Aires inició con el proceso de implementación de las NICSP en el presente año siendo los primeros estados financieros intermedios que se prepararon al 31 de marzo de 2021. | Q100: 1
B101: 56 | C101: 39 (b) | D101: (b) la naturaleza de los ajustes que tendrían que haberse efectuado si los importes hubieran sido reclasificados. | E101: No aplica | H101: La Municipalidad de Buenos Aires inició con el proceso de implementación de las NICSP en el presente año siendo los primeros estados financieros intermedios que se prepararon al 31 de marzo de 2021. | Q101: 1
B102: Congruencia de la presentación | E102: No llenar | Q102: 0
B103: 42 | C103: 40 | D103: ¿Se conserva la presentación y clasificación de las partidas en los estados financieros y se conservará de un periodo a otro? | E103: Cumple | Q103: 1
B104: Estado de Situación Financiera | E104: No llenar | Q104: 0
B105: 45 | C105: 41 | D105: ¿Cada clase de partidas similares, que posea la suficiente materialidad, se presenta por separado en los estados financieros. ? | E105: Cumple | Q105: 1
B106: 45 | C106: 41 (a) | D106: ¿Las partidas de naturaleza o función distinta se presentan separadamente? Esto en caso de que las partidas sean materiales | E106: Cumple | Q106: 1
B107: 48 | C107: 42 | D107: A menos que sea requerido o permitido por otra NICSP, ¿la entidad presenta por separado y no compensa los activos y pasivos? | E107: Cumple | Q107: 1
B108: 70 | C108: 43 | D108: Si la entidad no presenta por separado los activos corrientes y no corrientes en su estado de situación financiera, ¿presenta todos los activos en orden de liquidez? | E108: Cumple | Q108: 1
B109: 70 | C109: 44 | D109: ¿La entidad presenta los activos corrientes y no corrientes por separado en su estado de situación financiera, excepto cuando la presentación de liquidez es más confiable y más relevante? | E109: No aplica | H109: La Municipalidad de Buenos Aires inició con el proceso de implementación de las NICSP en el presente año siendo los primeros estados financieros intermedios que se prepararon al 31 de marzo de 2021. | Q109: 1
B110: 70 | C110: 45 | D110: Si la entidad presenta por separado los activos corrientes y no corrientes, y los pasivos corrientes y no corrientes en su estado de situación financiera, la entidad considera lo siguiente: | E110: No llenar | Q110: 0
B111: 76 | C111: 46 | D111: (a) Un activo se clasifica como corriente cuando satisfaga alguno de los siguientes criterios: | E111: No llenar | Q111: 0
B112: 76 | C112: 46 (a) | D112: (a) se espera realizar, o se mantiene para vender o consumir, en el transcurso del ciclo normal de la operación de la entidad; | E112: Cumple | Q112: 1
B113: 76 | C113: 46 (b) | D113: (b) se mantiene fundamentalmente para negociación; | E113: Cumple | Q113: 1
B114: 76 | C114: 46 (c) | D114: (c) se espera realizar dentro de los doce meses posteriores a la fecha de presentación, o | E114: Cumple | Q114: 1
B115: 76 | C115: 46 (d) | D115: (d) se trate de efectivo u otro medio equivalente al efectivo (tal como se define en la NICSP 2), cuya utilización no esté restringida, para ser intercambiado o usado para cancelar un pasivo, al menos dentro de los doce meses siguientes a la fecha de presentación. | E115: Cumple | Q115: 1
B116: 79 | C116: 47 | D116: ¿Los activos corrientes también incluyen activos mantenidos principalmente para negociación y la porción actual de activos financieros no corrientes? | E116: Cumple | Q116: 1
B117: 80 | C117: 48 | D117: (b) ¿Un pasivo es clasificado como corriente cuando satisfaga alguno de los siguientes criterios? | E117: No llenar | Q117: 0
B118: 80 | C118: 48 (i) | D118: (i) se espere liquidar en el ciclo normal de la operación de la entidad; | E118: Cumple | Q118: 1
B119: 80 | C119: 48 (ii) | D119: (ii) se mantiene fundamentalmente para negociación; | E119: Cumple | Q119: 1
B120: 80 | C120: 48 (iii) | D120: (iii) debe liquidarse dentro del periodo de los doce meses desde la fecha de presentación; o | E120: Cumple | Q120: 1
B121: 80 | C121: 48 (iv) | D121: (iv) la entidad no tenga un derecho incondicional para aplazar la cancelación del pasivo durante, al menos, los doce meses siguientes a la fecha de presentación (véase el párrafo 84). Las condiciones de un pasivo que puedan dar lugar, a elección de la otra parte, a su liquidación mediante la emisión de instrumentos de patrimonio, no afectan a su clasificación | E121: Cumple | Q121: 1
B122: 82 | C122: 49 | D122: ¿Se considera en la clasificación otros tipos de pasivos corrientes que no se liquidan como parte del ciclo normal de la operación, pero deben ser cancelados dentro de los doce meses siguientes a la fecha de presentación o se mantienen fundamentalmente con propósitos de negociación. Tales como la parte corriente de los préstamos a largo plazo con intereses, los sobregiros o descubiertos bancarios y otras cuentas por pagar no comerciales como corrientes? | E122: Cumple | Q122: 1
B123: 83 | C123: 50 | D123: (c) ¿La entidad clasifica sus pasivos financieros como corrientes cuando deban liquidarse dentro de los doce meses siguientes a la fecha del periodo sobre el que informa, a pesar de los siguiente? | E123: No llenar | Q123: 0
B124: 83 | C124: 50 (i) | D124: (i) el plazo original del pasivo fuera un periodo superior a doce meses; y | E124: No aplica | H124: La Municipalidad de Buenos Aires inició con el proceso de implementación de las NICSP en el presente año siendo los primeros estados financieros intermedios que se prepararon al 31 de marzo de 2021. | Q124: 1
B125: 83 | C125: 50 (ii) | D125: (ii) exista un acuerdo de refinanciación o de restructuración de los pagos a largo plazo, que haya concluido después de la fecha de presentación y antes de que los estados financieros sean autorizados para su publicación. | E125: No aplica | H125: La Municipalidad de Buenos Aires inició con el proceso de implementación de las NICSP en el presente año siendo los primeros estados financieros intermedios que se prepararon al 31 de marzo de 2021. | Q125: 1
B126: 84 | D126: "Si la entidad tiene la expectativa y, además, la facultad de renovar o refinanciar una obligación al menos durante los doce meses siguientes a la fecha de presentación, de acuerdo con las condiciones de financiación existentes, clasifica la obligación como no corriente, aun cuando de otro modo sería cancelada a corto plazo" | E126: No llenar | Q126: 0
B127: 85 | C127: 51 | D127: (d) ¿Cuando la entidad incumpla un compromiso adquirido en un contrato de préstamo a largo plazo en o antes de la fecha de presentación, con el efecto de que el pasivo se haga exigible a voluntad del prestamista, tal pasivo se clasifica como corriente, aún si el prestamista hubiera acordado, después de la fecha de presentación y antes de que los estados financieros hubieran sido autorizados para su publicación, no exigir el pago como consecuencia del incumplimiento? | E127: No aplica | H127: La Municipalidad de Buenos Aires inició con el proceso de implementación de las NICSP en el presente año siendo los primeros estados financieros intermedios que se prepararon al 31 de marzo de 2021. | Q127: 1
B128: 86 | C128: 52 | D128: Sin embargo, una entidad clasifica un acuerdo de préstamo a largo plazo como no corriente si: | E128: No llenar | Q128: 0
B129: 86 | C129: 52 (a) | D129: (a) El prestamista acordó al final del período de presentación de informes proporcionar un período de gracia que finalice al menos 12 meses después del período de presentación de informes, dentro del cual la entidad puede rectificar el incumplimiento. | E129: No aplica | H129: La Municipalidad de Buenos Aires inició con el proceso de implementación de las NICSP en el presente año siendo los primeros estados financieros intermedios que se prepararon al 31 de marzo de 2021. | Q129: 1
B130: 86 | C130: 52 (b) | D130: (b) Durante el período de gracia, el prestamista no puede exigir el reembolso inmediato | E130: No aplica | H130: La Municipalidad de Buenos Aires inició con el proceso de implementación de las NICSP en el presente año siendo los primeros estados financieros intermedios que se prepararon al 31 de marzo de 2021. | Q130: 1
B131: 71 | C131: 53 | D131: Independientemente del método de presentación adoptado, ¿la entidad revela para cada línea de partida de activo y pasivo, que se espere recuperar o cancelar (a) dentro de los doce meses posteriores a la fecha de presentación y (b) después de este intervalo de tiempo, el importe que se espera recuperar o cancelar, después de transcurridos estos doce meses? | E131: No aplica | H131: La Municipalidad de Buenos Aires inició con el proceso de implementación de las NICSP en el presente año siendo los primeros estados financieros intermedios que se prepararon al 31 de marzo de 2021. | Q131: 1
B132: 88 | C132: 54 | D132: ¿Como mínimo, en el estado de situación financiera se incluyen líneas de partida con los importes que correspondan a lo siguiente? | E132: No llenar | Q132: 0
B133: 88 | C133: 54 (a) | D133: (a) propiedades, planta y equipo; | E133: Cumple | Q133: 1
B134: 88 | C134: 54 (b) | D134: (b) propiedades de inversión; | E134: No aplica | H134: La Municipalidad de Buenos Aires inició con el proceso de implementación de las NICSP en el presente año siendo los primeros estados financieros intermedios que se prepararon al 31 de marzo de 2021. | Q134: 1
B135: 88 | C135: 54 (c) | D135: (c) activos intangibles; | E135: Cumple | Q135: 1
B136: 88 | C136: 54 (d) | D136: (d) activos financieros [excluidos los importes mencionados en los apartados (e), (g), (h) e (i)]; | E136: Cumple | Q136: 1
B137: 88 | C137: 54 (e) | D137: (e) inversiones contabilizadas utilizando el método de la participación; | E137: No aplica | H137: La Municipalidad de Buenos Aires inició con el proceso de implementación de las NICSP en el presente año siendo los primeros estados financieros intermedios que se prepararon al 31 de marzo de 2021. | Q137: 1
B138: 88 | C138: 54 (f) | D138: (f) inventarios; | E138: Cumple | Q138: 1
B139: 88 | C139: 54 (g) | D139: (g) cuentas por cobrar provenientes de transacciones sin contraprestación (impuestos y transferencias); | E139: Cumple | Q139: 1
B140: 88 | C140: 54 (h) | D140: (h) cuentas por cobrar provenientes de transacciones con contraprestación; | E140: Cumple | Q140: 1
B141: 88 | C141: 54 (i) | D141: (i) efectivo y equivalentes al efectivo; | E141: Cumple | Q141: 1
B142: 88 | C142: 54 (j) | D142: (j) impuestos y cuentas por pagar de transferencias; | E142: Cumple | Q142: 1
B143: 88 | C143: 54 (k) | D143: (k) cuentas por pagar provenientes de transacciones con contraprestación; | E143: Cumple | Q143: 1
B144: 88 | C144: 54 (l) | D144: (l) provisiones; | E144: Cumple | Q144: 1
B145: 88 | C145: 54 (m) | D145: (m) pasivos financieros [excluyendo los importes mencionados en los apartados (j), (k) y (l)]; | E145: No aplica | H145: La Municipalidad de Buenos Aires inició con el proceso de implementación de las NICSP en el presente año siendo los primeros estados financieros intermedios que se prepararon al 31 de marzo de 2021. | Q145: 1
B146: 88 | C146: 54 (n) | D146: (n) intereses minoritarios, presentados dentro de los activos netos/patrimonio; y | E146: No aplica | H146: La Municipalidad de Buenos Aires inició con el proceso de implementación de las NICSP en el presente año siendo los primeros estados financieros intermedios que se prepararon al 31 de marzo de 2021. | Q146: 1
B147: 88 | C147: 54 (o) | D147: (o) activos netos/patrimonio atribuibles a los propietarios de la entidad controladora. | E147: Cumple | Q147: 1
B148: 89 | C148: 55 | D148: ¿La entidad considera en el estado de situación financiera, presentar líneas de partida adicionales, agrupaciones y subtotales, cuando tal presentación sea relevante para la comprensión de la situación financiera de la entidad? | E148: Cumple | Q148: 1
B149: 90 | C149: 56 | D149: "Una entidad puede enmendar las descripciones y el orden de los elementos o la agregación de elementos similares de acuerdo con la naturaleza de la entidad y sus transacciones, para proporcionar información que sea relevante para comprender la situación financiera de la entidad." | E149: No aplica | H149: La Municipalidad de Buenos Aires inició con el proceso de implementación de las NICSP en el presente año siendo los primeros estados financieros intermedios que se prepararon al 31 de marzo de 2021. | Q149: 1
B150: 93 | C150: 57 | D150: ¿Se revela, ya sea en el cuerpo principal del estado de situación financiera o balance general o en las notas que se refieren al mismo, subdivisiones más detalladas de las partidas (o rubros) que componen las líneas del estado de situación financiera o balance general, clasificadas de una forma apropiada a las operaciones llevadas a cabo por la entidad? | E150: Cumple | Q150: 1
B151: Estado de rendimiento financiero | E151: No llenar | Q151: 0
B152: 45 | C152: 58 | D152: ¿La entidad presenta cada clase de material de elementos similares por separado en el estado de rendimiento financiero? | E152: Cumple | Q152: 1
B153: 45 | C153: 58 (a) | D153: ¿La entidad presenta elementos de una naturaleza o función diferente por separado en el estado de rendimiento financiero, a menos que sean irrelevantes? | E153: Cumple | Q153: 1
B154: 48 | C154: 59 | D154: A menos que sea requerido o permitido por otra NICSP, ¿la entidad presenta por separado y no compensa los ingresos y gastos? | E154: Cumple | Q154: 1
B155: 50, 51 | D155: Los ejemplos de elementos que se compensan incluyen los siguientes: | E155: No llenar | Q155: 0
B156: 50, 51 | D156: (a) las pérdidas o ganancias por la disposición de activos no corrientes, entre los que se encuentran ciertas inversiones y activos de operación, se suelen presentar netas, deduciendo del importe recibido por la disposición el importe en libros del activo y los gastos de venta relacionados; y | E156: No llenar | Q156: 0
B157: 50, 51 | D157: (b) los gastos relativos a las provisiones reconocidas de acuerdo con la NICSP 19, Provisiones, Pasivos Contingentes y Activos Contingentes, que hayan sido reembolsados a la entidad como consecuencia de un acuerdo contractual con terceros (por ejemplo, un acuerdo de garantía de productos cubierto por un proveedor), se podrán compensar con los reembolsos efectivamente recibidos. | E157: No llenar | Q157: 0
B158: 50, 51 | D158: (c) las pérdidas o ganancias que procedan de un grupo de transacciones similares, se presentarán netas, como sucede por ejemplo en el caso de las diferencias de cambio en moneda extranjera, o bien en el caso de pérdidas o ganancias derivadas de instrumentos financieros mantenidos para negociar. Estas pérdidas y ganancias se presentarán por separado si son materiales | E158: No llenar | Q158: 0
B159: 99 | C159: 60 | D159: ¿La entidad incluye todas las partidas de ingresos y gastos en un período de reporte en el superávit o déficit (a menos que una NICSP exija lo contrario)? | E159: Cumple | Q159: 1
B160: 100 | D160: La NICSP 3 especifica dos circunstancias en las que la entidad reconoce elementos fuera de superávit o déficit: correcciones de errores y el efecto de los cambios en las políticas contables. | E160: No llenar | Q160: 0
B161: 101 -123 | D161: Algunos elementos deben ser reconocidos directamente como cambios en los activos netos / patrimonio. El estado de cambios en los activos netos / patrimonio neto comprende los ingresos y gastos (incluidos los ajustes de reclasificación) que no se reconocen en el superávit o el déficit como lo requieren o permiten otras IPSAS. Ejemplos incluyen los cambios en el excedente de revaluación (vea la NICSP 17 y la NICSP 31) segundo, en particular (a) Ganancias y pérdidas derivadas de la conversión de los estados financieros de una operación en el extranjero (véase la NICSP 4) (b) Ganancias y pérdidas por la nueva medición de activos financieros medidos a valor razonable con cambios en los activos netos/patrimonio (véase la NICSP 41) | E161: No llenar | Q161: 0
B162: Información presentada al frente del estado de rendimiento financiero. | E162: No llenar | Q162: 0
B163: 102 | C163: 61 | D163: ¿En el estado de rendimiento financiero se incluyen, como mínimo, líneas de partidas que presenten los importes siguientes para el periodo? | E163: No llenar | Q163: 0
B164: 102 | C164: 61 (a) | D164: (a) ingresos; presentando por separado el ingreso por interés calculado usando el método de interés efectivo y las ganancias y pérdidas de la baja de activos financieros medidos al costo amortizado | E164: No Cumple | F164: Medio | G164: Medio | H164: La Municipalidad inició con el proceso de implementación de las NICSP en el pressente año. Actualmente se encuentra realizando la depuración de cuentas. | Q164: 1
B165: 102 | C165: 61 (b) | D165: (b) costos financieros; (ba) pérdidas por deterioro | E165: No Cumple | F165: Bajo | G165: Bajo | H165: La Municipalidad inició con el proceso de implementación de las NICSP en el pressente año. Actualmente se encuentra realizando la depuración de cuentas. | Q165: 1
B166: 102 | C166: 61 (c) | D166: (c) participación en el resultado (ahorro o desahorro) de las asociadas y negocios conjuntos contabilizados por el método de la participación; | E166: No aplica | H166: La Municipalidad de Buenos Aires inició con el proceso de implementación de las NICSP en el presente año siendo los primeros estados financieros intermedios que se prepararon al 31 de marzo de 2021. | Q166: 1
B167: 102 | C167: 61 (d) | D167: (d) ganancia o pérdida antes de impuestos reconocida en la disposición de activos o liquidación de pasivos atribuible a operaciones en discontinuación; y | E167: Cumple | Q167: 1
B168: 102 | C168: 61 (e) | D168: (e) resultado (ahorro o desahorro) del periodo. | E168: Cumple | Q168: 1
B169: 103 | C169: 62 | D169: ¿Se han incluido las siguientes partidas como asignaciones de superávit o déficit para el período en el estado de rendimiento financiero? | E169: No llenar | Q169: 0
B170: 103 | C170: 62 (a) | D170: (a) resultado (ahorro o desahorro) del periodo atribuible a los intereses minoritarios; y | E170: No aplica | H170: La Municipalidad de Buenos Aires inició con el proceso de implementación de las NICSP en el presente año siendo los primeros estados financieros intermedios que se prepararon al 31 de marzo de 2021. | Q170: 1
B171: 103 | C171: 62 (b) | D171: (b) resultado (ahorro o desahorro) atribuible a los propietarios de la entidad controladora. | E171: No aplica | H171: La Municipalidad de Buenos Aires inició con el proceso de implementación de las NICSP en el presente año siendo los primeros estados financieros intermedios que se prepararon al 31 de marzo de 2021. | Q171: 1
B172: 104 | C172: 63 | D172: ¿En el estado de rendimiento financiero se presentan líneas de partida adicionales que contengan agrupaciones y subtotales, cuando esta presentación sea relevante para la comprensión del rendimiento financiero de la entidad? | E172: Cumple | Q172: 1
B173: Información presentada en el estado de rendimiento financiero o en las notas. | E173: No llenar | Q173: 0
B174: 106 | C174: 64 | D174: ¿Cuando las partidas de ingreso y gasto sean materiales se revela por separado lo siguiente? | E174: No llenar | Q174: 0
B175: 106 | C175: 64 (a) | D175: (a) su naturaleza | E175: Cumple | Q175: 1
B176: 106 | C176: 64 (b) | D176: (b) el importe de la partida | E176: Cumple | Q176: 1
B177: 107 | C177: 65 | D177: ¿La entidad considera las siguientes circunstancias que darían lugar a revelar información de forma separada de partidas de ingreso y gasto? | E177: No llenar | Q177: 0
B178: 107 | C178: 65 (a) | D178: (a) la rebaja del valor de los inventarios hasta su valor realizable neto, o de los elementos de propiedades, planta y equipo hasta su importe recuperable o importe recuperable de servicio, lo que sea apropiado, así como las reversiones de tales rebajas; | E178: Cumple | H178: No obstante como producto del proceso de implementació se estará considerando establecer mecanismos de actuación en caso de que se presnte este requisito. | Q178: 1
B179: 107 | C179: 65 (b) | D179: (b) restructuración de las actividades de una entidad y la reversión de cualquier provisión dotada para hacer frente a los costos de la misma; | E179: Cumple | Q179: 1
B180: 107 | C180: 65 (c) | D180: (c) la disposición de partidas de propiedades, planta y equipo; | E180: No aplica | H180: La Municipalidad de Buenos Aires inició con el proceso de implementación de las NICSP en el presente año siendo los primeros estados financieros intermedios que se prepararon al 31 de marzo de 2021. | Q180: 1
B181: 107 | C181: 65 (d) | D181: (d) las privatizaciones u otras disposiciones de inversiones; | E181: No aplica | H181: La Municipalidad de Buenos Aires inició con el proceso de implementación de las NICSP en el presente año siendo los primeros estados financieros intermedios que se prepararon al 31 de marzo de 2021. | Q181: 1
B182: 107 | C182: 65 (e) | D182: (e) las operaciones en discontinuación; | E182: No aplica | H182: La Municipalidad de Buenos Aires inició con el proceso de implementación de las NICSP en el presente año siendo los primeros estados financieros intermedios que se prepararon al 31 de marzo de 2021. | Q182: 1
B183: 107 | C183: 65 (f) | D183: (f) cancelaciones de pagos por litigios; y | E183: No aplica | H183: Cpomo parte | Q183: 1
B184: 107 | C184: 65 (g) | D184: (g) otras reversiones de provisiones. | E184: No Cumple | F184: Bajo | G184: Bajo | Q184: 1
B185: 108 | C185: 66 | D185: ¿Presenta la entidad, en el Estado de rendimiento financiero, o en las notas a dicho estado, un desglose de sus ingresos ordinarios/recursos utilizando una clasificación basada en su naturaleza o en su función dentro de la entidad? | E185: Cumple | Q185: 1
B186: 109 | C186: 67 | D186: ¿Presenta la entidad en el Estado de rendimiento financiero, o en las notas a dicho estado, un desglose de sus gastos clasificados de la siguiente manera? | E186: No llenar | Q186: 0
B187: 109 | C187: 67 (a) | D187: (a) la naturaleza de los gastos (párrafo 112) | E187: Cumple | Q187: 1
B188: 109 | C188: 67 (b) | D188: (b) función dentro de la entidad, dependiendo de cuál proporcione una información que sea fielmente representativa y de mayor relevancia. (párrafo 113) | E188: No aplica | H188: La Municipalidad de Buenos Aires inició con el proceso de implementación de las NICSP en el presente año siendo los primeros estados financieros intermedios que se prepararon al 31 de marzo de 2021. | Q188: 1
B189: 110 | C189: 68 | D189: ¿La entidad presenta el análisis de gastos, como se describe en el párrafo 109, en su estado de rendimiento financiero? | E189: Cumple | Q189: 1
B190: 115 | C190: 69 | D190: En caso que se clasifiquen los gastos por función, ¿se revela la siguiente información adicional sobre la naturaleza de los gastos? | E190: No llenar | Q190: 0
B191: 115 | C191: 69 (a) | D191: (a) gastos por depreciación y amortización | E191: No aplica | H191: La Municipalidad de Buenos Aires inició con el proceso de implementación de las NICSP en el presente año siendo los primeros estados financieros intermedios que se prepararon al 31 de marzo de 2021. | Q191: 1
B192: 115 | C192: 69 (b) | D192: (b) gasto por beneficios a los empleados | E192: No aplica | H192: La Municipalidad de Buenos Aires inició con el proceso de implementación de las NICSP en el presente año siendo los primeros estados financieros intermedios que se prepararon al 31 de marzo de 2021. | Q192: 1
B193: 117 | C193: 70 | D193: ¿La entidad revela, ya sea en la cara del estado de rendimiento financiero o el estado de cambios en los activos netos / patrimonio, o en las notas la siguiente información? | E193: No llenar | Q193: 0
B194: 117 | C194: 70 (a) | D194: (a) el importe de los dividendos o distribuciones similares reconocidas como distribuciones a los propietarios durante el periodo; | E194: No aplica | H194: La Municipalidad de Buenos Aires inició con el proceso de implementación de las NICSP en el presente año siendo los primeros estados financieros intermedios que se prepararon al 31 de marzo de 2021. | Q194: 1
B195: 117 | C195: 70 (b) | D195: (b) el correspondiente importe por acción. | E195: No aplica | H195: La Municipalidad de Buenos Aires inició con el proceso de implementación de las NICSP en el presente año siendo los primeros estados financieros intermedios que se prepararon al 31 de marzo de 2021. | Q195: 1
B196: Estado de cambios en activos netos / patrimonio neto | E196: No llenar | Q196: 0
B197: 45 | C197: 71 | D197: ¿La entidad presenta cada clase de material de elementos similares por separado en el estado de rendimiento financiero? | E197: Cumple | Q197: 1
B198: 45 | C198: 71 (a) | D198: ¿La entidad presenta elementos de una naturaleza o función diferente por separado en el estado de rendimiento financiero, a menos que sean irrelevantes? | E198: Cumple | Q198: 1
B199: 118 | C199: 72 | D199: ¿Presenta la entidad los siguientes elementos minimos que indica la norma en su Estado de Cambios en los activos netos/Patrimonio neto? | E199: No llenar | Q199: 0
B200: 118 | C200: 72 (a) | D200: (a) el resultado (ahorro o desahorro) del periodo; | E200: Cumple | Q200: 1
B201: 118 | C201: 72 (b) | D201: (b) cada partida de ingresos y gastos del periodo que, según lo requerido por otras Normas, se reconozcan directamente en los activos netos/patrimonio, y el total de estas partidas; | E201: Cumple | Q201: 1
B202: 118 | C202: 72 (c) | D202: (c) el total de los ingresos y gastos del periodo calculado como la suma de los apartados (a) y (b)], mostrando separadamente el importe total atribuido a los propietarios de la entidad controladora y a los intereses minoritarios; y | E202: Cumple | Q202: 1
B203: 118 | C203: 72 (d) | D203: (d) para cada componente de los activos netos/patrimonio revelado por separado, los efectos de los cambios en las políticas contables y en la corrección de errores reconocidos de acuerdo con la NICSP 3. | E203: No aplica | H203: La Municipalidad de Buenos Aires inició con el proceso de implementación de las NICSP en el presente año siendo los primeros estados financieros intermedios que se prepararon al 31 de marzo de 2021. | Q203: 1
... 76 more rows

Sheet NICSP 2
B2: NICSP 2
B3: Estados de Flujo de Efectivo
B4: Objetivo: Exigir a las entidades que suministren información sobre las variaciones históricas del efectivo y equivalentes al efectivo que posee, mediante la presentación de un estado de flujos de efectivo, clasificados según procedan de actividades de operación, de inversión y de financiación.
B5: La norma es aplicable en la entidad (Indique Si o No) | E5: Si
B7: Complete cada una de las preguntas según corresponda con "No aplica", "Cumple", "No Cumple" o "Cumple Parcialmente".
B8: Número de párrafo | C8: Número pregunta | D8: Requisito de la Norma | E8: Respuesta | F8: Impacto | G8: Esfuerzo | H8: Observaciones
B10: Reconocimiento y medición | E10: No llenar | Q10: 0
B11: 18 | C11: 1 | D11: ¿La entidad presenta actualmente estados de flujo de efectivo? | E11: Cumple | Q11: 1
B12: 36 | C12: 2 | D12: Los flujos de efectivo procedentes de transacciones en moneda extranjera ¿se convierten a la moneda funcional de la entidad aplicando al importe en moneda extranjera la tasa de cambio entre ambas monedas en la fecha en que se produjo cada flujo de efectivo? | E12: No aplica | H12: La Municipalidad no efectúa transacciones en monedas extranjeras. | Q12: 1
B13: 28 | C13: 3 | D13: ¿Realiza la entidad el flujo de efectivo por el método directo según lo aconseja la NICSP 2? | E13: Cumple | Q13: 1
B14: 24 | C14: 4 | D14: ¿Se revela cuando la entidad no pueda identificar separadamente las asignaciones o autorizaciones presupuestarias como actividades corrientes, inversiones de capital y aportaciones de capital, y estas asignaciones o autorizaciones presupuestarias y se clasifican como flujos de efectivo provenientes de las actividades de operación? | E14: No aplica | H14: La Municipalidad identica separadamente las asignaciones y autorizaciones presupuestarias en actividades corrientes, de capital y de operación. | Q14: 1
B15: 29 | C15: 5 | D15: ¿Se presenta en el Estado de Flujos de Efectivo o en las notas una conciliación entre el resultado (ahorro/desahorro) de las actividades ordinarias y el flujo de efectivo neto de las actividades de operación? | E15: Cumple | Q15: 1
B16: 37 | C16: 6 | D16: ¿Los flujos de efectivo de una entidad controlada extranjera se convierten utilizando la tasa de cambio entre la moneda funcional y la moneda extranjera, en la fecha en que se produjo cada flujo de efectivo' | E16: No aplica | H16: La Municipalidad no controla entidades extranjeras. | Q16: 1
B17: 39 | C17: 7 | D17: Las variaciones por el tipo de cambio se presentan en el Estado de Flujos de efectivo separado de los flujos procedentes de las actividades de operación, de inversión y de financiación para permitir la conciliación del efectivo al principio y al final del período? | E17: No aplica | H17: La Municipalidad no realiza transacciones en monedas extranjeras. | Q17: 1
B18: 48 | C18: 8 | D18: En caso que una entidad informe sobre su participación en una entidad controlada conjuntamente utilizando la consolidación proporcional ¿incluye en su estado de flujos de efectivo consolidado su parte proporcional de los flujos de efectivo de la citada entidad? | E18: No aplica | H18: La Municipalidad no tiene participación en entidades controladas conjuntamente. | Q18: 1
B19: 52 | C19: 9 | D19: ¿Se incluyen en los Estados de Flujo de Efectivo los importes agregados que se han pagado o cobrado por la compra o disposición o enajenación de una entidad, respectivamente, netos de los saldos de efectivo y equivalentes al efectivo adquiridos o dispuestos, según el caso, en la operación? | E19: No aplica | H19: La municipalidad no realiza este tipo de transacciones. | Q19: 1
B20: Revelaciones | E20: No llenar | Q20: 0
B21: Presentación | E21: No llenar | Q21: 0
B22: 18 | C22: 10 | D22: ¿Se incluye en el Estado de Flujos de Efectivo la clasificación por actividades de operación, de inversión y de financiación? "Las definiciones de las diferentes categorías de flujos de efectivo se presentan en la NICSP 2.8 y los ejemplos se presentan en la NICSP 2.22." | E22: Cumple | Q22: 1
B23: 27 | C23: 11 | D23: La entidad informa los flujos de efectivo de las actividades operativas usando: | E23: No llenar | Q23: 0
B24: 27 | C24: 11 (a) | D24: (a) El método directo, según el cual se presentan las prinicipales categorías de cobros y pagos en términos brutos; o | E24: Cumple | Q24: 1
B25: 27 | C25: 11 (b) | D25: (b) El método indirecto, según el cual el resultado se corrige por los efectos de las transacciones no monetarias, por todo tipo de partidas de pago diferido o acumulaciones de cobros o pagos de operación en efectivo pasados o futuros y las partidas de ingresos o gastos asociadas con flujos de efectivo de inversión o financiación | E25: No aplica | H25: La Municipalidad aplica el método directo. | Q25: 1
B26: 31 | C26: 12 | D26: ¿La entidad informa las principales clases de ingresos brutos y pagos en efectivo brutos que surgen de las actividades de inversión y financiamiento por separado, excepto cuando se revelan en forma neta según lo permitido por la NICSP 2.32 y la NICSP 2.36. | E26: Cumple | Q26: 1
B27: 32 | C27: 13 | D27: ¿Se presentan netos los flujos de efectivo que proceden de los siguientes tipos de actividades de operación, de inversión y de financiación? | E27: No llenar | Q27: 0
B28: 32 | C28: 13 (a) | D28: (a) cobros y pagos por cuenta de clientes, contribuyentes o beneficiarios, siempre y cuando los flujos de efectivo reflejen la actividad de la otra parte más que la correspondiente a la entidad; y | E28: No aplica | H28: La Municipalidad no efectúa este tipo de actividades. | Q28: 1
B29: 32 | C29: 13 (b) | D29: (b) cobros y pagos procedentes de partidas en las que la rotación es elevada, los importes grandes y el vencimiento próximo. | E29: No aplica | H29: La Municipalidad no efectúa este tipo de actividades. | Q29: 1
B30: 35 | C30: 14 | D30: ¿Se presentan en términos netos los siguientes flujos de efectivo procedentes de las actividades de una entidad financiera pública? | E30: No llenar | Q30: 0
B31: 35 | C31: 14 (a) | D31: (a) pagos y cobros por la aceptación y reembolso de depósitos con una fecha fija de vencimiento; | E31: No aplica | H31: La Municipalidad no efectúa este tipo de actividades. | Q31: 1
B32: 35 | C32: 14 (b) | D32: (b) colocación y recuperación de depósitos en otras instituciones financieras; y | E32: Cumple | Q32: 1
B33: 35 | C33: 14 (c) | D33: (c) anticipos y préstamos hechos a clientes, así como el reembolso de tales partidas. | E33: No aplica | H33: La Municipalidad no efectúa este tipo de actividades. | Q33: 1
B34: Componentes de Efectivo y Equivalentes de Efectivo | E34: No llenar | Q34: 0
B35: 56 | C35: 15 | D35: ¿Se revelan los componentes de la partida de efectivo y equivalentes al efectivo? | E35: Cumple | Q35: 1
B36: 56 | C36: 16 | D36: ¿Se presenta una conciliación de los saldos que figuran en su estado de flujos de efectivo con las partidas equivalentes en el estado de situación financiera? | E36: Cumple | Q36: 1
B37: 57 | C37: 17 | D37: ¿Se revelan los criterios adoptados para determinar la composición del efectivo y equivalentes al efectivo? | E37: Cumple | Q37: 1
B38: Adquisiciones de entidades controladas y otras unidades operativas. | E38: No llenar | Q38: 0
B39: 49 | C39: 18 | D39: ¿Se presentan por separado, y se clasifican como actividades de inversión los flujos de efectivo agregados derivados de adquisiciones de entidades controladas u otras unidades operativas? | E39: No aplica | H39: La Municipalidad no efectúa este tipo de actividades. | Q39: 1
B40: 51 | C40: 19 | D40: ¿Se revela de forma agregada respecto de cada adquisición de entidades controladas u otras unidades operativas, habidas durante el periodo, todos y cada uno de los siguientes extremos? | E40: No llenar | Q40: 0
B41: 51 | C41: 19 (a) | D41: (a) La contraprestación total derivada de la compra | E41: No aplica | H41: La Municipalidad no efectúa este tipo de actividades. | Q41: 1
B42: 51 | C42: 19 (b) | D42: (b) La parte de la contraprestación de compra descargada mediante efectivo y equivalentes de efectivo. | E42: No aplica | H42: La Municipalidad no efectúa este tipo de actividades. | Q42: 1
B43: 51 | C43: 19 (c) | D43: (c) El monto de efectivo y equivalentes de efectivo en la entidad controlada o unidad operativa adquirida | E43: No aplica | H43: La Municipalidad no efectúa este tipo de actividades. | Q43: 1
B44: 51 | C44: 19 (d) | D44: (d) El importe de los activos y pasivos, distintos del efectivo o equivalentes de efectivo, reconocidos por la entidad controlada o unidad operativa adquirida, resumidos por cada categoría principal | E44: No aplica | H44: La Municipalidad no efectúa este tipo de actividades. | Q44: 1
B45: Disposiciones de entidades controladas y otras unidades operativas. | E45: No llenar | Q45: 0
B46: 52 | C46: 20 | D46: ¿Se presentan por separado, y se clasifican como actividades de inversión los flujos de efectivo agregados derivados de disposiciones o enajenación de entidades controladas u otras unidades operativas? | E46: No aplica | H46: La Municipalidad no efectúa este tipo de actividades. | Q46: 1
B47: Otra información | E47: No llenar | Q47: 0
B48: 40 | C48: 21 | D48: ¿Se revelan por separado los flujos de efectivo correspondientes a lo siguiente? | E48: No llenar | Q48: 0
B49: 40 | C49: 21 (a) | D49: (a) Intereses recibidos | E49: Cumple | Q49: 1
B50: 40 | C50: 21 (b) | D50: (b) Intereses pagados | E50: Cumple | Q50: 1
B51: 40 | C51: 21 (c) | D51: (c) Dividendos o distribuciones similares percibidos | E51: No aplica | H51: La Municipalidad no efectúa este tipo de actividades. | Q51: 1
B52: 40 | C52: 21 (d) | D52: (d) Dividendos o distribuciones similares pagados | E52: No aplica | H52: La Municipalidad no efectúa este tipo de actividades. | Q52: 1
B53: 54 | C53: 22 | D53: ¿Se considera lo siguiente para las transacciones de inversión y financiamiento que no requieren el uso de efectivo o equivalentes de efectivo? | E53: No llenar | Q53: 0
B54: 54 | C54: 22 (a) | D54: (a) Son excluidas del estado de flujos de efectivo. | E54: No aplica | H54: La Municipalidad no efectúa este tipo de actividades. | Q54: 1
B55: 54 | C55: 22 (b) | D55: (b) Son divulgados en otra parte de los estados financieros de manera que proporcione toda la información relevante sobre estas actividades de inversión y financiamiento. | E55: No aplica | H55: La Municipalidad no efectúa este tipo de actividades. | Q55: 1
B56: 59 | C56: 23 | D56: ¿La entidad revela la siguiente información con respecto al efectivo significativo y los saldos equivalentes de efectivo que no están disponibles para el uso de la entidad económica? | E56: No llenar | Q56: 0
B57: 59 | C57: 23 (a) | D57: (a) El monto | E57: Cumple | Q57: 1
B58: 59 | C58: 23 (b) | D58: (b) Comentario por parte de la administración de la entidad | E58: Cumple | Q58: 1
B59: 46 | C59: 24 | D59: ¿La entidad revela lo siguiente? | E59: No llenar | Q59: 0
B60: 46 | C60: 24 (a) | D60: (a) El importe de los préstamos no dispuestos, que puedan estar disponibles para actividades de operación o para el pago de operaciones de inversión o financiación, indicando las restricciones sobre el uso de tales medios financieros, | E60: No aplica | H60: La Municipalidad no efectúa este tipo de actividades. | Q60: 1
B61: 46 | C61: 24 (c) | D61: (c) Importe y naturaleza de los saldos de efectivo sobre los que existen restricciones | E61: No aplica | H61: La Municipalidad no efectúa este tipo de actividades. | Q61: 1
B62: Totales | C62: =COUNT(C11:C61) -> 24 | E62: =+COUNTA(E10:E61)-COUNTIF($E$10:$E$61,"=No llenar") -> 37
B63: Preguntas pendientes de respuesta | E63: =+H65-E62 -> 0
F64: Reconocimiento y medición | G64: Revelaciones | H64: Total
E65: Número de ítems | F65: =+SUM(Q11:Q19) -> 9 | G65: =+SUM(Q22:Q61) -> 28 | H65: =+SUM(F65:G65) -> 37
E67: Ítems no aplicables | F67: =COUNTIF($E$11:$E$19,"=No aplica") -> 6 | G67: =(COUNTIF($E$22:$E$61,"=No aplica")) -> 17 | H67: =+SUM(F67:G67) -> 23
E69: ítems aplicables | F69: =+F65-F67 -> 3 | G69: =+G65-G67 -> 11 | H69: =+SUM(F69:G69) -> 14
E71: ítems cumplidos | F71: =COUNTIF($E$11:$E$19,"=Cumple") -> 3 | G71: =COUNTIF($E$22:$E$61,"=Cumple") -> 11 | H71: =+SUM(F71:G71) -> 14
E73: Ítems cumplidos parcialmente | F73: =COUNTIF($E$11:$E$19,"=Cumple Parcialmente") -> 0 | G73: =COUNTIF($E$22:$E$61,"=Cumple Parcialmente") -> 0 | H73: =+SUM(F73:G73) -> 0
E75: Ítems no cumplidos | F75: =COUNTIF($E$11:$E$19,"=No Cumple") -> 0 | G75: =COUNTIF($E$22:$E$61,"=No Cumple") -> 0 | H75: =+SUM(F75:G75) -> 0
E77: Porcentaje de aplicación | F77: =+IFERROR((F71+(F73*0.5))/F69,0) -> 1 | G77: =+IFERROR((G71+(G73*0.5))/G69,0) -> 1 | H77: =+(F77*60%)+(G77*40%) -> 1
F79: Bajo | G79: Medio | H79: Alto
E80: Impacto | F80: =COUNTIF($F$11:$F$61,"Bajo") -> 0 | G80: =COUNTIF($F$11:$F$61,"Medio") -> 0 | H80: =COUNTIF($F$11:$F$61,"Alto") -> 0
F81: Bajo | G81: Medio | H81: Alto
E82: Esfuerzo | F82: =COUNTIF($G$11:$G$61,"Bajo") -> 0 | G82: =COUNTIF($G$11:$G$61,"Medio") -> 0 | H82: =COUNTIF($G$11:$G$61,"Alto") -> 0
B85: En caso de que la entidad marque NO CUMPLE en la norma o en su defecto se acoga a algun transitorio debe responder la siguiente pregunta y completar el plan de acción para cada una de las brechas identificadas:
B86: Responda con SI o NO
B87: La norma posee transitorios
B89: La norma posee Planes de Acción
J90: PLAZO
B91: Número de párrafo | C91: Número pregunta | D91: Acciones para brechas | E91: Actividades de cumplimiento | F91: % de Avance Plan de acción | G91: Requerimientos | H91: Recursos | I91: Responsable | J91: Fecha de Inicio | K91: Fecha para Finalizar | L91: Fecha Actual | M91: Duración meses | N91: Meses Transcurridos | O91: Meses para finalizar actividad
L92: =NOW() -> 2024-07-26T09:10:52.190 | M92: =DATEDIF(J92,K92,"D")/30 -> 0 | N92: =DATEDIF(J92,L92,"D")/30 -> 1516.633333 | O92: =+M92-N92 -> -1516.633333
L93: =NOW() -> 2024-07-26T09:10:52.190 | M93: =DATEDIF(J93,K93,"D")/30 -> 0 | N93: =DATEDIF(J93,L93,"D")/30 -> 1516.633333 | O93: =+M93-N93 -> -1516.633333
L94: =NOW() -> 2024-07-26T09:10:52.190 | M94: =DATEDIF(J94,K94,"D")/30 -> 0 | N94: =DATEDIF(J94,L94,"D")/30 -> 1516.633333 | O94: =+M94-N94 -> -1516.633333
L95: =NOW() -> 2024-07-26T09:10:52.190 | M95: =DATEDIF(J95,K95,"D")/30 -> 0 | N95: =DATEDIF(J95,L95,"D")/30 -> 1516.633333 | O95: =+M95-N95 -> -1516.633333
D98: =+"TOTAL DE BRECHAS (NO CUMPLE-CUMPLE PARCIALMENTE) = "&COUNTA(D92:D95) -> TOTAL DE BRECHAS (NO CUMPLE-CUMPLE PARCIALMENTE) = 0 | E98: =+COUNTA(D92:D95) -> 0
D100: PORCENTAJE PROMEDIO DE AVANCE PLANES ACCIÓN | F100: =+IFERROR(AVERAGE(F92:F95),0) -> 0
B102: JERARCA MAXIMO
D103: NOMBRE | E103: FIRMA
B105: DIRECTOR ADMINISTRATIVO Y FINANCIERO
D106: NOMBRE | E106: FIRMA
B108: CONTADOR
D109: NOMBRE | E109: FIRMA

Sheet NICSP 3
B2: NICSP 3
B3: Políticas Contables, Cambios en las Estimaciones Contables y Errores
B4: Objetivo: prescribir los criterios para seleccionar y modificar las políticas contables, así como el (a) tratamiento contable y la información a revelar acerca de los cambios en las políticas contables, (b) cambios en las estimaciones contables y (c) la corrección de errores.
B5: La norma es aplicable en la entidad (Indique Si o No) | E5: Si
B7: Complete cada una de las preguntas según corresponda con "No aplica", "Cumple", "No Cumple" o "Cumple Parcialmente".
B8: Número de párrafo | C8: Número pregunta | D8: Requisito de la Norma | E8: Respuesta | F8: Impacto | G8: Esfuerzo | H8: Observaciones
B10: Reconocimiento y medición | E10: No llenar | Q10: 0
B11: 9 | C11: 1 | D11: Cuando una NICSP sea específicamente aplicable a una transacción, otro evento o condición, ¿la política o políticas contables aplicadas a esa partida se determinan aplicando la Norma? | E11: Cumple Parcialmente | F11: Medio | G11: Medio | H11: Las politica son diseñadas con base en lo establecido en las NICSP | Q11: 1
B12: 12 | C12: 2 | D12: En ausencia de una NICSP que sea aplicable específicamente a una transacción o a otros hechos o condiciones, la gerencia usa su juicio en el desarrollo y aplicación de una política contable, a fin de suministrar información? | E12: No aplica | H12: La Municipalidad inició el proceso de implementación en el presente año, y en lo que se lleva ejecutado del proceso esto no se ha presentado. | Q12: 1
B13: 14 | C13: 3 | D13: Al realizar los juicios profesionales descritos anteriormente, la gerencia se refiere, en orden descendente, a las siguientes fuentes y considera su aplicabilidad: (a) los requerimientos de las NICSP que traten temas similares y relacionados; y (b) Las definiciones, criterios de reconocimiento y medición de activos, pasivos, ingresos y gastos establecidos en otras NICSP. | E13: No aplica | H13: La Municipalidad inició el proceso de implementación en el presente año, y en lo que se lleva ejecutado del proceso esto no se ha presentado. | Q13: 1
B14: 16 | C14: 4 | D14: ¿La entidad selecciona y aplica sus políticas contables de manera uniforme para transacciones, otros eventos y condiciones que sean similares, a menos que una NICSP requiera o permita establecer categorías de partidas para las cuales podría ser apropiado aplicar diferentes políticas? | E14: Cumple | Q14: 1
B15: 24(a) | C15: 5 | D15: ¿Un cambio en la política contable que resulta de la aplicación inicial de una NICSP se contabiliza de acuerdo con las disposiciones transitorias específicas, si las hay, en esa Norma Internacional de Contabilidad del Sector Público? | E15: No aplica | H15: La Municipalidad inició el proceso de implementación en el presente año, y en lo que se lleva ejecutado del proceso esto no se ha presentado. | Q15: 1
B16: 24(b) | C16: 6 | D16: Cuando la entidad cambia una política contable tras la aplicación inicial de una NICSP que no incluye disposiciones transitorias específicas que se aplican a ese cambio, o cambia una política contable voluntariamente, ¿la entidad aplica el cambio de forma retrospectiva? | E16: No aplica | H16: La Municipalidad inició el proceso de implementación en el presente año, y en lo que se lleva ejecutado del proceso esto no se ha presentado. | Q16: 1
B17: 28 | C17: 7 | D17: ¿Las políticas contables de la entidad prevén alguna limitación en la aplicación retrospectiva de los cambios en las políticas contables? | E17: No aplica | H17: Se aplican las políticas generales contables emitidas por la Contabilidad Nacional. | Q17: 1
B18: 29 | C18: 8 | D18: Cuando sea impracticable determinar los efectos que se derivan, en cada periodo específico, del cambio de una política contable sobre la información comparativa en uno o más periodos anteriores para los que se presente información ¿se aplicará la nueva política contable a los saldos iniciales de los activos y pasivos al principio del periodo más antiguo para el que la aplicación retroactiva sea practicable? | E18: No aplica | H18: La Municipalidad inició el proceso de implementación en el presente año, y en lo que se lleva ejecutado del proceso esto no se ha presentado. | Q18: 1
B19: 31 | C19: 9 | D19: Cuando la entidad aplica una nueva política contable retroactivamente ¿se aplica a la información comparativa de periodos anteriores, retrotrayéndose en el tiempo tanto como sea practicable? | E19: No aplica | H19: La Municipalidad inició el proceso de implementación en el presente año, y en lo que se lleva ejecutado del proceso esto no se ha presentado. | Q19: 1
B20: 41 | C20: 10 | D20: El efecto de un cambio en una estimación contable, ¿se reconoce de forma prospectiva, incluyéndolo en el resultado positivo (ahorro) o negativo (desahorro) del periodo en que tiene lugar el cambio, si éste afecta a un solo periodo; o el periodo del cambio y periodos futuros, si el cambio afectase a todos ellos.? | E20: No aplica | H20: La Municipalidad inició el proceso de implementación en el presente año, y en lo que se lleva ejecutado del proceso esto no se ha presentado. | Q20: 1
B21: 42 | C21: 11 | D21: En la medida en que un cambio en una estimación contable de lugar a cambios en activos y pasivos, o se refiera a una partida de los activos netos/patrimonio, ¿Se reconoce ajustando el valor en libros de la correspondiente partida de activo, pasivo o activos netos/patrimonio en el periodo en que tiene lugar el cambio? | E21: No aplica | H21: La Municipalidad inició el proceso de implementación en el presente año, y en lo que se lleva ejecutado del proceso esto no se ha presentado. | Q21: 1
B22: 44 | C22: 12 | D22: ¿Revela la entidad la naturaleza e importe de cualquier cambio en una estimación contable que haya producido efectos en el periodo corriente, o que se espere vaya a producirlos en periodos futuros? | E22: No aplica | H22: La Municipalidad inició el proceso de implementación en el presente año, y en lo que se lleva ejecutado del proceso esto no se ha presentado. | Q22: 1
B23: 45 | C23: 13 | D23: ¿Revela la entidad cuando no se puede indicar el importe del efecto en periodos futuros debido a que la estimación es impracticable? | E23: No aplica | H23: La Municipalidad inició el proceso de implementación en el presente año, y en lo que se lleva ejecutado del proceso esto no se ha presentado. | Q23: 1
B24: 47 | C24: 14 | D24: ¿La entidad corrige los errores materiales de periodos anteriores, de forma retroactiva, en los primeros estados financieros formulados después de haberlos descubierto: (a) reexpresando la información comparativa para el periodo o periodos anteriores en los que se originó el error; (b) si el error ocurrió con anterioridad al periodo más antiguo para el que se presenta información, reexpresando los saldos iniciales de activos, pasivos y activos netos/patrimonio para dicho periodo? | E24: No aplica | H24: La Municipalidad inició el proceso de implementación en el presente año, y en lo que se lleva ejecutado del proceso esto no se ha presentado. | Q24: 1
B25: 48 | C25: 15 | D25: ¿Las políticas contables de la entidad prevén alguna limitación en la aplicación retrospectiva de correcciones de errores de períodos anteriores? | E25: Cumple | Q25: 1
B26: 49 | C26: 16 | D26: Cuando sea impracticable determinar los efectos que se derivan, en cada periodo específico, de un error sobre la información comparativa de uno o más periodos anteriores para los que se presente información ¿la entidad reexpresa los saldos iniciales de los activos, pasivos y activos netos/patrimonio para los periodos más antiguos en los cuales tal reexpresión retroactiva sea practicable (que podría también ser el propio periodo corriente)? | E26: No aplica | H26: La Municipalidad inició el proceso de implementación en el presente año, y en lo que se lleva ejecutado del proceso esto no se ha presentado. | Q26: 1
B27: 50 | C27: 17 | D27: Cuando sea impracticable determinar el efecto acumulado, al principio del periodo corriente, de un error sobre todos los periodos anteriores, ¿la entidad reexpresa la información comparativa corrigiendo el error de forma prospectiva, desde la fecha más remota en que sea posible hacerlo? | E27: No aplica | H27: La Municipalidad inició el proceso de implementación en el presente año, y en lo que se lleva ejecutado del proceso esto no se ha presentado. | Q27: 1
B28: 54 | C28: 18 | D28: Cuando se cometen errores, ¿la entidad revela?: | E28: No aplica | H28: La Municipalidad inició el proceso de implementación en el presente año, y en lo que se lleva ejecutado del proceso esto no se ha presentado. | Q28: 1
B29: Revelaciones | E29: No llenar | Q29: 0
B30: Cambios en políticas contables | E30: No llenar | Q30: 0
B31: 17 | C31: 19 | D31: La entidad cambia sus políticas contables sólo si tal cambio; | E31: No llenar | Q31: 0
B32: 17 | C32: 19 (a) | D32: (a) Es requerido por una NICSP o | E32: Cumple | H32: La Municipalidad inició el proceso de implementación en el presente año, y en lo que se lleva ejecutado del proceso esto no se ha presentado. | Q32: 1
B33: 17 | C33: 19 (b) | D33: (b) Cuando eso lleva a que los estados financieros suministren información más fiable y relevante sobre los efectos de las transacciones, otros eventos y condiciones que afecten a la situación financiera, el rendimiento financiero o los flujos de efectivo de la entidad. | E33: No aplica | H33: La Municipalidad inició el proceso de implementación en el presente año, y en lo que se lleva ejecutado del proceso esto no se ha presentado. | Q33: 1
B34: 27 | C34: 20 | D34: ¿Se revela la información cuando un cambio en una política contable se aplique retroactivamente ajustando los saldos iniciales de cada componente afectado de los activos netos/patrimonio para el periodo anterior más antiguo que se presente? | E34: No aplica | H34: La Municipalidad inició el proceso de implementación en el presente año, y en lo que se lleva ejecutado del proceso esto no se ha presentado. | Q34: 1
B35: 33 | C35: 21 | D35: ¿Se revela cuando la aplicación por primera vez de una NICSP (a) tenga efecto en el periodo corriente o en alguno anterior, (b) tendría tal efecto, salvo que fuera impracticable determinar el importe del ajuste, o pudiera tener un efecto sobre periodos futuros la siguiente información? | E35: No llenar | Q35: 0
B36: 33 | C36: 21 (a) | D36: (a) El título de la norma | E36: No aplica | H36: La Municipalidad inició el proceso de implementación en el presente año, y en lo que se lleva ejecutado del proceso esto no se ha presentado. | Q36: 1
B37: 33 | C37: 21 (b) | D37: (b) En su caso, que el cambio en la política contable se ha efectuado de acuerdo con sus disposiciones transitorias; | E37: No aplica | H37: La Municipalidad inició el proceso de implementación en el presente año, y en lo que se lleva ejecutado del proceso esto no se ha presentado. | Q37: 1
B38: 33 | C38: 21 (c) | D38: (c) La naturaleza en el cambio de la política contable | E38: No aplica | H38: La Municipalidad inició el proceso de implementación en el presente año, y en lo que se lleva ejecutado del proceso esto no se ha presentado. | Q38: 1
B39: 33 | C39: 21 (d) | D39: (d) En su caso, una descripción de las disposiciones transitorias | E39: No aplica | H39: La Municipalidad inició el proceso de implementación en el presente año, y en lo que se lleva ejecutado del proceso esto no se ha presentado. | Q39: 1
B40: 33 | C40: 21 (e) | D40: (e) En su caso, las disposiciones transitorias que podría tener efectos sobre períodos futuros; | E40: No aplica | H40: La Municipalidad inició el proceso de implementación en el presente año, y en lo que se lleva ejecutado del proceso esto no se ha presentado. | Q40: 1
B41: 33 | C41: 21 (f) | D41: (f) Para el período corriente y para cada período anterior del que se presente información, en la medida en que sea practicable, el importe del ajuste para cada línea de partida de los estados financieros afectados; | E41: No aplica | H41: La Municipalidad inició el proceso de implementación en el presente año, y en lo que se lleva ejecutado del proceso esto no se ha presentado. | Q41: 1
B42: 33 | C42: 21 (g) | D42: (g) El importe del ajuste relativo a períodos anteriores presentados, en la medida en que sea practicable; y | E42: No aplica | H42: La Municipalidad inició el proceso de implementación en el presente año, y en lo que se lleva ejecutado del proceso esto no se ha presentado. | Q42: 1
B43: 33 | C43: 21 (h) | D43: (h) Si la aplicación retroactiva no es práctica para un período anterior en particular, o para períodos anteriores a los presentados, las circunstancias que condujeron a la existencia de esa condición y una descripción de cómo y cuándo se aplicó el cambio en la política contable | E43: No aplica | H43: La Municipalidad inició el proceso de implementación en el presente año, y en lo que se lleva ejecutado del proceso esto no se ha presentado. | Q43: 1
B44: 33 | D44: Los estados financieros de períodos subsiguientes no necesitan repetir estas revelaciones. | E44: No llenar | Q44: 0
B45: 34 | C45: 22 | D45: ¿Se revela cuando un cambio voluntario en una política contable tenga efecto en el periodo corriente o en algún periodo anterior, tendría efecto en ese periodo si no fuera impracticable determinar el importe del ajuste, o podría tener efecto sobre periodos futuros la siguiente información? | E45: No llenar | Q45: 0
B46: 34 | C46: 22 (a) | D46: (a) La naturaleza en el cambio de la política contable | E46: No aplica | H46: La Municipalidad inició el proceso de implementación en el presente año, y en lo que se lleva ejecutado del proceso esto no se ha presentado. | Q46: 1
B47: 34 | C47: 22 (b) | D47: (b) Las razones por las que la aplicación de la nueva política contable suminsitra información más fiable y relevante, | E47: No aplica | H47: La Municipalidad inició el proceso de implementación en el presente año, y en lo que se lleva ejecutado del proceso esto no se ha presentado. | Q47: 1
B48: 34 | C48: 22 (c) | D48: (c) Para el período corriente y para cada período anterior del que se presente información, en la medida en que sea practicable, el importe del ajuste para cada línea de partida de los estados financieros afectados; | E48: No aplica | H48: La Municipalidad inició el proceso de implementación en el presente año, y en lo que se lleva ejecutado del proceso esto no se ha presentado. | Q48: 1
B49: 34 | C49: 22 (d) | D49: (d) El importe del ajuste relativo a períodos anteriores presentados, en la medida en que sea practicable; y | E49: No aplica | H49: La Municipalidad inició el proceso de implementación en el presente año, y en lo que se lleva ejecutado del proceso esto no se ha presentado. | Q49: 1
B50: 34 | C50: 22 (e) | D50: (e) Si la aplicación retroactiva no es práctica para un período anterior en particular, o para períodos anteriores a los presentados, las circunstancias que condujeron a la existencia de esa condición y una descripción de cómo y cuándo se aplicó el cambio en la política contable | E50: No aplica | H50: La Municipalidad inició el proceso de implementación en el presente año, y en lo que se lleva ejecutado del proceso esto no se ha presentado. | Q50: 1
B51: 34 | D51: Los estados financieros de períodos subsiguientes no necesitan repetir estas revelaciones. | E51: No llenar | Q51: 0
B52: 35 | C52: 23 | D52: Cuando una entidad no haya aplicado una nueva NICSP que habiendo sido emitida todavía no ha entrado en vigor se considera revelar lo siguiente: | E52: No llenar | Q52: 0
B53: 35 | C53: 23 (a) | D53: (a) Este hecho; | E53: No aplica | H53: La Municipalidad inició el proceso de implementación en el presente año, y en lo que se lleva ejecutado del proceso esto no se ha presentado. | Q53: 1
B54: 35 | C54: 23 (b) | D54: (b) información relevante, conocida o razonablemente estimada, para evaluar el posible impacto que la aplicación de la nueva Norma tendría sobre los estados financieros de la entidad en el periodo en que se aplique por primera vez. | E54: No aplica | H54: La Municipalidad inició el proceso de implementación en el presente año, y en lo que se lleva ejecutado del proceso esto no se ha presentado. | Q54: 1
B55: 36 | C55: 24 | D55: ¿Para cumplir con el parrafo 35 la entdad revela lo siguiente? | E55: No llenar | Q55: 0
B56: 36 | C56: 24 (a) | D56: (a) El título de la nueva NICSP | E56: No aplica | H56: La Municipalidad inició el proceso de implementación en el presente año, y en lo que se lleva ejecutado del proceso esto no se ha presentado. | Q56: 1
B57: 36 | C57: 24 (b) | D57: (b) La naturaleza del cambio o cambios inminentes en la política contable; | E57: No aplica | H57: La Municipalidad inició el proceso de implementación en el presente año, y en lo que se lleva ejecutado del proceso esto no se ha presentado. | Q57: 1
B58: 36 | C58: 24 (c) | D58: (c) La fecha en la cual es obligatoria la aplicación de la Norma, | E58: No aplica | H58: La Municipalidad inició el proceso de implementación en el presente año, y en lo que se lleva ejecutado del proceso esto no se ha presentado. | Q58: 1
B59: 36 | C59: 24 (d) | D59: (d) La fecha a partir de la que está previsto aplicar la Norma r primera vez; y | E59: No aplica | H59: La Municipalidad inició el proceso de implementación en el presente año, y en lo que se lleva ejecutado del proceso esto no se ha presentado. | Q59: 1
B60: 36 | C60: 24 (e) | D60: (e) Indistintamente: | E60: No llenar | Q60: 0
B61: 36 | C61: 24 (i) | D61: (i) una explicación del impacto esperado, derivado de la aplicación inicial de la Norma, sobre los estados financieros de la entidad; o | E61: No aplica | H61: La Municipalidad inició el proceso de implementación en el presente año, y en lo que se lleva ejecutado del proceso esto no se ha presentado. | Q61: 1
B62: 36 | C62: 24 (ii) | D62: (ii) si el impacto fuera desconocido o no pudiera ser estimado razonablemente, u na declaración de al efecto | E62: No aplica | H62: La Municipalidad inició el proceso de implementación en el presente año, y en lo que se lleva ejecutado del proceso esto no se ha presentado. | Q62: 1
B63: Totales | C63: =COUNT(C10:C62) -> 24 | E63: =+COUNTA(E10:E62)-COUNTIF($E$10:$E$62,"=No llenar") -> 42
B64: Preguntas pendientes de respuesta | E64: =+H66-E63 -> 0
F65: Reconocimiento y medición | G65: Revelaciones | H65: Total
E66: Número de ítems | F66: =+SUM(Q11:Q28) -> 18 | G66: =+SUM(Q31:Q62) -> 24 | H66: =+SUM(F66:G66) -> 42
E68: Ítems no aplicables | F68: =COUNTIF($E$11:$E$28,"=No aplica") -> 15 | G68: =(COUNTIF($E$31:$E$62,"=No aplica")) -> 23 | H68: =+SUM(F68:G68) -> 38
E70: ítems aplicables | F70: =+F66-F68 -> 3 | G70: =+G66-G68 -> 1 | H70: =+SUM(F70:G70) -> 4
E72: ítems cumplidos | F72: =COUNTIF($E$11:$E$28,"=Cumple") -> 2 | G72: =COUNTIF($E$31:$E$62,"=Cumple") -> 1 | H72: =+SUM(F72:G72) -> 3
E74: Ítems cumplidos parcialmente | F74: =COUNTIF($E$11:$E$28,"=Cumple Parcialmente") -> 1 | G74: =COUNTIF($E$31:$E$62,"=Cumple Parcialmente") -> 0 | H74: =+SUM(F74:G74) -> 1
E76: Ítems no cumplidos | F76: =COUNTIF($E$11:$E$28,"=No Cumple") -> 0 | G76: =COUNTIF($E$31:$E$62,"=No Cumple") -> 0 | H76: =+SUM(F76:G76) -> 0
E78: Porcentaje de aplicación | F78: =+IFERROR((F72+(F74*0.5))/F70,0) -> 0.8333333333 | G78: =+IFERROR((G72+(G74*0.5))/G70,0) -> 1 | H78: =+(F78*60%)+(G78*40%) -> 0.9
F80: Bajo | G80: Medio | H80: Alto
E81: Impacto | F81: =COUNTIF($F$11:$F$62,"Bajo") -> 0 | G81: =COUNTIF($F$11:$F$62,"Medio") -> 1 | H81: =COUNTIF($F$11:$F$62,"Alto") -> 0
F82: Bajo | G82: Medio | H82: Alto
E83: Esfuerzo | F83: =COUNTIF($G$11:$G$62,"Bajo") -> 0 | G83: =COUNTIF($G$11:$G$62,"Medio") -> 1 | H83: =COUNTIF($G$11:$G$62,"Alto") -> 0
B86: En caso de que la entidad marque NO CUMPLE en la norma o en su defecto se acoga a algun transitorio debe responder la siguiente pregunta y completar el plan de acción para cada una de las brechas identificadas:
B87: Responda con SI o NO
B88: La norma posee transitorios | E88: No
B90: La norma posee Planes de Acción | E90: Si
J91: PLAZO
B92: Número de párrafo | C92: Número pregunta | D92: Acciones para brechas | E92: Actividades de cumplimiento | F92: % de Avance Plan de acción | G92: Requerimientos | H92: Recursos | I92: Responsable | J92: Fecha de Inicio | K92: Fecha para Finalizar | L92: Fecha Actual | M92: Duración meses | N92: Meses Transcurridos | O92: Meses para finalizar actividad
B93: 9 | C93: 1 | D93: Concluir con el establecimiento de las politicas particulares aplicables a algun tipo de transacción, evento o condición, aplicando lo establecido en las Normas? | E93: 2 | F93: 0.9 | G93: Plan General Contabilidad Nacional, Manual Funcional Contable, Normativa emitida por la DCN, Asesoría Externa. | H93: Recurso Humano Recursos Financieros | I93: Comisión de NICSP, Contabilidad | J93: 2019-01-01 | K93: 2024-12-31 | L93: =NOW() -> 2024-07-26T09:10:52.190 | M93: =DATEDIF(J93,K93,"D")/30 -> 73.03333333 | N93: =DATEDIF(J93,L93,"D")/30 -> 67.76666667 | O93: =+M93-N93 -> 5.266666667
D98: =+"TOTAL DE BRECHAS (NO CUMPLE-CUMPLE PARCIALMENTE) = "&COUNTA(D93:D95) -> TOTAL DE BRECHAS (NO CUMPLE-CUMPLE PARCIALMENTE) = 1 | E98: =+COUNTA(D93:D95) -> 1
D100: PORCENTAJE PROMEDIO DE AVANCE PLANES ACCIÓN | F100: =+IFERROR(AVERAGE(F93:F95),0) -> 0.9
B102: JERARCA MAXIMO
D103: NOMBRE | E103: FIRMA
B105: DIRECTOR ADMINISTRATIVO Y FINANCIERO
D106: NOMBRE | E106: FIRMA
B108: CONTADOR
D109: NOMBRE | E109: FIRMA

Sheet NICSP 4
B2: NICSP 4
B3: Efectos de las Variaciones en las Tasas de Cambio de la Moneda Extranjera
B4: Objetivo:Prescribir cómo se incorporan, en los estados financieros de una entidad, las transacciones en moneda extranjera y los negocios en el extranjero, y cómo convertir los estados financieros a la moneda de presentación elegida.
B5: La norma es aplicable en la entidad (Indique Si o No) | E5: Si
B7: Complete cada una de las preguntas según corresponda con "No aplica", "Cumple", "No Cumple" o "Cumple Parcialmente".
B8: Número de párrafo | C8: Número pregunta | D8: Requisito de la Norma | E8: Respuesta | F8: Impacto | G8: Esfuerzo | H8: Observaciones
B10: Reconocimiento y medición | E10: No llenar | Q10: 0
B11: 20 | C11: 1 | D11: ¿ La entidad convierte las partidas en moneda extranjera a la moneda funcional, e informa de los efectos de esta conversión? | E11: Cumple | Q11: 1
B12: 23 en adelante | C12: 2 | D12: ¿La entidad tiene actualmente una política contable para el reconocimiento y la medición de los efectos de los cambios en las divisas en los estados financieros? | E12: No Cumple | F12: Medio | G12: Medio | Q12: 1
B13: 26 | C13: 3 | D13: ¿Se presentan el efecto de las variaciones de las tasas de cambio sobre el efectivo y los equivalentes al efectivo, mantenidos o adeudados en moneda extranjera en el estado de flujos de efectivo para permitir la conciliación entre el efectivo y equivalentes al efectivo al principio y al final del periodo? | E13: No aplica | Q13: 1
B14: 24 | C14: 4 | D14: ¿Se registra toda transacción en moneda extranjera en el momento de su reconocimiento inicial, utilizando la moneda funcional, al importe en moneda extranjera, de la tasa de cambio de contado a la fecha de la transacción entre la moneda funcional y la moneda extranjera? | E14: Cumple | Q14: 1
B15: 27 | C15: 5 | D15: En cada fecha de presentación de los estados financieros posteriores: ¿ las partidas monetarias en moneda extranjera se convierten utilizando la tasa de cambio de cierre? | E15: Cumple Parcialmente | F15: Medio | G15: Medio | Q15: 1
B16: 27 | C16: 6 | D16: En cada fecha de presentación de los estados financieros posteriores: ¿las partidas no monetarias en moneda extranjera, que se midan en términos de costo histórico, se convierten utilizando la tasa de cambio de la fecha de la transacción? | E16: No aplica | Q16: 1
B17: 27 | C17: 7 | D17: En cada fecha de presentación de los estados financieros posteriores: ¿las partidas no monetarias que se midan al valor razonable en una moneda extranjera, se convertirán utilizando las tasas de cambio de la fecha en que fue determinado? | E17: No aplica | Q17: 1
B18: 30 | C18: 8 | D18: Cuando se disponga de varios tipos de cambio ¿se utiliza aquél en el que pudieran ser liquidados los flujos futuros de efectivo representados por la transacción o el saldo considerado, si tales flujos hubieran ocurrido en la fecha de la medición? | E18: Cumple | Q18: 1
B19: 30 | C19: 9 | D19: Cuando se haya perdido temporalmente la posibilidad de negociar dos monedas en condiciones de mercado, ¿se utiliza la tasa primera que se fije en una fecha posterior, en la que se puedan negociar las divisas en las condiciones citadas? | E19: No aplica | Q19: 1
B20: 32 | C20: 10 | D20: ¿Se reconocen en el resultado (ahorro o desahorro) del periodo en el que aparezcan las diferencias de cambio que surjan (a) al liquidar las partidas monetarias o (b) al convertir las partidas monetarias a tipos diferentes de los que se utilizaron para su reconocimiento inicial, ya se hayan producido durante el periodo o en estados financieros previos ? | E20: Cumple | Q20: 1
B21: 35 | C21: 11 | D21: Cuando se reconoce directamente en los activos netos/patrimonio una pérdida o ganancia derivada de una partida no monetaria, cualquier diferencia de cambio, componente de esa pérdida o ganancia, ¿se reconoce directamente en los activos netos/patrimonio? | E21: No aplica | Q21: 1
B22: 35 | C22: 12 | D22: Cuando la pérdida o ganancia, derivada de una partida no monetaria, sea reconocida en el resultado (ahorro o desahorro), cualquier diferencia de cambio, componente de esta ganancia o pérdida, ¿se reconoce en el resultado (ahorro o desahorro)? | E22: Cumple | Q22: 1
B23: 37 | C23: 13 | D23: Las diferencias de cambio surgidas en una partida monetaria que forme parte de la inversión neta en un negocio extranjero de la entidad que informa , ¿Se reconocen en el resultado (ahorro o desahorro) de los estados financieros separados de la entidad que informa, o bien en los estados financieros individuales del negocio en el extranjero, según resulte apropiado? | E23: No aplica | Q23: 1
B24: 38 | C24: 14 | D24: Cuando una partida monetaria forme parte de la inversión neta realizada por la entidad que informa en un negocio en el extranjero, y esté denominada en la moneda funcional de la entidad que informa ¿ la diferencia de cambio, por la situación descrita , aparece en los estados financieros separados de la entidad que informa? | E24: No aplica | Q24: 1
B25: 38 | C25: 15 | D25: Cuando una partida monetaria forme parte de la inversión neta realizada por la entidad que informa en un negocio en el extranjero y se denomina en una moneda diferente a la moneda funcional de la entidad que informa o del negocio en el extranjero, y surge una diferencia de cambio en los estados financieros separados de la entidad que informa y en los estados financieros individuales del negocio en el extranjero. ¿Estas diferencias de cambio se reclasifican, como un componente separado de los activos netos/patrimonio, en los estados financieros que contienen al negocio en el extranjero y a la entidad que informa? | E25: No aplica | Q25: 1
B26: 39 | C26: 16 | D26: Cuando la entidad lleve sus registros y libros contables en una moneda diferente de su moneda funcional, y proceda a elaborar sus estados financieros, ¿convierte todos los importes a la moneda funcional ? | E26: No aplica | Q26: 1
B27: 40 | C27: 17 | D27: Cuando se produzca un cambio de moneda funcional en la entidad, ¿ se aplican los procedimientos de conversión que sean aplicables a la nueva moneda funcional de forma prospectiva, desde la fecha del cambio? | E27: No aplica | Q27: 1
B28: 44 | C28: 18 | D28: Si la moneda de presentación difiere de la moneda funcional de la entidad, ¿convierte su rendimiento financiero y su situación financiera a la moneda de presentación elegida utilizando: (a) Tasa de cambio de cierre en los activos y pasivos para cada estado de situación financiera (b) Tasas de cambio de la fecha de cada transacción en los ingresos y gastos de cada estado de rendimiento financiero (c) Como un componente separado de los activos netos/patrimonio todas las diferencias de cambio que se produzcan como resultado de lo anterior? | E28: No aplica | Q28: 1
B29: 48 | C29: 19 | D29: El rendimiento financiero y la situación financiera de una entidad, cuya moneda funcional no pertenece a una economía hiperinflacionaria, ¿se convertirán a una moneda de presentación diferente utilizando los siguientes procedimientos: todos los importes se convierten a la tasa de cambio de cierre correspondiente a la fecha del estado de situación financiera más reciente? | E29: No aplica | Q29: 1
B30: 49 | C30: 20 | D30: ¿Cuando la moneda funcional de la entidad no se corresponda con la de una economía hiperinflacionaria, reexpresará sus estados financieros antes de aplicar el método de conversión? | E30: No aplica | Q30: 1
B31: 50 | C31: 21 | D31: ¿La incorporación del rendimiento financiero y de la situación financiera de un negocio en el extranjero a los de la entidad que informa, sigue los procedimientos normales de consolidación? | E31: No aplica | Q31: 1
B32: 54 | C32: 22 | D32: Cuando haya diferencia en la fecha de presentación entre la entidad que informa y el negocio en el extranjero, ¿los activos y pasivos del mismo se expresan según la tasa de cambio de la fecha de presentación del negocio en el extranjero? | E32: No aplica | Q32: 1
B33: 57 | C33: 23 | D33: Disposición de una entidad extranjera - En la disposición de una entidad extranjera, es el monto acumulado de las diferencias de cambio que se han diferido en un componente separado del activo neto / patrimonio neto relacionado con esa operación extranjera reconocida en superávit o déficit cuando la ganancia o pérdida ¿En la eliminación se reconoce? | E33: No aplica | Q33: 1
B34: 66 | C34: 24 | D34: Cuando la entidad presente sus estados financieros, u otra información financiera, en una moneda diferente de su moneda funcional y de su moneda de presentación, y no cumple los requerimientos:¿ identifica claramente esta información como complementaria, para distinguirla de la información que cumple con las NICSP? | E34: No aplica | Q34: 1
B35: 66 | C35: 25 | D35: Cuando la entidad presente sus estados financieros, u otra información financiera, en una moneda diferente de su moneda funcional y de su moneda de presentación, y no cumple los requerimientos:¿revela la moneda en que se presenta esta información complementaria? | E35: No aplica | Q35: 1
B36: 66 | C36: 26 | D36: Cuando la entidad presente sus estados financieros, u otra información financiera, en una moneda diferente de su moneda funcional y de su moneda de presentación, y no cumple los requerimientos, revela la moneda funcional de la entidad, así como el método de conversión utilizado para confeccionar la información complementaria? | E36: No aplica | Q36: 1
B37: Revelaciones | E37: No llenar | Q37: 0
B38: 60 | D38: "En los párrafos 62 y 64 a 66, las referencias a la "moneda funcional" se aplican, en el caso de una entidad económica, a la moneda funcional de la controlador" | E38: No llenar | Q38: 0
B39: 61 | C39: 27 | D39: La entidad revela lo siguiente: | E39: No llenar | Q39: 0
B40: 61 | C40: 27 (a) | D40: (a) el importe de las diferencias de cambio reconocidas en el resultado (ahorro o desahorro), con excepción de las procedentes de los instrumentos financieros medidos al valor razonable con cambios en los resultados, de acuerdo con la NICSP 29; y | E40: No Cumple | F40: Medio | G40: Medio | Q40: 1
B41: 61 | C41: 27 (b) | D41: (b) las diferencias de cambio netas clasificadas como un componente separado de los activos netos/patrimonio, así como una conciliación entre los importes de estas diferencias al principio y al final del periodo. | E41: No Cumple | F41: Medio | G41: Medio | Q41: 1
B42: 62 | C42: 28 | D42: Si la moneda de presentación difiere de la moneda funcional de la entidad revela lo siguiente | E42: No llenar | Q42: 0
B43: 62 | C43: 28 (a) | D43: (a) El hecho | E43: No aplica | Q43: 1
B44: 62 | C44: 28 (b) | D44: (b) La moneda funcional | E44: No aplica | Q44: 1
B45: 62 | C45: 28 (c) | D45: (c) La razón de utilizar una moneda de presentación diferente | E45: No aplica | Q45: 1
B46: 63 | C46: 29 | D46: ¿Cuando se haya producido un cambio en la moneda funcional, ya sea de la entidad que informa o de algún negocio significativo en el extranjero, se revela lo siguiente? | E46: No llenar | Q46: 0
B47: 63 | C47: 29 (a) | D47: (a) El hecho | E47: No aplica | Q47: 1
B48: 63 | C48: 29 (b) | D48: (b) La razón por la cual se realiza el cambio | E48: No aplica | Q48: 1
B49: 64 | C49: 30 | D49: Cuando una entidad presente sus estados financieros en una moneda que sea diferente de su moneda funcional, señalará que sus estados financieros son conformes con las NICSP, sólo si cumplen con todos los requerimientos de cada Norma que sea de aplicación, incluyendo las que se refieren al método de conversión establecido en los párrafos 44 y 48. | E49: No aplica | Q49: 1
B50: 66 | C50: 31 | D50: Cuando una entidad presente sus estados financieros, u otra información financiera, en una moneda diferente de su moneda funcional y de su moneda de presentación, y no cumple los requerimietos del párrafo 64: | E50: No llenar | Q50: 0
B51: 66 | C51: 31 (a) | D51: (a) Identifica claramente esta información como complementaria, para distinguirla de la información que cumple con las NICSP; | E51: No aplica | Q51: 1
B52: 66 | C52: 31 (b) | D52: (b) Revela la moneda en que se presenta esta información complementaria; y | E52: No aplica | Q52: 1
B53: 66 | C53: 31 (c) | D53: (c) Revela la moneda funcional de la entidad, así como el método de conversión utilizado para confeccionar la información complementaria | E53: No aplica | Q53: 1
B54: Totales | C54: =COUNT(C11:C53) -> 31 | E54: =+COUNTA(E10:E53)-COUNTIF($E$10:$E$53,"=No llenar") -> 37
B55: Preguntas pendientes de respuesta | E55: =+H57-E54 -> 0
F56: Reconocimiento y medición | G56: Revelaciones | H56: Total
E57: Número de ítems | F57: =+SUM(Q11:Q36) -> 26 | G57: =+SUM(Q38:Q53) -> 11 | H57: =+SUM(F57:G57) -> 37
E59: Ítems no aplicables | F59: =COUNTIF($E$11:$E$36,"=No aplica") -> 19 | G59: =(COUNTIF($E$38:$E$53,"=No aplica")) -> 9 | H59: =+SUM(F59:G59) -> 28
E61: ítems aplicables | F61: =+F57-F59 -> 7 | G61: =+G57-G59 -> 2 | H61: =+SUM(F61:G61) -> 9
E63: ítems cumplidos | F63: =COUNTIF($E$11:$E$36,"=Cumple") -> 5 | G63: =COUNTIF($E$38:$E$53,"=Cumple") -> 0 | H63: =+SUM(F63:G63) -> 5
E65: Ítems cumplidos parcialmente | F65: =COUNTIF($E$11:$E$36,"=Cumple Parcialmente") -> 1 | G65: =COUNTIF($E$38:$E$53,"=Cumple Parcialmente") -> 0 | H65: =+SUM(F65:G65) -> 1
E67: Ítems no cumplidos | F67: =COUNTIF($E$11:$E$36,"=No Cumple") -> 1 | G67: =COUNTIF($E$38:$E$53,"=No Cumple") -> 2 | H67: =+SUM(F67:G67) -> 3
E69: Porcentaje de aplicación | F69: =+IFERROR((F63+(F65*0.5))/F61,0) -> 0.7857142857 | G69: =+IFERROR((G63+(G65*0.5))/G61,0) -> 0 | H69: =+(F69*60%)+(G69*40%) -> 0.4714285714
F71: Bajo | G71: Medio | H71: Alto
E72: Impacto | F72: =COUNTIF($F$11:$F$53,"Bajo") -> 0 | G72: =COUNTIF($F$11:$F$53,"Medio") -> 4 | H72: =COUNTIF($F$11:$F$53,"Alto") -> 0
F73: Bajo | G73: Medio | H73: Alto
E74: Esfuerzo | F74: =COUNTIF($G$11:$G$53,"Bajo") -> 0 | G74: =COUNTIF($G$11:$G$53,"Medio") -> 4 | H74: =COUNTIF($G$11:$G$53,"Alto") -> 0
B77: En caso de que la entidad marque NO CUMPLE en la norma o en su defecto se acoga a algun transitorio debe responder la siguiente pregunta y completar el plan de acción para cada una de las brechas identificadas:
B78: Responda con SI o NO
B79: La norma posee transitorios
B81: La norma posee Planes de Acción
J82: PLAZO
B83: Número de párrafo | C83: Número pregunta | D83: Acciones para brechas | E83: Actividades de cumplimiento | F83: % de Avance Plan de acción | G83: Requerimientos | H83: Recursos | I83: Responsable | J83: Fecha de Inicio | K83: Fecha para Finalizar | L83: Fecha Actual | M83: Duración meses | N83: Meses Transcurridos | O83: Meses para finalizar actividad
B84: 23 en adelante | C84: 2 | D84: Emitir las políticas contables especificas para el reconocimiento y la medición de los efectos de los cambios en las divisas en los estados financieros | E84: 1 | F84: 0 | G84: Plan General Contabilidad Nacional, Manual Funcional Contable, Normativa emitida por la DCN, Asesoría Externa. | H84: Recurso Humano Recursos Financieros | I84: Comisión NICSP, Con el apoyo de: Contabilidad, Alcaldia, Concejo | J84: 2023-01-01 | K84: 2024-12-31 | L84: =NOW() -> 2024-07-26T09:10:52.190 | M84: =DATEDIF(J84,K84,"D")/30 -> 24.33333333 | N84: =DATEDIF(J84,L84,"D")/30 -> 19.06666667 | O84: =+M84-N84 -> 5.266666667
B85: 27 | C85: 5 | D85: Poner en operación en cada fecha de presentación de los estados financieros la práctica de que las partidas monetarias y no moneratarias en moneda extranjera se convierten utilizando la tasa de cambio de cierre. | E85: 1 | F85: 0 | G85: Plan General Contabilidad Nacional, Manual Funcional Contable, Normativa emitida por la DCN, Asesoría Externa. | H85: Recurso Humano Recursos Financieros | I85: Contabilidad, Con el apoyo de: Unidades de Registro Primario | J85: 2023-01-01 | K85: 2024-12-31 | L85: =NOW() -> 2024-07-26T09:10:52.190 | M85: =DATEDIF(J85,K85,"D")/30 -> 24.33333333 | N85: =DATEDIF(J85,L85,"D")/30 -> 19.06666667 | O85: =+M85-N85 -> 5.266666667
B86: 61 | C86: 27 (a) | D86: Reconocer el importe de las diferencias de cambio en el resultado (ahorro o desahorro), con excepción de las procedentes de los instrumentos financieros medidos al valor razonable con cambios en los resultado. | E86: 1 | F86: 0 | G86: Plan General Contabilidad Nacional, Manual Funcional Contable, Normativa emitida por la DCN, Asesoría Externa. | H86: Recurso Humano Recursos Financieros | I86: Contabilidad, Con el apoyo de: Unidades de Registro Primario | J86: 2023-01-01 | K86: 2024-12-31 | L86: =NOW() -> 2024-07-26T09:10:52.190 | M86: =DATEDIF(J86,K86,"D")/30 -> 24.33333333 | N86: =DATEDIF(J86,L86,"D")/30 -> 19.06666667
B87: 61 | C87: 27 (b) | D87: Revelar las diferencias de cambio netas clasificadas como un componente separado de los activos netos/patrimonio, así como una conciliación entre los importes de estas diferencias al principio y al final del periodo. | E87: 1 | F87: 0 | G87: Plan General Contabilidad Nacional, Manual Funcional Contable, Normativa emitida por la DCN, Asesoría Externa. | H87: Recurso Humano Recursos Financieros | I87: Contabilidad, Con el apoyo de: Unidades de Registro Primario | J87: 2023-01-01 | K87: 2024-12-31 | L87: 2024-07-26T09:10:52.190 | M87: =DATEDIF(J87,K87,"D")/30 -> 24.33333333 | N87: =DATEDIF(J87,L87,"D")/30 -> 19.06666667 | O87: =+M87-N87 -> 5.266666667
D90: =+"TOTAL DE BRECHAS (NO CUMPLE-CUMPLE PARCIALMENTE) = "&COUNTA(D84:D87) -> TOTAL DE BRECHAS (NO CUMPLE-CUMPLE PARCIALMENTE) = 4 | E90: =+COUNTA(D84:D87) -> 4
D92: PORCENTAJE PROMEDIO DE AVANCE PLANES ACCIÓN | F92: =+IFERROR(AVERAGE(F84:F87),0) -> 0
B94: JERARCA MAXIMO
D95: NOMBRE | E95: FIRMA
B97: DIRECTOR ADMINISTRATIVO Y FINANCIERO
D98: NOMBRE | E98: FIRMA
B100: CONTADOR
D101: NOMBRE | E101: FIRMA

Sheet NICSP 5
B2: NICSP 5
B3: Costos por Préstamos
B4: Objetivo: Prescribir el tratamiento contable de los costos por préstamos. La Norma establece, como regla general, el reconocimiento inmediato como gasto de los costos por préstamos. No obstante, la Norma permite, como tratamiento alternativo permitido, la capitalización de los costos por préstamos que sean directamente imputables a la adquisición, construcción, o producción de un activo apto.
B5: La norma es aplicable en la entidad (Indique Si o No) | E5: Si
B7: Complete cada una de las preguntas según corresponda con "No aplica", "Cumple", "No Cumple" o "Cumple Parcialmente".
B8: Número de párrafo | C8: Número pregunta | D8: Requisito de la Norma | E8: Respuesta | F8: Impacto | G8: Esfuerzo | H8: Observaciones
B10: Reconocimiento y medición | E10: No llenar | Q10: 0
B11: 5 en adelante | C11: 1 | D11: ¿Tiene la entidad una política contable actual para los costos por préstamos? | E11: Cumple | Q11: 1
B12: 5 | C12: 2 | D12: ¿Define la entidad los costos por préstamos como “intereses y otros gastos incurridos por una entidad en relación con las operaciones de endeudamiento”? | E12: Cumple | Q12: 1
B13: 14 | C13: 3 | D13: Bajo el tratamiento de referencia, ¿los costos por préstamos se reconocen como gastos del periodo en que se incurre en ellos, con independencia de los activos a los que fuesen aplicables? | E13: Cumple | Q13: 1
B14: 17 | C14: 4 | D14: Bajo el tratamiento alternativo: ¿los costos por intereses que sean directamente atribuibles a la adquisición, construcción o producción de un activo apto se capitalizan como parte del costo de dicho activo? | E14: Cumple | Q14: 1
B15: Costos por préstamos – Tratamiento alternativo permitido | E15: No llenar | Q15: 0
B16: 18 | C16: 5 | D16: ¿Las políticas contables de la entidad requieren la capitalización de los costos de endeudamiento que son directamente atribuibles a la adquisición, construcción o producción de un activo que califica como parte del costo de ese activo (tratamiento alternativo permitido)? | E16: Cumple | Q16: 1
B17: 20 | C17: 6 | D17: Si la entidad ha adoptado el tratamiento alternativo, ¿dicho tratamiento se aplica de manera coherente a todos los costos por préstamos que sean directamente atribuibles a la adquisición, construcción, o producción de todos los activos aptos de la entidad? | E17: No aplica | H17: La Municipalidad no ha suscrito préstamos con estas caracteristicas. | Q17: 1
B18: 23 | C18: 7 | D18: En la medida que los fondos se hayan tomado prestados específicamente con el propósito de obtener un activo apto, ¿el importe de los costos por intereses susceptibles de capitalización en ese activo se determina según los costos reales incurridos por tales préstamos durante el periodo, menos los rendimientos conseguidos por la colocación de tales fondos en inversiones temporales? | E18: No aplica | H18: La Municipalidad no ha suscrito préstamos con estas caracteristicas. | Q18: 1
B19: 25 | C19: 8 | D19: ¿Es la tasa de capitalización el promedio ponderado de los costos por préstamos aplicables a los préstamos de la entidad que están pendientes durante el período, aparte de los préstamos hechos específicamente con el propósito de obtener un activo que califique? ¿El monto de los costos de endeudamiento capitalizados durante un período no excede el monto de los costos de endeudamiento incurridos durante ese período? | E19: No aplica | H19: Este requerimiemto no le aplica a la Municipalidad. | Q19: 1
B20: 26 | C20: 9 | D20: Cuando una entidad controladora obtenga fondos provenientes de préstamos que se trasladan a una entidad controlada, sin asignarle costos por préstamos, o asignándole solo parte de éstos, como entidad controlada capitaliza únicamente aquellos costos por préstamos en que ella misma haya incurrido? | E20: No aplica | H20: Este requerimiemto no le aplica a la Municipalidad. | Q20: 1
B21: 30 | C21: 10 | D21: ¿Cuando el importe actual en libros o el importe final del activo apto sea mayor que su importe recuperable, el importe en libros se disminuye o se da de baja de acuerdo con las exigencias de la NICSP 21? | E21: No aplica | H21: Este requerimiemto no le aplica a la Municipalidad. | Q21: 1
B22: 31 | C22: 11 | D22: ¿La capitalización de los costos por intereses como parte del costo de un activo apto si inicia cuando: (a) se haya incurrido en desembolsos con relación al activo; (b) se haya incurrido en costos por préstamos; y (c) se estén llevando a cabo las actividades necesarias para preparar el activo para su uso deseado o para su venta.? | E22: No aplica | H22: Este requerimiemto no le aplica a la Municipalidad. | Q22: 1
B23: 34 | C23: 12 | D23: ¿La capitalización de los costos por préstamos se suspende durante los periodos en los que se interrumpe el desarrollo de actividades, si éstos se extienden de manera significativa en el tiempo? | E23: No aplica | H23: Este requerimiemto no le aplica a la Municipalidad. | Q23: 1
B24: 36 | C24: 13 | D24: ¿La capitalización de los costos por intereses se finaliza cuando se han completado sustancialmente todas las actividades necesarias para preparar el activo apto para su utilización deseada o para su venta? | E24: No aplica | H24: Este requerimiemto no le aplica a la Municipalidad. | Q24: 1
B25: Revelaciones | E25: No llenar | Q25: 0
B26: 16 | C26: 14 | D26: ¿Se revela información sobre las políticas y métodos contables adoptados para los costos por intereses en los Estados Financieros? | E26: Cumple | Q26: 1
B27: 40 | C27: 15 | D27: ¿Los estados financieros revelan la siguiente información? | E27: No llenar
B28: 40 | C28: 15 (a) | D28: (a) las políticas contables adoptadas con relación a los costos por préstamos; | E28: Cumple | Q28: 1
B29: 40 | C29: 15 (b) | D29: (b) el importe de los costos por préstamos capitalizados durante el periodo; y | E29: No aplica | H29: Este requerimiemto no le aplica a la Municipalidad. | Q29: 1
B30: 40 | C30: 15 (c) | D30: (c) la tasa de capitalización utilizada para determinar el importe de los costos por préstamos susceptibles de capitalización (si ha sido necesario aplicar una tasa de capitalización a los fondos obtenidos mediante un endeudamiento centralizado). | E30: No aplica | H30: Este requerimiemto no le aplica a la Municipalidad. | Q30: 1
B31: Totales | C31: =COUNT(C11:C30) -> 15 | E31: =+COUNTA(E10:E30)-COUNTIF($E$10:$E$30,"=No llenar") -> 17
B32: Preguntas pendientes de respuesta | E32: =+H34-E31 -> 0
F33: Reconocimiento y medición | G33: Revelaciones | H33: Total
E34: Número de ítems | F34: =+SUM(Q11:Q24) -> 13 | G34: =+SUM(Q26:Q30) -> 4 | H34: =+SUM(F34:G34) -> 17
E36: Ítems no aplicables | F36: =COUNTIF($E$11:$E$24,"=No aplica") -> 8 | G36: =(COUNTIF($E$26:$E$30,"=No aplica")) -> 2 | H36: =+SUM(F36:G36) -> 10
E38: ítems aplicables | F38: =+F34-F36 -> 5 | G38: =+G34-G36 -> 2 | H38: =+SUM(F30:G30) -> 0
E40: ítems cumplidos | F40: =COUNTIF($E$11:$E$24,"=Cumple") -> 5 | G40: =COUNTIF($E$26:$E$30,"=Cumple") -> 2 | H40: =+SUM(F40:G40) -> 7
E42: Ítems cumplidos parcialmente | F42: =COUNTIF($E$11:$E$24,"=Cumple Parcialmente") -> 0 | G42: =COUNTIF($E$26:$E$30,"=Cumple Parcialmente") -> 0 | H42: =+SUM(F42:G42) -> 0
E44: Ítems no cumplidos | F44: =COUNTIF($E$11:$E$24,"=No Cumple") -> 0 | G44: =COUNTIF($E$26:$E$30,"=No Cumple") -> 0 | H44: =+SUM(F44:G44) -> 0
E46: Porcentaje de aplicación | F46: =+IFERROR((F40+(F42*0.5))/F38,0) -> 1 | G46: =+IFERROR((G40+(G42*0.5))/G38,0) -> 1 | H46: =+(F46*60%)+(G46*40%) -> 1
F48: Bajo | G48: Medio | H48: Alto
E49: Impacto | F49: =COUNTIF($F$11:$F$30,"Bajo") -> 0 | G49: =COUNTIF($F$11:$F$30,"Medio") -> 0 | H49: =COUNTIF($F$11:$F$30,"Alto") -> 0
F50: Bajo | G50: Medio | H50: Alto
E51: Esfuerzo | F51: =COUNTIF($G$11:$G$30,"Bajo") -> 0 | G51: =COUNTIF($G$11:$G$30,"Medio") -> 0 | H51: =COUNTIF($G$11:$G$30,"Alto") -> 0
B54: En caso de que la entidad marque NO CUMPLE en la norma o en su defecto se acoga a algun transitorio debe responder la siguiente pregunta y completar el plan de acción para cada una de las brechas identificadas:
B55: Responda con SI o NO
B56: La norma posee transitorios
B58: La norma posee Planes de Acción
J59: PLAZO
B60: Número de párrafo | C60: Número pregunta | D60: Acciones para brechas | E60: Actividades de cumplimiento | F60: % de Avance Plan de acción | G60: Requerimientos | H60: Recursos | I60: Responsable | J60: Fecha de Inicio | K60: Fecha para Finalizar | L60: Fecha Actual | M60: Duración meses | N60: Meses Transcurridos | O60: Meses para finalizar actividad
D64: =+"TOTAL DE BRECHAS (NO CUMPLE-CUMPLE PARCIALMENTE) = "&COUNTA(D61:D61) -> TOTAL DE BRECHAS (NO CUMPLE-CUMPLE PARCIALMENTE) = 0 | E64: =+COUNTA(D61:D61) -> 0
D66: PORCENTAJE PROMEDIO DE AVANCE PLANES ACCIÓN | F66: =+IFERROR(AVERAGE(F61:F61),0) -> 0
B68: JERARCA MAXIMO
D69: NOMBRE | E69: FIRMA
B71: DIRECTOR ADMINISTRATIVO Y FINANCIERO
D72: NOMBRE | E72: FIRMA
B74: CONTADOR
D75: NOMBRE | E75: FIRMA

Sheet NICSP 9
B2: NICSP 9
B3: Ingresos Ordinarios Provenientes de Transacciones de Intercambio+B62
B4: Objetivo: Establecer el tratamiento contable de los ingresos surgidos de las transacciones y eventos con contraprestación
B5: La norma es aplicable en la entidad (Indique Si o No) | E5: Si
B7: Complete cada una de las preguntas según corresponda con "No aplica", "Cumple", "No Cumple" o "Cumple Parcialmente".
B8: Número de párrafo | C8: Número pregunta | D8: Requisito de la Norma | E8: Respuesta | F8: Impacto | G8: Esfuerzo | H8: Observaciones
B10: Reconocimiento y medición | E10: No llenar | Q10: 0
B11: 14 | C11: 1 | D11: ¿La medición de los ingresos se hace utilizando el valor razonable de la contrapartida, recibida o por recibir, derivada de los mismos teniendo en cuenta el importe de cualquier descuento, bonificación o rebaja comercial que la entidad pueda otorgar? | E11: Cumple | Q11: 1
B12: 19 | C12: 2 | D12: Reconocimiento de ingresos por la prestación de servicios: cuando el resultado de una transacción que implica la prestación de servicios se puede estimar de manera confiable, ¿los ingresos asociados con la transacción se reconocen por referencia a la finalización de la transacción en la fecha de reporte? | E12: Cumple | Q12: 1
B13: 21 | C13: 3 | D13: ¿Los ingresos se reconocen sólo cuando sea probable que la entidad obtenga los beneficios o potencial de servicio asociados con la transacción? | E13: Cumple | Q13: 1
B14: 24 | C14: 4 | D14: En el caso de que los servicios se presten a través de un número indeterminado de actos, en un plazo especificado, ¿los ingresos se reconocen de forma lineal en ese plazo, a menos que haya evidencia de que otro método representa mejor el porcentaje de terminación? | E14: Cumple | Q14: 1
B15: 26 | C15: 5 | D15: Cuando (a) el resultado final de una transacción no pueda estimarse de forma fiable, y (b) no sea probable que se recuperen tampoco los costos incurridos en la misma, ¿no se reconocen ingresos, pero se reconocen los costos incurridos como un gasto? | E15: Cumple | Q15: 1
B16: 25 | C16: 6 | D16: Cuando el resultado de una transacción, que implique la prestación de servicios, no pueda ser estimado de forma fiable, los ingresos correspondientes ¿Se reconocen como tales sólo en la cuantía de los gastos reconocidos que se consideren recuperables? | E16: No aplica | H16: A la fecha este tipo de transacción no se ha presentado en la Municipalidad. | Q16: 1
B17: 28 | C17: 7 | D17: ¿Los ingresos procedentes de la venta de bienes son reconocidos y registrados en los estados financieros cuando la entidad ha transferido al comprador los riesgos y ventajas, de tipo significativo, derivados de la propiedad de los bienes? | E17: No aplica | H17: A la fecha este tipo de transacción no se ha presentado en la Municipalidad. | Q17: 1
B18: 28 | C18: 8 | D18: ¿Los ingresos procedentes de la venta de bienes son reconocidos y registrados en los estados financieros cuando la entidad no conserva para sí ninguna implicación en la gestión corriente de los bienes vendidos, en el grado usualmente asociado con la propiedad, ni retiene el control efectivo sobre los mismos ? | E18: No aplica | H18: A la fecha este tipo de transacción no se ha presentado en la Municipalidad. | Q18: 1
B19: 28 | C19: 9 | D19: ¿Los ingresos procedentes de la venta de bienes son reconocidos y registrados en los estados financieros cuando sea posible que la entidad reciba los beneficios económicos o potencial de servicio asociados con la transacción? | E19: No aplica | H19: A la fecha este tipo de transacción no se ha presentado en la Municipalidad. | Q19: 1
B20: 28 | C20: 10 | D20: ¿Los ingresos procedentes de la venta de bienes son reconocidos y registrados en los estados financieros cuando el importe de los ingresos puede ser medido con fiabilidad? | E20: No aplica | H20: A la fecha este tipo de transacción no se ha presentado en la Municipalidad. | Q20: 1
B21: 28 | C21: 11 | D21: ¿Los ingresos procedentes de la venta de bienes son reconocidos y registrados en los estados financieros cuando los costos incurridos, o por incurrir, en relación con la transacción pueden ser medidos con fiabilidad? | E21: No aplica | H21: A la fecha este tipo de transacción no se ha presentado en la Municipalidad. | Q21: 1
B22: 33 | C22: 12 | D22: Reconocimiento de ingresos por intereses, regalías y dividendos: es el ingreso que surge del uso por parte de terceros de activos de la entidad que generan intereses, regalías y dividendos reconocidos utilizando los tratamientos contables establecidos en el párrafo 34 cuando: (a) Es probable que los beneficios económicos o el potencial de servicio asociado con la transacción fluirá hacia la entidad; y (b) ¿El monto de los ingresos se puede medir de forma fiable? | E22: Cumple | Q22: 1
B23: 34 | C23: 13 | D23: En el reconocimiento de los ingresos ¿los intereses se reconocen sobre la base de la proporción de tiempo transcurrido, teniendo en cuenta el rendimiento efectivo del activo? | E23: Cumple | Q23: 1
B24: 34 | C24: 14 | D24: En el reconocimiento de los ingresos las regalías se reconocen en cuanto se acumulen (o devenguen) de acuerdo con la sustancia del acuerdo en que se basan? | E24: No aplica | H24: A la fecha este tipo de transacción no se ha presentado en la Municipalidad. | Q24: 1
B25: 34 | C25: 15 | D25: En el reconocimiento de los ingresos ¿los dividendos o distribuciones similares se reconocen cuando se establezca el derecho a recibirlos por parte del propietario o de la entidad? | E25: No aplica | H25: A la fecha este tipo de transacción no se ha presentado en la Municipalidad. | Q25: 1
B26: 35 | C26: 16 | D26: ¿Los ingresos por intereses incluyen la imputación en el tiempo de cualquier tasa de descuento, primas u otras diferencias entre el valor inicial del título de deuda en libros y el importe que se obtendrá a su vencimiento? | E26: Cumple | Q26: 1
B27: Revelaciones | E27: No llenar | Q27: 0
B28: 11 | D28: Transacciones con contraprestación (Exchange transactions) son transacciones en las cuales una entidad recibe activos o servicios, o cancela pasivos, y entrega a cambio un valor aproximadamente igual (principalmente en forma de efectivo, bienes, servicios o uso de los activos) directamente a otra entidad. | E28: No llenar | Q28: 0
B29: 39 | C29: 17 | D29: ¿La entidad revela en sus Estados Financieros la siguiente información? | E29: No llenar | Q29: 0
B30: 39 | C30: 17 (a) | D30: (a) las políticas contables adoptadas para el reconocimiento de los ingresos, | E30: Cumple | F30: Bajo | G30: Bajo | Q30: 1
B31: 39 | C31: 17 (b) | D31: (b) los métodos utilizados para determinar el porcentaje de terminación de las transacciones involucradas con la prestación de servicios; | E31: No aplica | H31: A la fecha este tipo de transacción no se ha presentado en la Municipalidad. | Q31: 1
B32: 39 | C32: 17 (c) | D32: (c) la cuantía de cada categoría significativa de ingresos, reconocida durante el periodo, con indicación expresa de los ingresos procedentes de: | E32: No llenar | Q32: 0
B33: 39 | C33: 17 (i) | D33: (i) la prestación de servicios; | E33: Cumple | Q33: 1
B34: 39 | C34: 17 (ii) | D34: (ii) la venta de bienes; | E34: No aplica | H34: A la fecha este tipo de transacción no se ha presentado en la Municipalidad. | Q34: 1
B35: 39 | C35: 17 (iii) | D35: (iii) intereses; | E35: Cumple | Q35: 1
B36: 39 | C36: 17 (iv) | D36: (iv) regalías; y | E36: No aplica | H36: A la fecha este tipo de transacción no se ha presentado en la Municipalidad. | Q36: 1
B37: 39 | C37: 17 (v) | D37: (v) dividendos o distribuciones similares; y | E37: No aplica | H37: A la fecha este tipo de transacción no se ha presentado en la Municipalidad. | Q37: 1
B38: 39 | C38: 17 (c) | D38: (c) el importe de los ingresos producidos por intercambios de bienes o servicios incluidos en cada una de las categorías anteriores. | E38: Cumple | Q38: 1
B39: Totales | C39: =COUNT(C11:C38) -> 17 | E39: =+COUNTA(E10:E38)-COUNTIF($E$10:$E$38,"=No llenar") -> 24
B40: Preguntas pendientes de respuesta | E40: =+H42-E39 -> 0
F41: Reconocimiento y medición | G41: Revelaciones | H41: Total
E42: Número de ítems | F42: =+SUM(Q11:Q26) -> 16 | G42: =+SUM(Q28:Q38) -> 8 | H42: =+SUM(F42:G42) -> 24
E44: Ítems no aplicables | F44: =COUNTIF($E$11:$E$26,"=No aplica") -> 8 | G44: =(COUNTIF($E$28:$E$38,"=No aplica")) -> 4 | H44: =+SUM(F44:G44) -> 12
E46: ítems aplicables | F46: =+F42-F44 -> 8 | G46: =+G42-G44 -> 4 | H46: =+SUM(F46:G46) -> 12
E48: ítems cumplidos | F48: =COUNTIF($E$11:$E$26,"=Cumple") -> 8 | G48: =COUNTIF($E$28:$E$38,"=Cumple") -> 4 | H48: =+SUM(F48:G48) -> 12
E50: Ítems cumplidos parcialmente | F50: =COUNTIF($E$11:$E$26,"=Cumple Parcialmente") -> 0 | G50: =COUNTIF($E$28:$E$38,"=Cumple Parcialmente") -> 0 | H50: =+SUM(F50:G50) -> 0
E52: Ítems no cumplidos | F52: =COUNTIF($E$11:$E$26,"=No Cumple") -> 0 | G52: =COUNTIF($E$28:$E$38,"=No Cumple") -> 0 | H52: =+SUM(F52:G52) -> 0
E54: Porcentaje de aplicación | F54: =+IFERROR((F48+(F50*0.5))/F46,0) -> 1 | G54: =+IFERROR((G48+(G50*0.5))/G46,0) -> 1 | H54: =+(F54*60%)+(G54*40%) -> 1
F56: Bajo | G56: Medio | H56: Alto
E57: Impacto | F57: =COUNTIF($F$11:$F$38,"Bajo") -> 1 | G57: =COUNTIF($F$11:$F$38,"Medio") -> 0 | H57: =COUNTIF($F$11:$F$38,"Alto") -> 0
F58: Bajo | G58: Medio | H58: Alto
E59: Esfuerzo | F59: =COUNTIF($G$11:$G$38,"Bajo") -> 1 | G59: =COUNTIF($G$11:$G$38,"Medio") -> 0 | H59: =COUNTIF($G$11:$G$38,"Alto") -> 0
B62: En caso de que la entidad marque NO CUMPLE en la norma o en su defecto se acoga a algun transitorio debe responder la siguiente pregunta y completar el plan de acción para cada una de las brechas identificadas:
B63: Responda con SI o NO
B64: La norma posee transitorios
B66: La norma posee Planes de Acción
J67: PLAZO
B68: Número de párrafo | C68: Número pregunta | D68: Acciones para brechas | E68: Actividades de cumplimiento | F68: % de Avance Plan de acción | G68: Requerimientos | H68: Recursos | I68: Responsable | J68: Fecha de Inicio | K68: Fecha para Finalizar | L68: Fecha Actual | M68: Duración meses | N68: Meses Transcurridos | O68: Meses para finalizar actividad
D72: =+"TOTAL DE BRECHAS (NO CUMPLE-CUMPLE PARCIALMENTE) = "&COUNTA(D69) -> TOTAL DE BRECHAS (NO CUMPLE-CUMPLE PARCIALMENTE) = 0 | E72: =+COUNTA(#REF!) -> 1
D74: PORCENTAJE PROMEDIO DE AVANCE PLANES ACCIÓN | F74: =+IFERROR(AVERAGE(F69:F69),0) -> 0
B76: JERARCA MAXIMO
D77: NOMBRE | E77: FIRMA
B79: DIRECTOR ADMINISTRATIVO Y FINANCIERO
D80: NOMBRE | E80: FIRMA
B82: CONTADOR
D83: NOMBRE | E83: FIRMA

Sheet NICSP 10
B2: NICSP 10
B3: Información Financiera en Economías Hiperinflacionarias
B4: Objetivo: Prescribir estándares específicos para las entidades que reporten en la moneda de una economía híper-inflacionaria, de manera que la información financiera (incluyendo la información financiera consolidada) proporcionada sea significativa.
B5: La norma es aplicable en la entidad (Indique Si o No) | E5: No
B7: Complete cada una de las preguntas según corresponda con "No aplica", "Cumple", "No Cumple" o "Cumple Parcialmente".
B8: Número de párrafo | C8: Número pregunta | D8: Requisito de la Norma | E8: Respuesta | F8: Impacto | G8: Esfuerzo | H8: Observaciones
B10: Reconocimiento y medición | E10: No llenar | Q10: 0
B11: 5 | C11: 1 | D11: ¿La entidad tiene políticas contables que tratan con la hiperinflación en la moneda funcional? La hiperinflación está indicada por las características del entorno económico de un país que incluyen, entre otras, las siguientes: (a) La población en general prefiere conservar su riqueza en forma de activos no monetarios o en una moneda extranjera relativamente estable. Las cantidades de moneda local obtenidas son invertidas inmediatamente para mantener la capacidad adquisitiva de la misma. (b) La población no toma en consideración los importes monetarios en términos de la moneda local, sino en función de una moneda extranjera relativamente estable. Los precios pueden establecerse en esta otra moneda. (c) Las ventas y compras a crédito tienen lugar a precios que compensan la pérdida de poder adquisitivo esperada durante el aplazamiento, incluso cuando el periodo es corto. (d) Las tasas de interés, salarios y precios se ligan a la evolución de un índice de precios. (e) la tasa de inflación acumulada durante un periodo de tres años se aproxima o sobrepasa el 100%. | Q11: 1
B12: 11 | C12: 2 | D12: Los estados financieros de una entidad, cuya moneda funcional sea la moneda de una economía hiperinflacionaria, ¿ refleja tal hecho en términos de la unidad de medida corriente en la fecha de presentación de los estados financieros. ? | Q12: 1
B13: 14 | C13: 3 | D13: ¿Se reexpresan las cifras del estado de situación financiera, no expresadas todavía en términos de la unidad de medida corriente en la fecha del estado de situación financiera? | Q13: 1
B14: 15 | C14: 4 | D14: ¿Se eximen de reexpresión las partidas monetarias que ya se encuentran expresadas en la unidad de medida corriente a la fecha del estado de situación financiera? | Q14: 1
B15: 16 | C15: 5 | D15: Los activos y las obligaciones vinculadas, mediante acuerdos o convenios, a cambios en los precios, tales como los bonos o préstamos indexados, ¿se ajustan en función del acuerdo o convenio para expresar el saldo pendiente a la fecha de presentación de los estados financieros? | Q15: 1
B16: 18 | C16: 6 | D16: ¿Los inventarios de producción en proceso y de productos terminados se reexpresan desde las fechas en que fueron incurridos los costos de compra y de conversión? | Q16: 1
B17: 24 | C17: 7 | D17: Una entidad puede adquirir activos mediante un acuerdo que le permita diferir el pago, sin incurrir explícitamente en ningún cargo por intereses. Cuando no se pueda determinar el importe de los intereses, tales activos ¿ se reexpresan utilizando la fecha de pago y no la de adquisición?. | Q17: 1
B18: 27 | C18: 8 | D18: En el estado de rendimiento financiero, ¿las políticas contables de la entidad requieren que los importes se actualicen aplicando el cambio en el índice general de precios a partir de las fechas en que se registraron inicialmente las partidas de ingresos y gastos? | Q18: 1
B19: 31 | C19: 9 | D19: Los Estados financieros de entidades controladas que informan en monedas de economías hiperinflacionarias ¿Se reexpresan, mediante la aplicación de un índice general de precios correspondiente al país en cuya moneda presentan la información, antes de incluirse en los estados financieros consolidados a presentar por la controladora? | Q19: 1
B20: 37 | C20: 10 | D20: ¿Se revela en los Estados Financieros la información necesaria para dejar claras las bases del tratamiento de los efectos de la inflación en los estados financieros? | Q20: 1
B21: Revelaciones | E21: No llenar | Q21: 0
B22: 36 | C22: 11 | D22: ¿La entidad revela en sus Estados Financieros la siguiente información? | E22: No llenar | Q22: 0
B23: 36 | C23: 11 (a) | D23: (a) Se revela en los Estados Financieros el hecho de que los estados financieros, así como las cifras correspondientes para periodos anteriores, han sido reexpresadas para considerar los cambios en el poder adquisitivo general de la unidad monetaria de medida y que, como resultado, están expresados en términos de la unidad de medida corriente a la fecha de presentación de los estados financieros; y | Q23: 1
B24: 36 | C24: 11 (b) | D24: (b) la identificación y valor del índice de precios a la fecha de presentación de los estados financieros, así como el movimiento del mismo durante el periodo corriente y los anteriores. | Q24: 1
B25: 12 | C25: 12 | D25: ¿Se revela en el estado de rendimiento financiero de forma separada el resultado (ahorro o desahorro) en la posición monetaria neta ? | Q25: 1
B26: Totales | C26: =COUNT(C11:C25) -> 12 | E26: =+COUNTA(E10:E25)-COUNTIF($E$10:$E$25,"=No llenar") -> 0
B27: Preguntas pendientes de respuesta | E27: =+H29-E26 -> 13
F28: Reconocimiento y medición | G28: Revelaciones | H28: Total
E29: Número de ítems | F29: =+SUM(Q11:Q20) -> 10 | G29: =+SUM(Q22:Q25) -> 3 | H29: =+SUM(F29:G29) -> 13
E31: Ítems no aplicables | F31: =COUNTIF($E$11:$E$20,"=No aplica") -> 0 | G31: =(COUNTIF($E$22:$E$25,"=No aplica")) -> 0 | H31: =+SUM(F31:G31) -> 0
E33: ítems aplicables | F33: =+F29-F31 -> 10 | G33: =+G29-G31 -> 3 | H33: =+SUM(F33:G33) -> 13
E35: ítems cumplidos | F35: =COUNTIF($E$11:$E$20,"=Cumple") -> 0 | G35: =COUNTIF($E$22:$E$25,"=Cumple") -> 0 | H35: =+SUM(F35:G35) -> 0
E37: Ítems cumplidos parcialmente | F37: =COUNTIF($E$11:$E$20,"=Cumple Parcialmente") -> 0 | G37: =COUNTIF($E$22:$E$25,"=Cumple Parcialmente") -> 0 | H37: =+SUM(F37:G37) -> 0
E39: Ítems no cumplidos | F39: =COUNTIF($E$11:$E$20,"=No Cumple") -> 0 | G39: =COUNTIF($E$22:$E$25,"=No Cumple") -> 0 | H39: =+SUM(F39:G39) -> 0
E41: Porcentaje de aplicación | F41: =+IFERROR((F35+(F37*0.5))/F33,0) -> 0 | G41: =+IFERROR((G35+(G37*0.5))/G33,0) -> 0 | H41: =+(F41*60%)+(G41*40%) -> 0
F43: Bajo | G43: Medio | H43: Alto
E44: Impacto | F44: =COUNTIF($F$11:$F$25,"Bajo") -> 0 | G44: =COUNTIF($F$11:$F$25,"Medio") -> 0 | H44: =COUNTIF($F$11:$F$25,"Alto") -> 0
F45: Bajo | G45: Medio | H45: Alto
E46: Esfuerzo | F46: =COUNTIF($G$11:$G$25,"Bajo") -> 0 | G46: =COUNTIF($G$11:$G$25,"Medio") -> 0 | H46: =COUNTIF($G$11:$G$25,"Alto") -> 0
B49: En caso de que la entidad marque NO CUMPLE en la norma o en su defecto se acoga a algun transitorio debe responder la siguiente pregunta y completar el plan de acción para cada una de las brechas identificadas:
B50: Responda con SI o NO
B51: La norma posee transitorios
B53: La norma posee Planes de Acción
J54: PLAZO
B55: Número de párrafo | C55: Número pregunta | D55: Acciones para brechas | E55: Actividades de cumplimiento | F55: % de Avance Plan de acción | G55: Requerimientos | H55: Recursos | I55: Responsable | J55: Fecha de Inicio | K55: Fecha para Finalizar | L55: Fecha Actual | M55: Duración meses | N55: Meses Transcurridos | O55: Meses para finalizar actividad
L56: =NOW() -> 2024-07-26T09:10:52.190 | M56: =DATEDIF(J56,K56,"D")/30 -> 0 | N56: =DATEDIF(J56,L56,"D")/30 -> 1516.633333 | O56: =+M56-N56 -> -1516.633333
L57: =NOW() -> 2024-07-26T09:10:52.190 | M57: =DATEDIF(J57,K57,"D")/30 -> 0 | N57: =DATEDIF(J57,L57,"D")/30 -> 1516.633333 | O57: =+M57-N57 -> -1516.633333
D60: =+"TOTAL DE BRECHAS (NO CUMPLE-CUMPLE PARCIALMENTE) = "&COUNTA(D56:D57) -> TOTAL DE BRECHAS (NO CUMPLE-CUMPLE PARCIALMENTE) = 0 | E60: =+COUNTA(D56:D57) -> 0
D62: PORCENTAJE PROMEDIO DE AVANCE PLANES ACCIÓN | F62: =+IFERROR(AVERAGE(F56:F57),0) -> 0
B64: JERARCA MAXIMO
D65: NOMBRE | E65: FIRMA
B67: DIRECTOR ADMINISTRATIVO Y FINANCIERO
D68: NOMBRE | E68: FIRMA
B70: CONTADOR
D71: NOMBRE | E71: FIRMA

Sheet NICSP 11
B2: NICSP 11
B3: Contratos de Construcción
B4: Objetivo: Prescribir el tratamiento contable de los costos y de los ingresos relacionados con los contratos de construcción. La Norma: identifica los acuerdos que pueden clasificarse como contratos de construcción; ofrece una guía de tipos de contratos de construcción que pueden surgir en el sector público; y especifica las bases para el reconocimiento y revelación de los gastos de contrato y, en su caso, de los ingresos de contrato.
B5: La norma es aplicable en la entidad (Indique Si o No) | E5: No
B7: Complete cada una de las preguntas según corresponda con "No aplica", "Cumple", "No Cumple" o "Cumple Parcialmente".
B8: Número de párrafo | C8: Número pregunta | D8: Requisito de la Norma | E8: Respuesta | F8: Impacto | G8: Esfuerzo | H8: Observaciones
B10: Reconocimiento y medición | E10: No llenar | Q10: 0
B11: 4 | C11: 1 | D11: ¿Tiene la entidad alguna política contable que trate con los contratos de construcción? El contrato de construcción es un contrato, o un acuerdo vinculante similar, específico para la fabricación de un activo o un conjunto de activos que están íntimamente relacionados entre sí o son interdependientes en términos de su diseño, tecnología y función, o bien en relación con su último destino o utilización. | Q11: 1
B12: 4 | C12: 2 | D12: ¿La entidad tiene la intención de celebrar contratos de construcción, como se definió anteriormente, en el futuro previsible? | Q12: 1
B13: 13 | C13: 3 | D13: Si un contrato cubre varios activos, la construcción de cada uno de ellos ¿la entidad trata como un elemento separado cuando: (a) se han presentado propuestas económicas diferentes para cada activo; (b) cada activo ha estado sujeto a negociación separada, y el constructor y el cliente han tenido la posibilidad de aceptar o rechazar la parte del contrato relativa a cada uno de los activos (c) pueden ser identificados los ingresos y los costos de cada activo.? | Q13: 1
B14: 14 | C14: 4 | D14: Un grupo de contratos, con uno o más clientes, ¿la entidad trata como un único contrato de construcción cuando: (a) el grupo de contratos se negocia como un único paquete; (b) los contratos están tan íntimamente relacionados que son, efectivamente, parte de un único proyecto con un margen de beneficios genérico para todos ellos, en el caso de que exista un margen de beneficio; y (c) los contratos se ejecutan simultáneamente, o bien en una secuencia continua.? | Q14: 1
B15: 15 | C15: 5 | D15: Un contrato puede contemplar, a voluntad del cliente, la construcción de un activo adicional a lo pactado originalmente, o puede ser modificado para incluir la construcción de tal activo. La construcción de este activo adicional ¿Se trata como un contrato separado cuando: (a) el activo difiere significativamente en términos de diseño, tecnología o función del activo o activos cubiertos por el contrato original; o (b) el precio del activo se negocia sin tener como referencia el precio fijado en el contrato original | Q15: 1
B16: 16 | C16: 6 | D16: ¿Los ingresos del contrato comprenden: (a) el importe inicial del ingreso acordado en el contrato; y (b) cualquier modificación en el trabajo contratado, así como reclamaciones o incentivo | Q16: 1
B17: 17 | C17: 7 | D17: ¿Los ingresos del contrato se miden por el valor razonable de la contraprestación recibida o por recibir? | Q17: 1
B18: 19 | C18: 8 | D18: Las modificaciones se incluyen en los ingresos del contrato cuando: (a) es probable que el cliente apruebe el plan modificado, así como la cuantía de los ingresos que surgen de la modificación; y (b) la cuantía del ingreso puede ser medido con suficiente fiabilidad.? | Q18: 1
B19: 20 | C19: 9 | D19: ¿Las reclamaciones se incluyen entre los ingresos del contrato cuando: (a) las negociaciones han alcanzado un avanzado estado de maduración, de tal manera que es probable que el cliente acepte la reclamación; y (b) el importe que es probable que acepte el cliente puede ser medido con suficiente fiabilidad. ? | Q19: 1
B20: 21 | C20: 10 | D20: Los pagos por incentivos son cantidades adicionales reconocidas al contratista siempre que cumpla o sobrepase determinados niveles de ejecución en el contrato ¿Los pagos por incentivos se incluyen entre los ingresos procedentes del contrato cuando el contrato está suficientemente avanzado o el importe derivado del pago por incentivos puede ser medido con suficiente fiabilidad? | Q20: 1
B21: 23 | C21: 11 | D21: ¿Se incluyen en los costos del contrato: los costos que se relacionen directamente con el contrato específico; los costos que se relacionen con la actividad de contratación en general y pueden ser imputados al contrato específico, de una manera sistemática y racional; y cualesquiera otros costos que se puedan cargar al cliente, bajo los términos pactados en el contrato? | Q21: 1
B22: 35 | C22: 12 | D22: Si el contratista incurre en costos que se relacionan con la actividad futura del contrato, ¿Esos costos son registrados como activos si se considera que los mismos son recuperables en un futuro? | Q22: 1
B23: 40 | C23: 13 | D23: Cuando el desenlace de un contrato de construcción no pueda ser estimado con suficiente fiabilidad ¿los ingresos son reconocidos sólo en la medida en que sea probable recuperar los costos incurridos por causa del contrato? | Q23: 1
B24: 40 | C24: 14 | D24: Cuando el desenlace de un contrato de construcción no pueda ser estimado con suficiente fiabilidad ¿los costos del contrato se reconocen como gastos del periodo en que se incurren? | Q24: 1
B25: 44 | C25: 15 | D25: Cuando sea probable que los costos totales del contrato vayan a exceder de los ingresos totales derivados del mismo, ¿ las pérdidas esperadas se reconocen inmediatamente como tales en el estado de rendimiento financiero del periodo? | Q25: 1
B26: 49 | C26: 16 | D26: ¿Se aplica acumulativamente, el método del porcentaje de obra realizado en cada periodo para el cual se presenta información, a las estimaciones de ingresos y costos totales hasta la fecha? | Q26: 1
B27: Revelaciones | E27: No llenar | Q27: 0
B28: 50 | C28: 17 | D28: ¿La entidad revela en sus Estados Financieros la siguiente información? | E28: No llenar | Q28: 0
B29: 50 | C29: 17 (a) | D29: (a) el importe de los ingresos del contrato reconocidos como tales en el periodo; | Q29: 1
B30: 50 | C30: 17 (b) | D30: (b) los métodos utilizados para determinar la parte de ingreso del contrato reconocido como tal en el periodo; y | Q30: 1
B31: 50 | C31: 17 (c) | D31: (c) los métodos usados para determinar el grado de realización del contrato en curso. | Q31: 1
B32: 51 | C32: 18 | D32: ¿ Se revelan para los contratos en curso en la fecha de presentación de los estados financieros, cada una de las siguientes informaciones? | E32: No llenar | Q32: 0
B33: 51 | C33: 18 (a) | D33: (a) la cantidad acumulada de costos incurridos y de resultados positivos (ahorro) del período [menos los resultados negativos (desahorro) del período reconocidos] hasta la fecha; | Q33: 1
B34: 51 | C34: 18 (b) | D34: (b) la cuantía de los anticipos recibidos; y | Q34: 1
B35: 51 | C35: 18 (c) | D35: (c) la cuantía de las retenciones en los pagos. | Q35: 1
B36: 53 | C36: 19 | D36: ¿La entidad presenta en sus Estados Financieros la siguiente información? | E36: No llenar | Q36: 0
B37: 53 | C37: 19 (a) | D37: (a) los activos que representen cantidades, en términos brutos, adeudadas por los clientes por causa de contratos de construcción; y | Q37: 1
B38: 53 | C38: 19 (b) | D38: (b) Presenta la entidad los pasivos que representen cantidades en términos brutos, adeudadas a los clientes por causa de estos mismos contratos. | Q38: 1
B39: 56 | C39: 20 | D39: ¿La entidad divulga activos contingentes y pasivos contingentes relacionados con contratos de construcción en virtud de partidas contemplano la NICSP 19? | Q39: 1
B40: Totales | C40: =COUNT(C11:C39) -> 20 | E40: =+COUNTA(E10:E39)-COUNTIF($E$10:$E$39,"=No llenar") -> 0
B41: Preguntas pendientes de respuesta | E41: =+H43-E40 -> 25
F42: Reconocimiento y medición | G42: Revelaciones | H42: Total
E43: Número de ítems | F43: =+SUM(Q11:Q26) -> 16 | G43: =+SUM(Q28:Q39) -> 9 | H43: =+SUM(F43:G43) -> 25
E45: Ítems no aplicables | F45: =COUNTIF($E$11:$E$26,"=No aplica") -> 0 | G45: =(COUNTIF($E$28:$E$39,"=No aplica")) -> 0 | H45: =+SUM(F45:G45) -> 0
E47: ítems aplicables | F47: =+F43-F45 -> 16 | G47: =+G43-G45 -> 9 | H47: =+SUM(F47:G47) -> 25
E49: ítems cumplidos | F49: =COUNTIF($E$11:$E$26,"=Cumple") -> 0 | G49: =COUNTIF($E$28:$E$39,"=Cumple") -> 0 | H49: =+SUM(F49:G49) -> 0
E51: Ítems cumplidos parcialmente | F51: =COUNTIF($E$11:$E$26,"=Cumple Parcialmente") -> 0 | G51: =COUNTIF($E$28:$E$39,"=Cumple Parcialmente") -> 0 | H51: =+SUM(F51:G51) -> 0
E53: Ítems no cumplidos | F53: =COUNTIF($E$11:$E$26,"=No Cumple") -> 0 | G53: =COUNTIF($E$28:$E$39,"=No Cumple") -> 0 | H53: =+SUM(F53:G53) -> 0
E55: Porcentaje de aplicación | F55: =+IFERROR((F49+(F51*0.5))/F47,0) -> 0 | G55: =+IFERROR((G49+(G51*0.5))/G47,0) -> 0 | H55: =+(F55*60%)+(G55*40%) -> 0
F57: Bajo | G57: Medio | H57: Alto
E58: Impacto | F58: =COUNTIF($F$11:$F$39,"Bajo") -> 0 | G58: =COUNTIF($F$11:$F$39,"Medio") -> 0 | H58: =COUNTIF($F$11:$F$39,"Alto") -> 0
F59: Bajo | G59: Medio | H59: Alto
E60: Esfuerzo | F60: =COUNTIF($G$11:$G$39,"Bajo") -> 0 | G60: =COUNTIF($G$11:$G$39,"Medio") -> 0 | H60: =COUNTIF($G$11:$G$39,"Alto") -> 0
B63: En caso de que la entidad marque NO CUMPLE en la norma o en su defecto se acoga a algun transitorio debe responder la siguiente pregunta y completar el plan de acción para cada una de las brechas identificadas:
B64: Responda con SI o NO
B65: La norma posee transitorios
B67: La norma posee Planes de Acción
J68: PLAZO
B69: Número de párrafo | C69: Número pregunta | D69: Acciones para brechas | E69: Actividades de cumplimiento | F69: % de Avance Plan de acción | G69: Requerimientos | H69: Recursos | I69: Responsable | J69: Fecha de Inicio | K69: Fecha para Finalizar | L69: Fecha Actual | M69: Duración meses | N69: Meses Transcurridos | O69: Meses para finalizar actividad
L70: =NOW() -> 2024-07-26T09:10:52.190 | M70: =DATEDIF(J70,K70,"D")/30 -> 0 | N70: =DATEDIF(J70,L70,"D")/30 -> 1516.633333 | O70: =+M70-N70 -> -1516.633333
L71: =NOW() -> 2024-07-26T09:10:52.190 | M71: =DATEDIF(J71,K71,"D")/30 -> 0 | N71: =DATEDIF(J71,L71,"D")/30 -> 1516.633333 | O71: =+M71-N71 -> -1516.633333
D74: =+"TOTAL DE BRECHAS (NO CUMPLE-CUMPLE PARCIALMENTE) = "&COUNTA(D70:D71) -> TOTAL DE BRECHAS (NO CUMPLE-CUMPLE PARCIALMENTE) = 0 | E74: =+COUNTA(D70:D71) -> 0
D76: PORCENTAJE PROMEDIO DE AVANCE PLANES ACCIÓN | F76: =+IFERROR(AVERAGE(F70:F71),0) -> 0
B78: JERARCA MAXIMO
D79: NOMBRE | E79: FIRMA
B81: DIRECTOR ADMINISTRATIVO Y FINANCIERO
D82: NOMBRE | E82: FIRMA
B84: CONTADOR
D85: NOMBRE | E85: FIRMA

Sheet NICSP 12
B2: NICSP 12
B3: Inventarios
B4: Objetivo: Prescribir el tratamiento contable de los inventarios.
B5: La norma es aplicable en la entidad (Indique Si o No) | E5: Si
B7: Complete cada una de las preguntas según corresponda con "No aplica", "Cumple", "No Cumple" o "Cumple Parcialmente".
B8: Número de párrafo | C8: Número pregunta | D8: Requisito de la Norma | E8: Respuesta | F8: Impacto | G8: Esfuerzo | H8: Observaciones
B10: Reconocimiento y medición | E10: No llenar | Q10: 0
B11: 15 | C11: 1 | D11: ¿Los inventarios se miden al costo o al valor realizable neto, el que sea menor? | E11: Cumple | Q11: 1
B12: 9 | C12: 2 | D12: ¿Las políticas contables de la entidad definen los inventarios de la misma manera que las IPSAS? Los inventarios son activos: (a) en la forma de materiales o suministros, para ser consumidos en el proceso de producción; (b) en la forma de materiales o suministros, para ser consumidos o distribuidos en la prestación de servicios; (c) conservados para su venta o distribución, en el curso ordinario de las operaciones; o (d) en proceso de producción para su venta o distribución. | E12: Cumple | Q12: 1
B13: 12 | C13: 3 | D13: ¿La entidad lleva un desgolse y control de inventarios de acuerdo con su actividad economica, y el registro contable con el devengo? | E13: Cumple Parcialmente | F13: Bajo | G13: Bajo | Q13: 1
B14: 13 | C14: 4 | D14: ¿Los activos como sellos postales y monedas son reconocidos como inventario? | E14: No aplica | H14: A la fecha este tipo de transacción no se ha presentado en la Municipalidad. | Q14: 1
B15: 14 | C15: 5 | D15: ¿Si se tienen reservas estratégica como por ejemplo reservas de energía para uso en caso de emergencia u otras situaciones, se reconocen como inventarios? | E15: No aplica | H15: Este requisito no le aplica a la Municipalidad. | Q15: 1
B16: 17 | C16: 6 | D16: Cuando los inventarios se mantengan para recibir sin contraprestación o con contraprestación insignificante, u usados para producir bienes que serán distribuidos sin contraprestación ¿son medidos al menor valor entre el costo y el costo corriente de reposición? | E16: Cumple | Q16: 1
B17: 16 | C17: 7 | D17: En caso de recibir inventarios a través de una transacción sin contraprestación ¿su costo es medido a su valor razonable en la fecha de la adquisición? | E17: No aplica | H17: A la fecha este tipo de transacción no se ha presentado en la Municipalidad. | Q17: 1
B18: 15 | C18: 8 | D18: ¿Los inventarios son medidas al costo o al valor realizable neto, el que sea menor, excepto cuando se aplique el párrafo 16 o el párrafo 17? | E18: Cumple | Q18: 1
B19: 18 | C19: 9 | D19: Al medir los inventarios ¿se consideran todos los costos derivados de su adquisición y transformación, así como otros costos en los que se haya incurrido para darles su condición y ubicación actuales ? | E19: Cumple | Q19: 1
B20: 25 | C20: 10 | D20: ¿ Se reconocen como gastos del periodo las cantidades anormales de desperdicio de materiales, mano de obra u otros costos de producción, los costos de almacenamiento, a menos que sean necesarios en el proceso productivo, previos a un proceso de elaboración ulterior, los costos indirectos de administración que no hayan contribuido a dar a los inventarios su condición y ubicación actuales y los costos de venta? | E20: No aplica | H20: A la fecha este tipo de situaciones no se ha presentado en la Municipalidad. | Q20: 1
B21: 29 | C21: 11 | D21: ¿Los inventarios que comprenden productos agrícolas, que la entidad haya cosechado o recolectado de sus activos biológicos, se miden, para su reconocimiento inicial, por el valor razonable menos los costos de venta en el momento de su cosecha o recolección? | E21: No aplica | H21: Este requerimiento no aplica a la Municipalidad. | Q21: 1
B22: 30 | C22: 12 | D22: ¿Las técnicas para la medición del costo de los inventarios, tales como el método del costo estándar o el método de los minoristas, se utilizan por conveniencia siempre que el resultado de aplicarlos se aproxime al costo? | E22: No aplica | H22: Este requerimiento no aplica a la Municipalidad. | Q22: 1
B23: 32 | C23: 13 | D23: ¿El costo de los inventarios de productos que no son habitualmente intercambiables entre sí, así como de los bienes y servicios producidos y segregados para proyectos específicos, se determina a través de la identificación específica de sus costos individuales? | E23: No aplica | H23: Este requerimiento no aplica a la Municipalidad. | Q23: 1
B24: 35 | C24: 14 | D24: ¿Las políticas contables de la entidad requieren que el costo de los inventarios de ítems distintos a los descritos en la NICSP 12.32 se asigne utilizando las fórmulas de primero en entrar, primero en salir (FIFO) o costo promedio ponderado? | E24: Cumple | Q24: 1
B25: 41 | C25: 15 | D25: Cuando una reducción en el precio de las materias primas, indique que el costo de los productos terminados excede a su valor realizable neto, ¿se rebaja su importe en libros hasta cubrir esa diferencia? | E25: No aplica | H25: A la fecha este tipo de situaciones no se ha presentado en la Municipalidad. | Q25: 1
B26: 44 | C26: 16 | D26: ¿Cuando los inventarios se venden, se intercambian o se distribuyen, el importe en libros de los mismos se reconoce como un gasto en el periodo en el que se registran los correspondientes ingresos? | E26: Cumple | Q26: 1
B27: 44 | C27: 17 | D27: ¿Cuando no hay ingresos relacionados, ¿las políticas contables de la entidad requieren reconocer el gasto cuando se distribuyen los bienes o se presta el servicio relacionado? | E27: Cumple | Q27: 1
B28: 44 | C28: 18 | D28: ¿Las políticas contables de la entidad requieren reconocer las pérdidas o pérdidas en el período en el que se producen las pérdidas o la pérdida? ¿La reversión de cualquier rebaja debe ser reconocida como una reducción de gastos? | E28: Cumple | Q28: 1
B29: Revelaciones | E29: No llenar | Q29: 0
B30: 47 | C30: 19 | D30: ¿La entidad revela en sus Estados Financieros la siguiente información? | E30: No llenar | Q30: 0
B31: 47 | C31: 19 (a) | D31: (a) las políticas contables adoptadas para la medición de los inventarios, incluyendo la fórmula de medición de los costos utilizada; | E31: Cumple | Q31: 1
B32: 47 | C32: 19 (b) | D32: (b) el importe total en libros de los inventarios y los importes según la clasificación que resulte apropiada para la entidad; | E32: Cumple | Q32: 1
B33: 47 | C33: 19 (c) | D33: (c) el importe en libros de los inventarios que se llevan al valor razonable menos los costos de venta; | E33: No aplica | H33: A la fecha este tipo de situaciones no se ha presentado en la Municipalidad. | Q33: 1
B34: 47 | C34: 19 (d) | D34: (d) el importe de los inventarios reconocido como un gasto durante el periodo; | E34: Cumple | Q34: 1
B35: 47 | C35: 19 (e) | D35: (e) el importe de las rebajas de valor de los inventarios reconocidas como un gasto en el periodo, de acuerdo con el párrafo 42; | E35: No aplica | H35: A la fecha este tipo de situaciones no se ha presentado en la Municipalidad. | Q35: 1
B36: 47 | C36: 19 (f) | D36: (f) los importes de las reversiones en las rebajas de valor que son reconocidas en el estado de rendimiento financiero del período, de acuerdo con el párrafo 42; | E36: No aplica | H36: A la fecha este tipo de situaciones no se ha presentado en la Municipalidad. | Q36: 1
B37: 47 | C37: 19 (g) | D37: (g) las circunstancias o eventos que han producido la reversión de las rebajas de los inventarios, de acuerdo con el párrafo 42; y | E37: No aplica | H37: A la fecha este tipo de situaciones no se ha presentado en la Municipalidad. | Q37: 1
B38: 47 | C38: 19 (h) | D38: (h) el importe en libros de los inventarios pignorados en garantía de deudas. | E38: No aplica | H38: A la fecha este tipo de situaciones no se ha presentado en la Municipalidad. | Q38: 1
B39: 42 | D39: "Se realizará una nueva evaluación del valor realizable neto al final de cada periodo. Cuando las circunstancias, que previamente causaron la rebaja de inventarios, hayan dejado de existir, o cuando exista una clara evidencia de un incremento en el valor realizable neto como consecuencia de un cambio en las circunstancias económicas, se revertirá el importe de dicha rebaja (es decir, la reversión se limita al importe de la rebaja original), de manera que el nuevo valor en libros sea el menor entre el costo y el valor realizable neto revisado. Esto ocurrirá, por ejemplo, cuando un artículo en inventario, que se lleva al valor neto realizable porque ha bajado su precio de venta, está todavía en inventario un periodo posterior y su precio de venta se ha incrementado" | E39: No llenar | Q39: 0
B40: Totales | C40: =COUNT(C11:C39) -> 19 | E40: =+COUNTA(E10:E39)-COUNTIF($E$10:$E$39,"=No llenar") -> 26
B41: Preguntas pendientes de respuesta | E41: =+H43-E40 -> 0
F42: Reconocimiento y medición | G42: Revelaciones | H42: Total
E43: Número de ítems | F43: =+SUM(Q11:Q28) -> 18 | G43: =+SUM(Q30:Q39) -> 8 | H43: =+SUM(F43:G43) -> 26
E45: Ítems no aplicables | F45: =COUNTIF($E$11:$E$28,"=No aplica") -> 8 | G45: =(COUNTIF($E$30:$E$39,"=No aplica")) -> 5 | H45: =+SUM(F45:G45) -> 13
E47: ítems aplicables | F47: =+F43-F45 -> 10 | G47: =+G43-G45 -> 3 | H47: =+SUM(F47:G47) -> 13
E49: ítems cumplidos | F49: =COUNTIF($E$11:$E$28,"=Cumple") -> 9 | G49: =COUNTIF($E$30:$E$39,"=Cumple") -> 3 | H49: =+SUM(F49:G49) -> 12
E51: Ítems cumplidos parcialmente | F51: =COUNTIF($E$11:$E$28,"=Cumple Parcialmente") -> 1 | G51: =COUNTIF($E$30:$E$39,"=Cumple Parcialmente") -> 0 | H51: =+SUM(F51:G51) -> 1
E53: Ítems no cumplidos | F53: =COUNTIF($E$11:$E$28,"=No Cumple") -> 0 | G53: =COUNTIF($E$30:$E$39,"=No Cumple") -> 0 | H53: =+SUM(F53:G53) -> 0
E55: Porcentaje de aplicación | F55: =+IFERROR((F49+(F51*0.5))/F47,0) -> 0.95 | G55: =+IFERROR((G49+(G51*0.5))/G47,0) -> 1 | H55: =+(F55*60%)+(G55*40%) -> 0.97
F57: Bajo | G57: Medio | H57: Alto
E58: Impacto | F58: =COUNTIF($F$11:$F$39,"Bajo") -> 1 | G58: =COUNTIF($F$11:$F$39,"Medio") -> 0 | H58: =COUNTIF($F$11:$F$39,"Alto") -> 0
F59: Bajo | G59: Medio | H59: Alto
E60: Esfuerzo | F60: =COUNTIF($G$11:$G$39,"Bajo") -> 1 | G60: =COUNTIF($G$11:$G$39,"Medio") -> 0 | H60: =COUNTIF($G$11:$G$39,"Alto") -> 0
B63: En caso de que la entidad marque NO CUMPLE en la norma o en su defecto se acoga a algun transitorio debe responder la siguiente pregunta y completar el plan de acción para cada una de las brechas identificadas:
B64: Responda con SI o NO
B65: La norma posee transitorios | E65: Si
B67: La norma posee Planes de Acción | E67: Si
J68: PLAZO
B69: Número de párrafo | C69: Número pregunta | D69: Acciones para brechas | E69: Actividades de cumplimiento | F69: % de Avance Plan de acción | G69: Requerimientos | H69: Recursos | I69: Responsable | J69: Fecha de Inicio | K69: Fecha para Finalizar | L69: Fecha Actual | M69: Duración meses | N69: Meses Transcurridos | O69: Meses para finalizar actividad
B70: 12 | C70: 3 | D70: Llevar un desgolse y control de inventarios de acuerdo con su actividad económica, y el registro contable con base en devengo. | E70: 1 | F70: 0.95 | G70: Procedimientos y controles para administración de inventarios, Un Sistema Integrado, Asesoría Externa. | H70: Recurso Humano, Recursos Tecnólogicos, Recurso Financiero, Tiempo laboral para realizar la actividad. | I70: Comisión NICSP, Con el apoyo de: Contador Municipal, Responsable de la Proveeduría. Encargado de Informática, | J70: 2019-01-01 | K70: 2024-12-31 | L70: =NOW() -> 2024-07-26T09:10:52.190 | M70: =DATEDIF(J70,K70,"D")/30 -> 73.03333333 | N70: =DATEDIF(J70,L70,"D")/30 -> 67.76666667 | O70: =+M70-N70 -> 5.266666667
L71: =NOW() -> 2024-07-26T09:10:52.190 | M71: =DATEDIF(J71,K71,"D")/30 -> 0 | N71: =DATEDIF(J71,L71,"D")/30 -> 1516.633333 | O71: =+M71-N71 -> -1516.633333
L72: 2024-07-26T09:10:52.190 | M72: =DATEDIF(J72,K72,"D")/30 -> 0 | N72: =DATEDIF(J72,L72,"D")/30 -> 1516.633333 | O72: =+M72-N72 -> -1516.633333
D75: =+"TOTAL DE BRECHAS (NO CUMPLE-CUMPLE PARCIALMENTE) = "&COUNTA(D70:D72) -> TOTAL DE BRECHAS (NO CUMPLE-CUMPLE PARCIALMENTE) = 1 | E75: =+COUNTA(D70:D72) -> 1
D77: PORCENTAJE PROMEDIO DE AVANCE PLANES ACCIÓN | F77: =+IFERROR(AVERAGE(F70:F72),0) -> 0.95
B79: JERARCA MAXIMO
D80: NOMBRE | E80: FIRMA
B82: DIRECTOR ADMINISTRATIVO Y FINANCIERO
D83: NOMBRE | E83: FIRMA
B85: CONTADOR
D86: NOMBRE | E86: FIRMA

Sheet NICSP 13
B2: NICSP 13
B3: Arrendamientos
B4: Objetivo: Establecer, tanto para arrendatarios y arrendadores, las políticas contables apropiadas para contabilizar y revelar la información correspondiente a los arrendamientos operativos y financieros
B5: La norma es aplicable en la entidad (Indique Si o No) | E5: Si
B7: Complete cada una de las preguntas según corresponda con "No aplica", "Cumple", "No Cumple" o "Cumple Parcialmente".
B8: Número de párrafo | C8: Número pregunta | D8: Requisito de la Norma | E8: Respuesta | F8: Impacto | G8: Esfuerzo | H8: Observaciones
B10: Reconocimiento y medición | E10: No llenar
B11: 8 | C11: 1 | D11: ¿Las políticas contables de la entidad definen un arrendamiento como un acuerdo por el que el arrendador cede al arrendatario, a cambio de percibir una suma única de dinero, o una serie de pagos o cuotas, el derecho a utilizar un activo durante un periodo de tiempo determinado. ? | E11: Cumple | Q11: 1
B12: 13 | C12: 2 | D12: ¿Se clasifican como arrendamientos financieros aquellos cuando se transfiera sustancialmente todos los riesgos y ventajas inherentes a la propiedad? | E12: No aplica | H12: La Municipalidad no tiene arrendamientos financieros en los cuales funja como arrendador o arrendatario | Q12: 1
B13: 13 | C13: 3 | D13: ¿Se clasifican como arrendamientos operativos si no transfiere sustancialmente todos los riesgos y ventajas inherentes a la propiedad? | E13: Cumple | Q13: 1
B14: 18 | C14: 4 | D14: ¿Los arrendamientos son clasificados de acuerdo a sus características siempre al principio del mismo? | E14: Cumple | Q14: 1
B15: 20A | C15: 5 | D15: Cuando un arrendamiento incluya componentes de terrenos y de edificios conjuntamente la entidad evalúa la clasificación de cada componente por separado como un arrendamiento financiero u operativo? | E15: No aplica | H15: A la fecha este tipo de transacción no se ha presentado en la Municipalidad. | Q15: 1
B16: 20A | C16: 6 | D16: Cuando es necesario clasificar y contabilizar un arrendamiento de terrenos y construcciones, ¿los pagos mínimos por el arrendamiento (incluyendo todo pago por adelantado) se distribuyen entre los componentes de terrenos y construcciones en proporción a los valores razonables relativos que representan los derechos de arrendamiento en los citados componentes de terrenos y construcciones en el inicio del arrendamiento.? | E16: No aplica | H16: A la fecha este tipo de transacción no se ha presentado en la Municipalidad. | Q16: 1
B17: 20A | C17: 7 | D17: Si los pagos por el arrendamiento no pueden repartirse fiablemente entre estos los componentes de terrenos y construcciones, ¿todo el arrendamiento se clasifica como arrendamiento financiero, a menos que esté claro que ambos componentes son arrendamientos operativos, en cuyo caso todo el arrendamiento se clasificará como operativo? | E17: No aplica | H17: A la fecha este tipo de transacción no se ha presentado en la Municipalidad. | Q17: 1
B18: 24 | C18: 8 | D18: Si el arrendatario clasifica los derechos sobre un inmueble mantenido en régimen de arrendamiento operativo, como propiedad de inversión. ¿ Tales derechos sobre el inmueble se contabilizan como si fueran un arrendamiento financiero y, además, se utiliza el modelo del valor razonable para el activo así reconocido.? | E18: No aplica | H18: A la fecha este tipo de transacción no se ha presentado en la Municipalidad. | Q18: 1
B19: Entidad como Arrendataria | E19: No llenar | Q19: 0
B20: 28 | C20: 9 | D20: Al comienzo del plazo del arrendamiento financiero, como arrendatarios reconocen los activos adquiridos mediante arrendamiento financiero como activos y las obligaciones asociadas a los mismos como pasivos en sus estados de situación financiera? | E20: No aplica | H20: La Municipalidad no es arrendataria a esta fecha de algún activo. | Q20: 1
B21: 28 | C21: 10 | D21: ¿Los activos y pasivos deberán ser reconocidos por importes iguales al valor razonable de la propiedad arrendada, o si fuera menor, por el valor presente del precio mínimo de los pagos por arrendamiento, determinados cada uno al inicio del arrendamiento.? | E21: No aplica | H21: La Municipalidad no es arrendataria a esta fecha de algún activo. | Q21: 1
B22: 28 | C22: 11 | D22: ¿Se calcula el valor presente de los pagos mínimos por el arrendamiento financiero, tomando como factor de descuento la tasa de interés implícita en el arrendamiento, o la tasa de interés incremental de los préstamos del arrendatario cuando sea impracticable determinar la primer opción? | E22: No aplica | H22: La Municipalidad no es arrendataria a esta fecha de algún activo. | Q22: 1
B23: 29 | C23: 12 | D23: En el arrendamiento financiero ¿Las transacciones y demás eventos se contabilizan y presentan de acuerdo con su fondo económico y realidad financiera, y no solamente en consideración a su forma legal? | E23: No aplica | H23: La Municipalidad no es arrendataria a esta fecha de algún activo. | Q23: 1
B24: 33 | C24: 13 | D24: En el arrendamiento financiero ¿Los costos que son directamente atribuibles a las actividades llevadas a cabo por parte del arrendatario en un arrendamiento financiero, se incluirán como parte del valor del activo reconocido en la transacción.? | E24: No aplica | H24: La Municipalidad no es arrendataria a esta fecha de algún activo. | Q24: 1
B25: 34 | C25: 14 | D25: En el arrendamiento financiero ¿Se dividen las cuotas del arrendamiento en cargas financieras y amortización? | E25: No aplica | H25: La Municipalidad no es arrendataria a esta fecha de algún activo. | Q25: 1
B26: 34 | C26: 15 | D26: En el arrendamiento financiero ¿Los pagos contingentes de los arrendamientos se cargan como gastos en los periodos en los que sean incurridos? | E26: No aplica | H26: La Municipalidad no es arrendataria a esta fecha de algún activo. | Q26: 1
B27: 36 | C27: 16 | D27: En el arrendamiento financiero ¿La política de depreciación para activos depreciables arrendados es coherente con la seguida para el resto de activos depreciables que se poseen? | E27: No aplica | H27: La Municipalidad no es arrendataria a esta fecha de algún activo. | Q27: 1
B28: 37 | C28: 17 | D28: En el arrendamiento financiero ¿Se deprecia el activo arrendado en función del menor entre el plazo de arrendamiento o la vida útil.? | E28: No aplica | H28: La Municipalidad no es arrendataria a esta fecha de algún activo. | Q28: 1
B29: 39 | C29: 18 | D29: En el arrendamiento financiero ¿Se aplican las pruebas pertinentes de deterioro del valor previstas en las normas internacionales y/o nacionales de contabilidad para determinar si el activo arrendado ha sufrido un deterioro del valor? | E29: No aplica | H29: La Municipalidad no es arrendataria a esta fecha de algún activo. | Q29: 1
B30: 42 | C30: 19 | D30: ¿Las cuotas derivadas de los arrendamientos operativos se reconocen como gasto de forma lineal, durante el transcurso del plazo del arrendamiento, salvo que resulte más representativa otra base sistemática de reparto por reflejar más adecuadamente el patrón temporal de los beneficios del arrendamiento para el usuario? | E30: No aplica | H30: La Municipalidad no es arrendataria a esta fecha de algún activo. | Q30: 1
B31: Entidad como Arrendadora | E31: No llenar | Q31: 0
B32: 50 | C32: 20 | D32: Como arrendador ¿Los costos directos iniciales entre los que se incluyen comisiones, honorarios jurídicos y costos internos que son incrementales y directamente atribuibles a la negociación y contratación del arrendamiento se excluyen de la inversión neta del arrendamiento y se reconocen como gastos cuando se reconozca el beneficio de la venta? | E32: No aplica | H32: A la fecha este tipo de transacción no se ha presentado en la Municipalidad. | Q32: 1
B33: 51 | C33: 21 | D33: ¿El reconocimiento de los ingresos financieros, se basa en una pauta que refleje, en cada uno de los periodos, una tasa de rendimiento constante sobre la inversión neta del arrendador en el arrendamiento financiero? | E33: No aplica | H33: Este requerimiento no aplica a la Municipalidad | Q33: 1
B34: 54 | C34: 22 | D34: Los arrendadores que son también fabricantes o distribuidores ¿reconocen los resultados derivados de la venta en el periodo, de acuerdo con las políticas contables utilizadas por la entidad para el resto de las operaciones de venta directa.? | E34: No aplica | H34: Este requerimiento no aplica a la Municipalidad | Q34: 1
B35: 55 | C35: 23 | D35: En caso de que la entidad sea un fabricante o comerciante arrendador: si se cotizan tasas de interés artificialmente bajas, ¿se limitan las ganancias o pérdidas en la venta de activos a lo que se aplicaría si se cobrara una tasa de interés de mercado? ¿Se reconocen los costos incurridos en relación con la negociación y la organización de un arrendamiento como un gasto cuando se reconoce la ganancia o pérdida? | E35: No aplica | H35: Este requerimiento no aplica a la Municipalidad | Q35: 1
B36: 63 | C36: 24 | D36: Como arrendador los ingresos procedentes de los arrendamientos operativos ¿se reconocen como ingresos, en el estado de rendimiento financiero, de forma lineal a lo largo del plazo de arrendamiento, salvo que resulte más representativa otra base sistemática de reparto, por reflejar más adecuadamente el patrón temporal de agotamiento de las ganancias derivadas del arrendamiento en cuestión? | E36: Cumple | Q36: 1
B37: 64 | C37: 25 | D37: Como arrendador los costos relacionados con cada una de las cuotas de arrendamiento operativo, incluyendo en ellos la depreciación del activo, se reconocen como gasto del periodo correspondiente? | E37: Cumple | Q37: 1
B38: 65 | C38: 26 | D38: Como arrendador los costos directos iniciales, incurridos por el arrendador en la negociación y contratación de un arrendamiento operativo, se añaden al importe en libros del activo arrendado y se reconocen como gasto a lo largo del plazo de arrendamiento, sobre la misma base que los ingresos del arrendamiento.? | E38: No aplica | H38: Este requerimiento no aplica a la Municipalidad | Q38: 1
B39: 66 | C39: 27 | D39: ¿La depreciación de los activos depreciables arrendados se efectúa de forma coherente con las políticas normalmente seguidas por el arrendador para activos similares, y se calcula con arreglo a las bases establecidas en la NICSP 17 o la NICSP 31, según corresponda? | E39: Cumple | Q39: 1
B40: 67 | C40: 28 | D40: ¿Se aplican las pruebas pertinentes de deterioro del valor previstas en las normas internacionales y/o nacionales de contabilidad.? | E40: Cumple Parcialmente | F40: Bajo | G40: Bajo | H40: Como parte del proceso de implementación de las NICSP se está realizando la revisión de la aplicación de las NICSP relacionadas con el deterioro de los activos. | Q40: 1
B41: Transacciones de venta con arrendamiento posterior | E41: No llenar | Q41: 0
B42: 70 | C42: 29 | D42: ¿La entidad ha iniciado alguna transacción de venta y arrendamiento? | E42: No aplica | H42: Este requerimiento no aplica a la Municipalidad | Q42: 1
B43: 71 | C43: 30 | D43: Si una transacción de venta con arrendamiento posterior resulta en un arrendamiento financiero, cualquier exceso del importe de la venta sobre el importe en libros del activo enajenado se difiere y amortiza a lo largo del plazo del arrendamiento ? | E43: No aplica | H43: Este requerimiento no aplica a la Municipalidad | Q43: 1
B44: 73 | C44: 31 | D44: Si una venta con arrendamiento posterior resulta ser un arrendamiento operativo, y queda claro que la operación se ha establecido a su valor razonable, cualquier pérdida o ganancia se reconoce inmediatamente? | E44: No aplica | H44: Este requerimiento no aplica a la Municipalidad | Q44: 1
B45: 75 | C45: 32 | D45: En los contratos de arrendamiento operativo, si el valor razonable del bien en el momento de la venta con arrendamiento posterior fuera inferior a su importe en libros, ¿ la pérdida derivada de la diferencia entre ambas cifras se reconoce inmediatamente? | E45: No aplica | H45: Este requerimiento no aplica a la Municipalidad | Q45: 1
B46: Revelaciones | E46: No llenar | Q46: 0
B47: Revelaciones para los arrendadores | E47: No llenar | Q47: 0
B48: Arrendamientos Financieros | E48: No llenar | Q48: 0
B49: 48 | C49: 33 | D49: Como arrendador ¿se reconocen las cuentas por cobrar por cuotas de arrendamiento financiero como activos en su estado de situación financiera. Estos activos figurando como cuentas por cobrar, por un importe igual al de la inversión neta en el arrendamiento.? | E49: No aplica | H49: Este requerimiento no aplica a la Municipalidad | Q49: 1
B50: 60 | C50: 34 | D50: ¿Se revela la siguiente información sobre los arrendamientos financieros? | E50: No llenar | Q50: 0
B51: 60 | C51: 34 (a) | D51: (a) Una conciliación a la fecha de presentación entre la inversión bruta total en los arrendamientos y el valor presente de los pagos mínimos a recibir por arrendamiento a la fecha de la presentación. | E51: No aplica | H51: Este requerimiento no aplica a la Municipalidad | Q51: 1
B52: 60 | C52: 34 (b) | D52: (b) La inversión bruta en el arrendamiento y el valor presente de los pagos mínimos por arrendamiento por cobrar en la fecha de presentación, para cada uno de los siguientes periodos: | E52: No llenar | Q52: 0
B53: 60 | C53: 34 (i) | D53: (i) hasta un año; | E53: No aplica | H53: Este requerimiento no aplica a la Municipalidad | Q53: 1
B54: 60 | C54: 34 (ii) | D54: (ii) entre uno y cinco años; y | E54: No aplica | H54: Este requerimiento no aplica a la Municipalidad | Q54: 1
B55: 60 | C55: 34 (iii) | D55: (iii) más de 5 años | E55: No aplica | H55: Este requerimiento no aplica a la Municipalidad | Q55: 1
B56: 60 | C56: 34 (c) | D56: (c) los ingresos financieros no acumulados (no devengados); | E56: No aplica | H56: Este requerimiento no aplica a la Municipalidad | Q56: 1
B57: 60 | C57: 34 (d) | D57: (d) el importe de los valores residuales no garantizados reconocidos a favor del arrendador; | E57: No aplica | H57: Este requerimiento no aplica a la Municipalidad | Q57: 1
B58: 60 | C58: 34 (e) | D58: (e) las reducciones de valor acumuladas para cubrir insolvencias relativas a los pagos mínimos de arrendamientos financieros por cobrar; | E58: No aplica | H58: Este requerimiento no aplica a la Municipalidad | Q58: 1
B59: 60 | C59: 34 (f) | D59: (f) las cuotas contingentes reconocidas en el estado de rendimiento financiero; y | E59: No aplica | H59: Este requerimiento no aplica a la Municipalidad | Q59: 1
B60: 60 | C60: 34 (g) | D60: (g) una descripción general de los acuerdos de arrendamiento significativos concluidos por el arrendador. | E60: No aplica | H60: Este requerimiento no aplica a la Municipalidad | Q60: 1
B61: 61 | C61: 35 | D61: ¿La entidad revela la inversión bruta menos los ingresos no devengados en nuevos negocios agregados durante el período, después de deducir los importes relevantes para los arrendamientos cancelados? | E61: No aplica | H61: Este requerimiento no aplica a la Municipalidad | Q61: 1
B62: Arrendamientos Operativos | E62: No llenar | Q62: 0
B63: 62 | C63: 36 | D63: En arrendamientos operativos, como arrendador ¿se revela en su estado de situación financiera, los activos dedicados a arrendamientos operativos de acuerdo con la naturaleza de tales bienes? | E63: Cumple | Q63: 1
B64: 69 | C64: 37 | D64: ¿Se revela la siguiente información sobre los arrendamientos operativos? | E64: No llenar | Q64: 0
B65: 69 | C65: 37 (a) | D65: (a) el importe acumulado de los pagos mínimos futuros del arrendamiento correspondientes a los arrendamientos operativos no cancelables, así como los importes que corresponden a los siguientes plazos: | E65: No llenar | Q65: 0
B66: 69 | C66: 37 (i) | D66: (i) hasta un año; | E66: Cumple Parcialmente | F66: Bajo | G66: Bajo | Q66: 1
B67: 69 | C67: 37 (ii) | D67: (ii) entre uno y cinco años; | E67: Cumple Parcialmente | F67: Bajo | G67: Bajo | Q67: 1
B68: 69 | C68: 37 (iii) | D68: (iii) más de cinco años; | E68: Cumple Parcialmente | F68: Bajo | G68: Bajo | Q68: 1
B69: 69 | C69: 37 (b) | D69: (b) el total de las cuotas de carácter contingente reconocidas en el estado de rendimiento financiero del periodo; y | E69: No aplica | H69: Este requerimiento no aplica a la Municipalidad | Q69: 1
B70: 69 | C70: 37 (c) | D70: (c) una descripción general de los acuerdos de arrendamiento llevados a cabo por el arrendador. | E70: Cumple Parcialmente | F70: Bajo | G70: Bajo | Q70: 1
B71: Transacciones de venta con arrendamiento posterior | E71: No llenar | Q71: 0
B72: 77 | C72: 38 | D72: ¿La divulgación de los acuerdos de arrendamiento material incluye las disposiciones únicas o inusuales del acuerdo o los términos de las transacciones de venta y arrendamiento? | E72: No aplica | H72: Este requerimiento no aplica a la Municipalidad | Q72: 1
B73: 78 | D73: Considerar que en caso de existir esta transación puede exigirse que se revele por separado de las operaciones de venta con arrendamiento posterior de acuerdo con la NICSP 1. | E73: No llenar | Q73: 0
B74: Revelaciones para los arrendatarios | E74: No llenar | Q74: 0
B75: Arrendamientos Financieros | E75: No llenar | Q75: 0
B76: 40 | C76: 39 | D76: ¿Se revela la siguiente información sobre los arrendamientos financieros? | E76: No llenar | Q76: 0
B77: 40 | C77: 39 (a) | D77: (a) para cada clase de activos, el valor en libros en la fecha de presentación; | E77: No aplica | H77: Este requerimiento no aplica a la Municipalidad | Q77: 1
B78: 40 | C78: 39 (b) | D78: (b) una conciliación entre el total de pagos mínimos de arrendamiento en la fecha de presentación, y su valor presente; | E78: No aplica | H78: Este requerimiento no aplica a la Municipalidad | Q78: 1
B79: 40 | C79: 39 (c) | D79: (c) el total de pagos mínimos futuros del arrendamiento a la fecha de presentación, y su valor presente, para cada uno de los siguientes plazos: | E79: No llenar | Q79: 0
B80: 40 | C80: 39 (ci) | D80: (i) hasta un año; | E80: No aplica | H80: Este requerimiento no aplica a la Municipalidad | Q80: 1
B81: 40 | C81: 39 (cii) | D81: (ii) entre uno y cinco años; | E81: No aplica | H81: Este requerimiento no aplica a la Municipalidad | Q81: 1
B82: 40 | C82: 39 (ciii) | D82: (iii) más de cinco años; | E82: No aplica | H82: Este requerimiento no aplica a la Municipalidad | Q82: 1
B83: 40 | C83: 39 (d) | D83: (d) cuotas contingentes reconocidas como gasto en el periodo; | E83: No aplica | H83: Este requerimiento no aplica a la Municipalidad | Q83: 1
B84: 40 | C84: 39 (e) | D84: (e) el total de los pagos mínimos futuros de subarrendamientos que se esperan recibir, en la fecha de presentación, por los subarrendamientos financieros no cancelables; y | E84: No aplica | H84: Este requerimiento no aplica a la Municipalidad | Q84: 1
B85: 40 | C85: 39 (f) | D85: (f) una descripción general de los acuerdos significativos de arrendamiento donde se incluirán, pero sin limitarse a ellos, los siguientes datos: | E85: No llenar | Q85: 0
B86: 40 | C86: 39 (fi) | D86: (i) las bases para la determinación de cualquier cuota decarácter contingente que se haya pactado; | E86: No aplica | H86: Este requerimiento no aplica a la Municipalidad | Q86: 1
B87: 40 | C87: 39 (fii) | D87: (ii) la existencia y, en su caso, los plazos de renovación o las opciones de compra y las cláusulas de actualización o escalonamiento; y | E87: No aplica | H87: Este requerimiento no aplica a la Municipalidad | Q87: 1
B88: 40 | C88: 39 (fiii) | D88: (iii) las restricciones impuestas por contratos dearrendamiento financiero, tales como las que se refieran a la devolución del resultado positivo (ahorro), devolución de las aportaciones de capital, la distribución de dividendos o distribuciones similares, endeudamiento adicional o a nuevos contratos de arrendamiento | E88: No aplica | H88: Este requerimiento no aplica a la Municipalidad | Q88: 1
B89: Arrendamientos Operativos | E89: No llenar | Q89: 0
B90: 44 | C90: 40 | D90: ¿Se revela la siguiente información sobre los arrendamientos operativos? | E90: No llenar | Q90: 0
B91: 44 | C91: 40 (a) | D91: (a) el total de pagos mínimos futuros del arrendamiento, derivados de contratos de arrendamiento operativo no cancelables, para cada uno de los siguientes periodos: | E91: No llenar | Q91: 0
B92: 44 | C92: 40 (ai) | D92: (i) hasta un año; | E92: No aplica | H92: Este requerimiento no aplica a la Municipalidad | Q92: 1
B93: 44 | C93: 40 (aii) | D93: (ii) entre uno y cinco años; | E93: No aplica | H93: Este requerimiento no aplica a la Municipalidad | Q93: 1
B94: 44 | C94: 40 (aiii) | D94: (iii) más de cinco años | E94: No aplica | H94: Este requerimiento no aplica a la Municipalidad | Q94: 1
B95: 44 | C95: 40 (b) | D95: (b) el total de los pagos mínimos futuros por subarrendamiento que se esperan recibir, en la fecha de presentación, por los subarrendamientos no cancelables; | E95: No aplica | H95: Este requerimiento no aplica a la Municipalidad | Q95: 1
B96: 44 | C96: 40 (c) | D96: (c) cuotas de arrendamientos y subarriendos reconocidas como gastos del periodo, revelando por separado los importes de: | E96: No llenar | Q96: 0
B97: 44 | C97: 40 (ci) | D97: (i) los pagos mínimos por arrendamiento, | E97: No aplica | H97: Este requerimiento no aplica a la Municipalidad | Q97: 1
B98: 44 | C98: 40 (cii) | D98: (ii) las cuotas contingentes; y | E98: No aplica | H98: Este requerimiento no aplica a la Municipalidad | Q98: 1
B99: 44 | C99: 40 (ciii) | D99: (iii) las cuotas de subarriendo. | E99: No aplica | H99: Este requerimiento no aplica a la Municipalidad | Q99: 1
B100: 44 | C100: 40 (d) | D100: (d) una descripción general de los acuerdos significativos de arrendamiento llevados a cabo por el arrendatario, donde se incluirán, sin limitarse a ellos, los siguientes datos: | E100: No llenar | Q100: 0
B101: 44 | C101: 40 (di) | D101: (i) las bases para la determinación de cualquier eventualcuota de carácter contingente que se haya pactado; | E101: No aplica | H101: Este requerimiento no aplica a la Municipalidad | Q101: 1
B102: 44 | C102: 40 (dii) | D102: (ii) la existencia y, en su caso, los plazos de renovación o las opciones de compra y las cláusulas de actualización o escalonamiento; y | E102: No aplica | H102: Este requerimiento no aplica a la Municipalidad | Q102: 1
B103: 44 | C103: 40 (diii) | D103: (iii) las restricciones impuestas por contratos de arrendamiento financiero, tales como las que se refieran a la devolución del resultado positivo (ahorro), devolución de las aportaciones de capital, la distribución de dividendos o distribuciones similares, endeudamiento adicional o a nuevos contratos de arrendamiento. | E103: No aplica | H103: Este requerimiento no aplica a la Municipalidad | Q103: 1
B104: Transacciones de venta con arrendamiento posterior | E104: No llenar | Q104: 0
B105: 77 | C105: 41 | D105: ¿La divulgación de los acuerdos de arrendamiento material incluye las disposiciones únicas o inusuales del acuerdo o los términos de las transacciones de venta y arrendamiento? | E105: No aplica | H105: Este requerimiento no aplica a la Municipalidad | Q105: 1
B106: 78 | D106: Considerar que en caso de existir esta transación puede exigirse que se revele por separado de las operaciones de venta con arrendamiento posterior de acuerdo con la NICSP 1. | E106: No llenar | Q106: 0
B107: Totales | C107: =COUNT(C11:C106) -> 41 | E107: =+COUNTA(E10:E106)-COUNTIF($E$10:$E$106,"=No llenar") -> 71
B108: Preguntas pendientes de respuesta | E108: =+H110-E107 -> 0
F109: Reconocimiento y medición | G109: Revelaciones | H109: Total
E110: Número de ítems | F110: =+SUM(Q11:Q45) -> 32 | G110: =+SUM(Q48:Q106) -> 39 | H110: =+SUM(F110:G110) -> 71
E112: Ítems no aplicables | F112: =COUNTIF($E$11:$E$45,"=No aplica") -> 25 | G112: =(COUNTIF($E$48:$E$106,"=No aplica")) -> 34 | H112: =+SUM(F112:G112) -> 59
E114: ítems aplicables | F114: =+F110-F112 -> 7 | G114: =+G110-G112 -> 5 | H114: =+SUM(F114:G114) -> 12
E116: ítems cumplidos | F116: =COUNTIF($E$11:$E$45,"=Cumple") -> 6 | G116: =COUNTIF($E$48:$E$106,"=Cumple") -> 1 | H116: =+SUM(F116:G116) -> 7
E118: Ítems cumplidos parcialmente | F118: =COUNTIF($E$11:$E$45,"=Cumple Parcialmente") -> 1 | G118: =COUNTIF($E$48:$E$106,"=Cumple Parcialmente") -> 4 | H118: =+SUM(F118:G118) -> 5
E120: Ítems no cumplidos | F120: =COUNTIF($E$11:$E$45,"=No Cumple") -> 0 | G120: =COUNTIF($E$48:$E$106,"=No Cumple") -> 0 | H120: =+SUM(F120:G120) -> 0
E122: Porcentaje de aplicación | F122: =+IFERROR((F116+(F118*0.5))/F114,0) -> 0.9285714286 | G122: =+IFERROR((G116+(G118*0.5))/G114,0) -> 0.6 | H122: =+(F122*60%)+(G122*40%) -> 0.7971428571
F124: Bajo | G124: Medio | H124: Alto
E125: Impacto | F125: =COUNTIF($F$11:$F$106,"Bajo") -> 5 | G125: =COUNTIF($F$11:$F$106,"Medio") -> 0 | H125: =COUNTIF($F$11:$F$106,"Alto") -> 0
F126: Bajo | G126: Medio | H126: Alto
E127: Esfuerzo | F127: =COUNTIF($G$11:$G$106,"Bajo") -> 5 | G127: =COUNTIF($G$11:$G$106,"Medio") -> 0 | H127: =COUNTIF($G$11:$G$106,"Alto") -> 0
B130: En caso de que la entidad marque NO CUMPLE en la norma o en su defecto se acoga a algun transitorio debe responder la siguiente pregunta y completar el plan de acción para cada una de las brechas identificadas:
B131: Responda con SI o NO
B132: La norma posee transitorios | E132: Si
B134: La norma posee Planes de Acción | E134: Si
J135: PLAZO
B136: Número de párrafo | C136: Número pregunta | D136: Acciones para brechas | E136: Actividades de cumplimiento | F136: % de Avance Plan de acción | G136: Requerimientos | H136: Recursos | I136: Responsable | J136: Fecha de Inicio | K136: Fecha para Finalizar | L136: Fecha Actual | M136: Duración meses | N136: Meses Transcurridos | O136: Meses para finalizar actividad
B137: 67 | C137: 28 | D137: Aplicar las pruebas pertinentes de deterioro del valor previstas en las NICSP 21 y NICSP 26. | E137: 3 | F137: 0.8 | G137: Plan General Contabilidad Nacional, Manual Funcional Contable, Normativa emitida por la DCN, Asesoría Externa. | H137: Recurso Humano, Recursos Financieros, Tiempo laboral para realizar la actividad | I137: Contador Municipal Con apoyo de: Comisión de NICSP Responsable de Proveeduría. | J137: 2019-01-01 | K137: 2024-12-31 | L137: =NOW() -> 2024-07-26T09:10:52.190 | M137: =DATEDIF(J137,K137,"D")/30 -> 73.03333333 | N137: =DATEDIF(J137,L137,"D")/30 -> 67.76666667 | O137: =+M137-N137 -> 5.266666667
B138: 69 | C138: 37 (i) | D138: Revelar en las notas a estados financieros la información sobre los importe de arrendamientos operativos, referida a los pagos mínimos futuros por recibir hasta un año; | E138: 2 | F138: 0.8 | G138: Plan General Contabilidad Nacional, Manual Funcional Contable, Normativa emitida por la DCN, Asesoría Externa. | H138: Recurso Humano, Recursos Financieros, Tiempo laboral para realizar la actividad | I138: Contador Municipal Con apoyo de: Comisión de NICSP Responsable de la Unidad Legal, Responsable de Proveeduría. | J138: 2019-01-01 | K138: 2024-12-31 | L138: =NOW() -> 2024-07-26T09:10:52.190 | M138: =DATEDIF(J138,K138,"D")/30 -> 73.03333333 | N138: =DATEDIF(J138,L138,"D")/30 -> 67.76666667 | O138: =+M138-N138 -> 5.266666667
B139: 69 | C139: 37 (ii) | D139: Revelar en las notas a estados financieros la información sobre los importe de arrendamientos operativos, referida a los pagos mínimos futuros por recibir entre uno y cinco años; | E139: 2 | F139: 0.8 | G139: Plan General Contabilidad Nacional, Manual Funcional Contable, Normativa emitida por la DCN, Asesoría Externa. | H139: Recurso Humano, Recursos Financieros, Tiempo laboral para realizar la actividad | I139: Contador Municipal Con apoyo de: Comisión de NICSP Responsable de la Unidad Legal, Responsable de Proveeduría. | J139: 2019-01-01 | K139: 2024-12-31 | L139: 2024-07-26T09:10:52.190 | M139: 73.03333333 | N139: 67.76666667 | O139: 5.266666667
B140: 69 | C140: 37 (iii) | D140: Revelar en las notas a estados financieros la información sobre los importe de arrendamientos operativos, referida a los pagos mínimos futuros por recibir más de cinco años; | E140: 2 | F140: 0.8 | G140: Plan General Contabilidad Nacional, Manual Funcional Contable, Normativa emitida por la DCN, Asesoría Externa. | H140: Recurso Humano, Recursos Financieros, Tiempo laboral para realizar la actividad | I140: Contador Municipal Con apoyo de: Comisión de NICSP Responsable de la Unidad Legal, Responsable de Proveeduría. | J140: 2019-01-01 | K140: 2024-12-31 | L140: 2024-07-26T09:10:52.190 | M140: 73.03333333 | N140: 67.76666667 | O140: 5.266666667
B141: 69 | C141: 37 (c) | D141: Revelar en las notas a estados financieros la información sobre los importe de arrendamientos operativos, referida a los pagos mínimos futuros por recibir una descripción general de los acuerdos de arrendamiento llevados a cabo por el arrendador. | E141: 2 | F141: 0.8 | G141: Plan General Contabilidad Nacional, Manual Funcional Contable, Normativa emitida por la DCN, Asesoría Externa. | H141: Recurso Humano, Recursos Financieros, Tiempo laboral para realizar la actividad | I141: Contador Municipal Con apoyo de: Comisión de NICSP Responsable de la Unidad Legal, Responsable de Proveeduría. | J141: 2019-01-01 | K141: 2024-12-31 | L141: 2024-07-26T09:10:52.190 | M141: 73.03333333 | N141: 67.76666667 | O141: 5.266666667
L142: 2024-07-26T09:10:52.190 | M142: 0 | N142: 1516.633333 | O142: -1516.633333
L143: 2024-07-26T09:10:52.190 | M143: =DATEDIF(J143,K143,"D")/30 -> 0 | N143: =DATEDIF(J143,L143,"D")/30 -> 1516.633333 | O143: =+M143-N143 -> -1516.633333
D146: =+"TOTAL DE BRECHAS (NO CUMPLE-CUMPLE PARCIALMENTE) = "&COUNTA(D137:D143) -> TOTAL DE BRECHAS (NO CUMPLE-CUMPLE PARCIALMENTE) = 5 | E146: =+COUNTA(D137:D143) -> 5
D148: PORCENTAJE PROMEDIO DE AVANCE PLANES ACCIÓN | F148: =+IFERROR(AVERAGE(F137:F143),0) -> 0.8
B150: JERARCA MAXIMO
D151: NOMBRE | E151: FIRMA
B153: DIRECTOR ADMINISTRATIVO Y FINANCIERO
D154: NOMBRE | E154: FIRMA
B156: CONTADOR
D157: NOMBRE | E157: FIRMA

Sheet NICSP 14
B2: NICSP 14
B3: Hechos ocurridos después de la fecha de presentación
B4: Objetivo: Prescribir: cuándo debe, una entidad, proceder a ajustar sus estados financieros por hechos ocurridos después de la fecha de presentación y; las revelaciones que la entidad debe efectuar respecto a la fecha en que los estados financieros han sido autorizados para su emisión, así como, respecto a los hechos ocurridos después de la fecha de presentación.
B5: La norma es aplicable en la entidad (Indique Si o No) | E5: Si
B7: Complete cada una de las preguntas según corresponda con "No aplica", "Cumple", "No Cumple" o "Cumple Parcialmente".
B8: Número de párrafo | C8: Número pregunta | D8: Requisito de la Norma | E8: Respuesta | F8: Impacto | G8: Esfuerzo | H8: Observaciones
B10: Reconocimiento y medición | E10: No llenar | Q10: 0
B11: 5 | C11: 1 | D11: ¿La entidad cuenta para eventos después de la fecha de reporte? En caso afirmativo, ¿existe una política contable para su contabilización? - Los eventos posteriores a la fecha de reporte son todos aquellos eventos, ya sean favorables o desfavorables, que se han producido entre la fecha de presentación de los estados financieros y la fecha de autorización para su emisión. | E11: Cumple | F11: Medio | G11: Medio | H11: En el mes de setiembre de 2022 se implementó una política partiular en la cual se estabblece lo relacionado con este requerimiento. | Q11: 1
B12: 5 | C12: 2 | D12: La entidad considera los dos tipos de eventos: (a) aquellos que suministran evidencia de condiciones que ya existían en la fecha de presentación (hechos posteriores a la fecha de presentación que implican ajustes); y (b) aquéllos que son indicativos de condiciones que han aparecido después de la fecha de presentación (hechos posteriores a la fecha de presentación que no implican ajustes). | E12: Cumple | Q12: 1
B13: 10 | C13: 3 | D13: ¿La entidad reporta hechos ocurridos después de la fecha de presentación que impliquen ajustes? | E13: Cumple | H13: A la fecha la Municipalidad aplicó un ajuste por el registro incorrecto de una transacción correspondiente al ejercicio económico 2021. | Q13: 1
B14: 11 | D14: Algunos ejemplos de hechos ocurridos después de la fecha de presentación: - El acuerdo después del período de presentación de un caso judicial - La recepción de información que indica que un activo fue deteriorado - El descubrimiento de fraudes o errores. | E14: No llenar | Q14: 0
B15: 12 | C15: 4 | D15: ¿La entidad procede a modificar los importes reconocidos en sus estados financieros, para reflejar la incidencia de los hechos ocurridos después de la fecha de presentación? | E15: No aplica | H15: La Municipalidad inició con la implementación de las NICSP en el presente año, por lo tanto esta norma no ha aplicado. No obstante eso, como parte del proceso de implementción que se desarrolló un trabajo que permitió identificar las posibles situaciones que impliquen la aplicación de la NICSP 14 y las revelaciones que procedan, de acuerdo con lo establecido en la norma mencionada. | Q15: 1
B16: 13 | D16: Un ejemplo de un evento no de ajuste es la disminución en el valor de mercado de las inversiones después del período del informe, ya que esto refleja las circunstancias que surgieron después del final del período del informe. | E16: No llenar | Q16: 0
B17: 14 | C17: 5 | D17: ¿Si una entidad acuerda dividendos o distribuciones similares después de la fecha de presentación, la entidad no reconoce tales distribuciones como un pasivo en la fecha de presentación? | E17: No aplica | H17: Este requerimiento no aplica a la Municipalidad | Q17: 1
B18: 18 | C18: 6 | D18: ¿La entidad no prepara sus estados financieros sobre la base de que es un negocio en marcha si los responsables de preparar estos estados financieros o el órgano de gobierno determinan, después de la fecha de presentación, existe la intención de liquidar la entidad o cesar en sus operaciones, o que no existe otra alternativa más realista que hacerlo? | E18: No aplica | H18: Este requerimiento no aplica a la Municipalidad | Q18: 1
B19: 25 | C19: 7 | D19: ¿Cuando una reestructuración anunciada después de la fecha de presentación satisface la definición de un hecho que no implica ajuste, se realiza una adecuada revelación de información de acuerdo con esta Norma.? | E19: No aplica | H19: Este requerimiento no aplica a la Municipalidad | Q19: 1
B20: 26 | C20: 8 | D20: ¿La entidad revelará la fecha en que los estados financieros han sido autorizados para su publicación, así como quién ha dado esta autorización.? | E20: Cumple | H20: Este requerimiento no aplica a la Municipalidad | Q20: 1
B21: Revelaciones | E21: No llenar | Q21: 0
B22: 28 | C22: 9 | D22: Si después de la fecha de presentación pero, antes de que los mismos fueran autorizados para su emisión, la entidad recibe información acerca de condiciones que existían ya en dicha fecha, a la luz de la información recibida ¿se actualizan las revelaciones que estén relacionadas con tales condiciones? | E22: Cumple | H22: La Municipalidad inició con la implementación de las NICSP en el presente año, por lo tanto esta norma no ha aplicado. No obstante eso, como parte del proceso de implementción que se desarrolló un trabajo que permitió identificar las posibles situaciones que impliquen la aplicación de la NICSP 14 y las revelaciones que procedan, de acuerdo con lo establecido en la norma mencionada. | Q22: 1
B23: 30 | C23: 10 | D23: Si los hechos posteriores a la fecha de presentación que no implican ajustes tienen importancia relativa o son significativos, su no revelación puede influir en las decisiones económicas de los usuarios tomadas a partir de los estados financieros. En consecuencia, ¿la entidad revela la siguiente información para cada una de las categorías significativas de hechos ocurridos después de la fecha de presentación que no implican ajustes? | E23: No llenar | Q23: 0
B24: 30 | C24: 10 (a) | D24: (a) la naturaleza del hecho; y | E24: No aplica | H24: La Municipalidad inició con la implementación de las NICSP en el presente año, por lo tanto esta norma no ha aplicado. No obstante eso, como parte del proceso de implementción que se desarrolló un trabajo que permitió identificar las posibles situaciones que impliquen la aplicación de la NICSP 14 y las revelaciones que procedan, de acuerdo con lo establecido en la norma mencionada. | Q24: 1
B25: 30 | C25: 10 (b) | D25: (b) una estimación de su efecto financiero, o un pronunciamiento sobre la imposibilidad de realizar tal estimación. | E25: No aplica | H25: La Municipalidad inició con la implementación de las NICSP en el presente año, por lo tanto esta norma no ha aplicado. No obstante eso, como parte del proceso de implementción que se desarrolló un trabajo que permitió identificar las posibles situaciones que impliquen la aplicación de la NICSP 14 y las revelaciones que procedan, de acuerdo con lo establecido en la norma mencionada. | Q25: 1
B26: Totales | C26: =COUNT(C11:C25) -> 10 | E26: =+COUNTA(E10:E25)-COUNTIF($E$10:$E$25,"=No llenar") -> 11
B27: Preguntas pendientes de respuesta | E27: =+H29-E26 -> 0
F28: Reconocimiento y medición | G28: Revelaciones | H28: Total
E29: Número de ítems | F29: =+SUM(Q11:Q20) -> 8 | G29: =+SUM(Q22:Q25) -> 3 | H29: =+SUM(F29:G29) -> 11
E31: Ítems no aplicables | F31: =COUNTIF($E$11:$E$20,"=No aplica") -> 4 | G31: =(COUNTIF($E$22:$E$25,"=No aplica")) -> 2 | H31: =+SUM(F31:G31) -> 6
E33: ítems aplicables | F33: =+F29-F31 -> 4 | G33: =+G29-G31 -> 1 | H33: =+SUM(F33:G33) -> 5
E35: ítems cumplidos | F35: =COUNTIF($E$11:$E$20,"=Cumple") -> 4 | G35: =COUNTIF($E$22:$E$25,"=Cumple") -> 1 | H35: =+SUM(F35:G35) -> 5
E37: Ítems cumplidos parcialmente | F37: =COUNTIF($E$11:$E$20,"=Cumple Parcialmente") -> 0 | G37: =COUNTIF($E$22:$E$25,"=Cumple Parcialmente") -> 0 | H37: =+SUM(F37:G37) -> 0
E39: Ítems no cumplidos | F39: =COUNTIF($E$11:$E$20,"=No Cumple") -> 0 | G39: =COUNTIF($E$22:$E$25,"=No Cumple") -> 0 | H39: =+SUM(F39:G39) -> 0
E41: Porcentaje de aplicación | F41: =+IFERROR((F35+(F37*0.5))/F33,0) -> 1 | G41: =+IFERROR((G35+(G37*0.5))/G33,0) -> 1 | H41: =+(F41*60%)+(G41*40%) -> 1
F43: Bajo | G43: Medio | H43: Alto
E44: Impacto | F44: =COUNTIF($F$11:$F$25,"Bajo") -> 0 | G44: =COUNTIF($F$11:$F$25,"Medio") -> 1 | H44: =COUNTIF($F$11:$F$25,"Alto") -> 0
F45: Bajo | G45: Medio | H45: Alto
E46: Esfuerzo | F46: =COUNTIF($G$11:$G$25,"Bajo") -> 0 | G46: =COUNTIF($G$11:$G$25,"Medio") -> 1 | H46: =COUNTIF($G$11:$G$25,"Alto") -> 0
B49: En caso de que la entidad marque NO CUMPLE en la norma o en su defecto se acoga a algun transitorio debe responder la siguiente pregunta y completar el plan de acción para cada una de las brechas identificadas:
B50: Responda con SI o NO
B51: La norma posee transitorios
B53: La norma posee Planes de Acción
J54: PLAZO
B55: Número de párrafo | C55: Número pregunta | D55: Acciones para brechas | E55: Actividades de cumplimiento | F55: % de Avance Plan de acción | G55: Requerimientos | H55: Recursos | I55: Responsable | J55: Fecha de Inicio | K55: Fecha para Finalizar | L55: Fecha Actual | M55: Duración meses | N55: Meses Transcurridos | O55: Meses para finalizar actividad
L56: =NOW() -> 2024-07-26T09:10:52.190 | M56: =DATEDIF(J56,K56,"D")/30 -> 0 | N56: =DATEDIF(J56,L56,"D")/30 -> 1516.633333 | O56: =+M56-N56 -> -1516.633333
L57: =NOW() -> 2024-07-26T09:10:52.190 | M57: =DATEDIF(J57,K57,"D")/30 -> 0 | N57: =DATEDIF(J57,L57,"D")/30 -> 1516.633333 | O57: =+M57-N57 -> -1516.633333
D60: =+"TOTAL DE BRECHAS (NO CUMPLE-CUMPLE PARCIALMENTE) = "&COUNTA(D56:D57) -> TOTAL DE BRECHAS (NO CUMPLE-CUMPLE PARCIALMENTE) = 0 | E60: =+COUNTA(D56:D57) -> 0
D62: PORCENTAJE PROMEDIO DE AVANCE PLANES ACCIÓN | F62: =+IFERROR(AVERAGE(F56:F57),0) -> 0
B64: JERARCA MAXIMO
D65: NOMBRE | E65: FIRMA
B67: DIRECTOR ADMINISTRATIVO Y FINANCIERO
D68: NOMBRE | E68: FIRMA
B70: CONTADOR
D71: NOMBRE | E71: FIRMA

Sheet NICSP 16
B2: NICSP 16
B3: Propiedades de Inversión
B4: Objetivo: Prescribir el tratamiento contable de laspropiedades de inversión y las exigencias de revelación de información correspondientes
B5: La norma es aplicable en la entidad (Indique SI o No) | E5: No
B7: Complete cada una de las preguntas según corresponda con "No aplica", "Cumple", "No Cumple" o "Cumple Parcialmente".
B8: Número de párrafo | C8: Número pregunta | D8: Requisito de la Norma | E8: Respuesta | F8: Impacto | G8: Esfuerzo | H8: Observaciones
B10: Reconocimiento y medición | E10: No llenar | Q10: 0
B11: 7 | C11: 1 | D11: ¿La entidad contabiliza las propiedades de inversión? En caso afirmativo, ¿la entidad tiene una política contable para propiedades de inversión? Las propiedades (terrenos o edificios, considerados en su totalidad o en parte, o ambos) que se tienen (por parte del dueño o por parte del arrendatario que haya acordado un arrendamiento financiero) para obtener rentas, apreciación del capital o ambas, en lugar de para: (a) su uso en la producción o suministro de bienes o servicios, o bien para fines administrativos; o (b) su venta en el curso ordinario de las operaciones. | Q11: 1
C12: 2 | D12: ¿La entidad diferencia entre propiedades de inversión según la NICSP 16 y propiedades, planta y equipo según la NICSP 17? | Q12: 1
B13: 14 | C13: 3 | D13: ¿Si la entidad pública posee una propiedad para conseguir ingresos por arrendamiento o plusvalías, esta se reconoce como propiedades en inversión? | Q13: 1
B14: 18 | C14: 4 | D14: ¿La entidad desarrolla criterios para poder ejercer tal juicio de forma coherente, de acuerdo con la definición de propiedades de inversión y con las guías correspondientes ? | Q14: 1
B15: Reconocimiento | E15: No llenar | Q15: 0
B16: 20 | C16: 5 | D16: ¿Las propiedades de inversión se reconocen como un activo cuando, y solo cuando es probable que los beneficios económicos futuros o potencial de servicio que están asociados con las propiedades de inversión fluyan hacia la entidad? | Q16: 1
B17: 20 | C17: 6 | D17: ¿Las propiedades de inversión se reconocen como un activo cuando, y solo cuando el costo o el valor razonable de las propiedades de inversión pueda ser medido en forma fiable? | Q17: 1
B18: Medición | E18: No llenar | Q18: 0
B19: 26 | C19: 7 | D19: ¿Una propiedad de inversión se mide inicialmente a su costo (Los costos de transacción deben incluirse en la medición inicial)? | Q19: 1
B20: 27 | C20: 8 | D20: Cuando se adquiere una propiedad de inversión a través de una transacción sin contraprestación, ¿su costo se mide a su valor razonable en la fecha de adquisición? | Q20: 1
B21: 39 | C21: 9 | D21: La entidad elegirá como política contable el modelo del valor razonable, o el modelo del costo y aplica esa política a todas sus propiedades de inversión.(con las excepciones permitidas por las NICSP? | Q21: 1
B22: 42 | C22: 10 | D22: Con posterioridad al reconocimiento inicial, ¿la entidad que haya escogido el modelo del valor razonable mide todas sus propiedades de inversión al valor razonable, excepto en los casos descritos en el párrafo 62? | Q22: 1
B23: 65 | C23: 11 | D23: Si la una entidad que escoge el modelo del costo, ¿mide todas sus propiedades de inversión según los requerimientos de la NICSP 17 para ese modelo, es decir, al costo menos su depreciación acumulada y cualquier otra pérdida acumulada por deterioro en el valor de los activos? | Q23: 1
B24: 23 | C24: 12 | D24: ¿La entidad evalúa todos los costos de sus propiedades de inversión, en el momento en que incurra en ellos? | Q24: 1
B25: 4 | C25: 13 | D25: Si el pago por una propiedad de inversión se difiere, su costo es el equivalente al precio de contado. ¿La diferencia entre este importe y el total de pagos se reconoce como un gasto por intereses durante el periodo del crédito? | Q25: 1
B26: 34 | C26: 14 | D26: El costo inicial del derecho sobre una propiedad mantenida en régimen de arrendamiento financiero y clasificado como propiedad de inversión, el activo ¿se reconoce por el menor importe entre el valor razonable de la propiedad y el valor presente de los pagos mínimos por arrendamiento. ? | Q26: 1
B27: 37 | C27: 15 | D27: Al determinar si una transacción tiene carácter comercial, ¿el valor específico para la entidad de la parte de sus actividades afectadas por la transacción tiene en cuenta los flujos de efectivo después de impuestos.? | Q27: 1
B28: 44 | C28: 16 | D28: ¿Las pérdidas o ganancias derivadas de un cambio en el valor razonable de una propiedad de inversión se incluyen en el resultado del periodo en que surjen.? | Q28: 1
B29: 47 | C29: 17 | D29: El valor razonable de propiedades de inversión ¿refleja las condiciones de mercado en la fecha de presentación? | Q29: 1
B30: 64 | C30: 18 | D30: Si una entidad ha medido previamente una propiedad de inversión por su valor razonable, ¿la continua midiendo a valor razonable hasta que se disponga de la misma (o hasta que la propiedad sea ocupada por el propietario, o la entidad comience su transformación para venderla posteriormente en el curso ordinario de su actividad) aún si las transacciones comparables en el mercado se hicieran menos frecuentes, o bien los precios de mercado estuvieran disponibles menos fácilmente? | Q30: 1
B31: 66 | C31: 19 | D31: ¿Se realizan transferencias a, o de, propiedad de inversión cuando, y solo cuando, exista un cambio en su uso, que se haya evidenciado por el inicio de la ocupación por parte del propietario, en el caso de una transferencia de propiedades de inversión a una instalación ocupada por el dueño? | Q31: 1
B32: 66 | C32: 20 | D32: ¿Se realizan transferencias a, o de, propiedad de inversión cuando, y solo cuando, exista un cambio en su uso, que se haya evidenciado por el inicio de un desarrollo con intención de venta, para una transferencia de propiedades de inversión a inventarios? | Q32: 1
B33: 66 | C33: 21 | D33: ¿Se realizan transferencias a, o de, propiedad de inversión cuando, y solo cuando, exista un cambio en su uso, que se haya evidenciado por el fin de la ocupación por parte del dueño, en el caso de la transferencia de una instalación ocupada por el propietario a una propiedad de inversión? | Q33: 1
B34: 66 | C34: 22 | D34: ¿Se realizan transferencias a, o de, propiedad de inversión cuando, y solo cuando, exista un cambio en su uso, que se haya evidenciado por el inicio de una operación de arrendamiento (en régimen comercial) a un tercero, para una transferencia de inventarios a propiedades de inversión | Q34: 1
B35: 68 | C35: 23 | D35: Cuando la entidad decide disponer de una propiedad de inversión sin hacer un desarrollo específico, continua tratando a la propiedad como una propiedad de inversión hasta que se da de baja (eliminada del estado de situación financiera) y no la tratará como si fuera un inventario? | Q35: 1
B36: 71 | C36: 24 | D36: Si una propiedad contabilizada como de inversión se traslada a propiedad ocupada por el dueño o a inventarios, ¿se mide el costo a valor razonable en la fecha de cambio de uso? | Q36: 1
B37: 74 | C37: 25 | D37: En caso de una transferencia de un elemento desde inventarios a propiedades de inversión para contabilizarlo por su valor razonable, ¿cualquier diferencia entre el valor razonable de la propiedad a esa fecha y su importe en libros anterior se reconoce en el resultado? | Q37: 1
B38: 76 | C38: 26 | D38: Cuando la entidad termine la construcción o desarrollo de una propiedad de inversión construida por la propia entidad, que vaya a ser contabilizada por su valor razonable, ¿cualquier diferencia entre el valor razonable de la propiedad a esa fecha y su importe en libros anterior, se reconoce en el resultado? | Q38: 1
B39: 77 | C39: 27 | D39: Las propiedades de inversión se dan de baja (eliminada del estado de situación financiera) cuando se dispone de ella o cuando la propiedad de inversión quede permanentemente retirada de uso y no se esperen beneficios económicos futuros o un potencial de servicio por su disposición.? | Q39: 1
B40: 80 | C40: 28 | D40: ¿La pérdida o ganancia resultante del retiro o disposición de una propiedad de inversión se determina como la diferencia entre los ingresos netos de la transacción y el importe en libros del activo, y se reconoce en el resultado del periodo en que tenga lugar el retiro o la disposición ? | Q40: 1
B41: 83 | C41: 29 | D41: ¿Las compensaciones de terceros por causa de propiedades de inversión que hayan deteriorado su valor, se hayan perdido o abandonado, se reconocen en el resultado del periodo cuando dichas compensaciones sean exigibles.? | Q41: 1
B42: Revelaciones | E42: No llenar | Q42: 0
B43: 85 | D43: Las revelaciones presentadas a continuación son de aplicación, junto con las mencionadas en la NICSP 13. De acuerdo con la NICSP 13, el propietario de una propiedad de inversión facilitará las revelaciones correspondientes al arrendador sobre los arrendamientos en los que ha participado Una entidad que mantenga una propiedad de inversión en régimen de arrendamiento financiero u operativo, incluirá las revelaciones del arrendatario para los arrendamientos financieros y las revelaciones del arrendador para los arrendamientos operativos en los que haya participado. | Q43: 1
B44: Modelo del valor razonable y modelo del costo | E44: No llenar | Q44: 0
B45: 86 | C45: 30 | D45: ¿La entidad revela en sus Estados Financieros la siguiente información? | E45: No llenar | Q45: 0
B46: 86 | C46: 30 (a) | D46: (a) si aplica el modelo del valor razonable o el modelo del costo; | Q46: 1
B47: 86 | C47: 30 (b) | D47: (b) cuando aplique el modelo del valor razonable, si, y en que circunstancias se clasifican y contabilizan como propiedades de inversión los derechos sobre propiedades mantenidas en régimen de arrendamiento operativo; | Q47: 1
B48: 86 | C48: 30 (c) | D48: (c) cuando la clasificación resulte difícil los criterios desarrollados por la entidad para distinguir las propiedades de inversión de las propiedades ocupadas por el dueño y de las propiedades que se tienen para vender en el curso normal de las actividades del negocio; | Q48: 1
B49: 86 | C49: 30 (d) | D49: (d) los métodos e hipótesis significativas aplicados en la determinación del valor razonable de las propiedades de inversión, incluyendo una declaración que indique si la determinación del valor razonable fue hecha a partir de evidencias del mercado o se tuvieron en cuenta otros factores de peso (que se revelarán por la entidad) por causa de la naturaleza de las propiedades y la falta de datos comparables de mercado; | Q49: 1
B50: 86 | C50: 30 (e) | D50: (e) la medida en que el valor razonable de las propiedades de inversión (tal como han sido medidas o reveladas en los estados financieros) está basado en una valoración hecha por un perito independiente que tenga una capacidad rofesional reconocida y una experiencia reciente en la localidad y categoría de las propiedades de inversión objeto de la medición. Si no hubiera tenido lugar dicha forma de valoración, se revela este hecho; | Q50: 1
B51: 86 | C51: 30 (f) | D51: (f) los importes reconocidos en el resultado (ahorro o desahorro) por: | E51: No llenar | Q51: 0
B52: 86 | C52: 30 (fi) | D52: (i) ingresos por alquileres provenientes de las propiedades de inversión; | Q52: 1
B53: 86 | C53: 30 (fii) | D53: (ii) gastos directos de operación (incluyendo reparaciones y mantenimiento) que surgen de propiedades de inversión que generaron ingresos por alquileres durante el periodo; y | Q53: 1
B54: 86 | C54: 30 (fiii) | D54: (iii) gastos directos de operación (incluyendo reparaciones y mantenimiento) que surgen de propiedades de inversión que no generaron ingresos por alquileres durante el periodo. | Q54: 1
B55: 86 | C55: 30 (g) | D55: (g) la existencia e importe de restricciones en la realización de las propiedades de inversión o en la remisión de los ingresos ordinarios/recursos y los recursos obtenidos en su disposición; y | Q55: 1
B56: 86 | C56: 30 (h) | D56: (h) las obligaciones contractuales para adquisición, construcción o desarrollo de propiedades de inversión, o por concepto de reparaciones, mantenimiento o mejoras. | Q56: 1
B57: Modelo del valor razonable | E57: No llenar | Q57: 0
B58: 87 | C58: 31 | D58: ¿La entidad aplica el modelo del valor razonable y revela una conciliación del importe en libros de las propiedades de inversión al inicio y al final del periodo, que incluya lo siguiente? | E58: No llenar | Q58: 0
B59: 87 | C59: 31 (a) | D59: (a) adiciones derivadas de adquisiciones a través de combinaciones del sector público de entidades; | Q59: 1
B60: 87 | C60: 31 (b) | D60: (b) cuando aplique el modelo del valor razonable, si, y en que circunstancias se clasifican y contabilizan como propiedades de inversión los derechos sobre propiedades mantenidas en régimen de arrendamiento operativo; | Q60: 1
B61: 87 | C61: 31 (c) | D61: (c) las disposiciones; | Q61: 1
B62: 87 | C62: 31 (d) | D62: (d) pérdidas o ganancias netas de los ajustes al valor razonable; | Q62: 1
B63: 87 | C63: 31 (e) | D63: (e) las diferencias de cambio netas que surgen de la conversión de los estados financieros a una moneda de presentación diferente, así como las derivadas de la conversión de un negocio en el extranjero a la moneda de presentación de la entidad que informa; | Q63: 1
B64: 87 | C64: 31 (f) | D64: (f) transferencias hacia y desde inventarios o de propiedades ocupadas por el dueño; y | Q64: 1
B65: 87 | C65: 31 (g) | D65: (g) otros cambios. | Q65: 1
B66: 88 | C66: 32 | D66: Cuando una evaluación obtenida para una propiedad de inversión se haya ajustado de forma significativa, a efectos de ser utilizada en los estados financieros,¿la entidad incluye entre sus revelaciones una conciliación entre la evaluación obtenida y la medición ya ajustada que se haya incluido en los estados financieros, mostrando por separado: | E66: No llenar | Q66: 0
B67: 88 | C67: 32 (a) | D67: (a) el importe agregado de cualesquiera obligaciones reconocidas por arrendamiento que se hayan deducido; y | Q67: 1
B68: 88 | C68: 32 (b) | D68: (b) otros ajustes significativos | Q68: 1
B69: 89 | C69: 33 | D69: Si por excepción se utiliza el método del costo ¿Se revela los importes asociados a esas propiedades de inversión de forma separada de los importes asociados a otras propiedades de inversión junto con la siguiente información? | E69: No llenar | Q69: 0
B70: 89 | C70: 33 (a) | D70: (a) una descripción de las propiedades de inversión; | Q70: 1
B71: 89 | C71: 33 (b) | D71: (b) una explicación del motivo por el cual el valor razonable no puede determinarse de forma fiable; | Q71: 1
B72: 89 | C72: 33 (c) | D72: (c) si fuera posible, el rango de estimaciones dentro del cual es posible que se encuentre el valor razonable; y | Q72: 1
B73: 89 | C73: 33 (d) | D73: (d) en la disposición de propiedades de inversión no registradas por su valor razonable: | E73: No llenar | Q73: 0
B74: 89 | C74: 33 (di) | D74: (i) el hecho de que la entidad haya dispuesto de propiedades de inversión no registradas en libros a su valor razonable. | Q74: 1
B75: 89 | C75: 33 (dii) | D75: (ii) el importe en libros de esas propiedades de inversión en el momento de su venta; y | Q75: 1
B76: 89 | C76: 33 (diii) | D76: (iii) el importe de la ganancia o pérdida reconocida. | Q76: 1
B77: Modelo del Costo | E77: No llenar | Q77: 0
B78: 90 | C78: 34 | D78: Si la entidad aplica el modelo del costo, ¿revela la siguiente información?: | E78: No llenar | Q78: 0
B79: 90 | C79: 34 (a) | D79: (a) los métodos de depreciación utilizados; | Q79: 1
B80: 90 | C80: 34 (b) | D80: (b) las vidas útiles o los porcentajes de depreciación utilizado el importe bruto en libros y la depreciación acumulada (incrementado por las pérdidas acumuladas por deterioro de valor) al inicio y al final del periodo; | Q80: 1
B81: 90 | C81: 34 (c) | D81: (c) el importe bruto en libros y la depreciación acumulada (incrementado por las pérdidas acumuladas por deterioro de valor) al inicio y al final del periodo; | Q81: 1
B82: 90 | C82: 34 (d) | D82: (d) una conciliación del importe en libros de las propiedades de inversión al inicio y al final del periodo, que incluya lo siguiente: | E82: No llenar | Q82: 0
B83: 90 | C83: 34 (di) | D83: (i) adiciones, revelando por separado las derivadas de adquisiciones y las que se refieran a desembolsos posteriores reconocidos como un activo; | Q83: 1
B84: 90 | C84: 34 (dii) | D84: (ii) adiciones derivadas de adquisiciones a través de combinaciones del sector público de entidades; | Q84: 1
B85: 90 | C85: 34 (diii) | D85: (iii) las disposiciones; | Q85: 1
B86: 90 | C86: 34 (div) | D86: (iv) depreciación; | Q86: 1
B87: 90 | C87: 34 (dv) | D87: (v) el importe de la pérdida reconocida por deterioro de valor, así como el importe de las pérdidas por deterioro de valor que hayan revertido durante el periodo según la NICSP 21 o la NICSP 26, según proceda; | Q87: 1
B88: 90 | C88: 34 (dvi) | D88: (vi) las diferencias de cambio netas que surgen de la conversión de los estados financieros a una moneda de presentación diferente, así como las derivadas de la conversión de un negocio en el extranjero a la moneda de presentación de la entidad que informa; | Q88: 1
B89: 90 | C89: 34 (dvii) | D89: (vii) transferencias hacia y desde inventarios o de propiedades ocupadas por el dueño; y | Q89: 1
B90: 90 | C90: 34 (dviii) | D90: (viii) otros cambios; y | Q90: 1
B91: 90 | C91: 34 (e) | D91: (e) el valor razonable de las propiedades de inversión. En los casos excepcionales descritos en el párrafo 62, si una entidad no puede determinar con fiabilidad el valor razonable de las propiedades de inversión, la entidad deberá revelar: | E91: No llenar | Q91: 0
B92: 90 | C92: 34 (ei) | D92: (i) una descripción de las propiedades de inversión; | Q92: 1
B93: 90 | C93: 34 (eii) | D93: (ii) una explicación del motivo por el cual el valor razonable no ha podido ser determinado de manera fiable; y | Q93: 1
B94: 90 | C94: 34 (eiii) | D94: (iii) si fuera posible, el rango de estimaciones dentro del cual resulta factible que se encuentre el valor razonable | Q94: 1
B95: 62 | C95: 35 | D95: ¿Si la entidad determina que el valor razonable de una propiedad de inversión no se puede establecer con fiabilidad de una forma continuada, la entidad mide dicha propiedad de inversión aplicando el modelo del costo de la NICSP 17? | Q95: 1
B96: Totales | C96: =COUNT(C11:C95) -> 35 | E96: =+COUNTA(E10:E95)-COUNTIF($E$10:$E$95,"=No llenar") -> 0
B97: Preguntas pendientes de respuesta | E97: =+H99-E96 -> 70
F98: Reconocimiento y medición | G98: Revelaciones | H98: Total
E99: Número de ítems | F99: =+SUM(Q11:Q41) -> 29 | G99: =+SUM(Q43:Q95) -> 41 | H99: =+SUM(F99:G99) -> 70
E101: Ítems no aplicables | F101: =COUNTIF($E$11:$E$41,"=No aplica") -> 0 | G101: =(COUNTIF($E$43:$E$95,"=No aplica")) -> 0 | H101: =+SUM(F101:G101) -> 0
E103: ítems aplicables | F103: =+F99-F101 -> 29 | G103: =+G99-G101 -> 41 | H103: =+SUM(F103:G103) -> 70
E105: ítems cumplidos | F105: =COUNTIF($E$11:$E$41,"=Cumple") -> 0 | G105: =COUNTIF($E$43:$E$95,"=Cumple") -> 0 | H105: =+SUM(F105:G105) -> 0
E107: Ítems cumplidos parcialmente | F107: =COUNTIF($E$11:$E$41,"=Cumple Parcialmente") -> 0 | G107: =COUNTIF($E$43:$E$95,"=Cumple Parcialmente") -> 0 | H107: =+SUM(F107:G107) -> 0
E109: Ítems no cumplidos | F109: =COUNTIF($E$11:$E$41,"=No Cumple") -> 0 | G109: =COUNTIF($E$43:$E$95,"=No Cumple") -> 0 | H109: =+SUM(F109:G109) -> 0
E111: Porcentaje de aplicación | F111: =+IFERROR((F105+(F107*0.5))/F103,0) -> 0 | G111: =+IFERROR((G105+(G107*0.5))/G103,0) -> 0 | H111: =+(F111*60%)+(G111*40%) -> 0
F113: Bajo | G113: Medio | H113: Alto
E114: Impacto | F114: =COUNTIF($F$11:$F$95,"Bajo") -> 0 | G114: =COUNTIF($F$11:$F$95,"Medio") -> 0 | H114: =COUNTIF($F$11:$F$95,"Alto") -> 0
F115: Bajo | G115: Medio | H115: Alto
E116: Esfuerzo | F116: =COUNTIF($G$11:$G$95,"Bajo") -> 0 | G116: =COUNTIF($G$11:$G$95,"Medio") -> 0 | H116: =COUNTIF($G$11:$G$95,"Alto") -> 0
B119: En caso de que la entidad marque NO CUMPLE en la norma o en su defecto se acoga a algun transitorio debe responder la siguiente pregunta y completar el plan de acción para cada una de las brechas identificadas:
B120: Responda con SI o NO
B121: La norma posee transitorios
B123: La norma posee Planes de Acción
J124: PLAZO
B125: Número de párrafo | C125: Número pregunta | D125: Acciones para brechas | E125: Actividades de cumplimiento | F125: % de Avance Plan de acción | G125: Requerimientos | H125: Recursos | I125: Responsable | J125: Fecha de Inicio | K125: Fecha para Finalizar | L125: Fecha Actual | M125: Duración meses | N125: Meses Transcurridos | O125: Meses para finalizar actividad
L126: =NOW() -> 2024-07-26T09:10:52.190 | M126: =DATEDIF(J126,K126,"D")/30 -> 0 | N126: =DATEDIF(J126,L126,"D")/30 -> 1516.633333 | O126: =+M126-N126 -> -1516.633333
L127: =NOW() -> 2024-07-26T09:10:52.190 | M127: =DATEDIF(J127,K127,"D")/30 -> 0 | N127: =DATEDIF(J127,L127,"D")/30 -> 1516.633333 | O127: =+M127-N127 -> -1516.633333
L128: =NOW() -> 2024-07-26T09:10:52.190 | M128: =DATEDIF(J128,K128,"D")/30 -> 0 | N128: =DATEDIF(J128,L128,"D")/30 -> 1516.633333 | O128: =+M128-N128 -> -1516.633333
L129: 2024-07-26T09:10:52.190 | M129: 0 | N129: 1516.633333 | O129: -1516.633333
D132: =+"TOTAL DE BRECHAS (NO CUMPLE-CUMPLE PARCIALMENTE) = "&COUNTA(D126:D129) -> TOTAL DE BRECHAS (NO CUMPLE-CUMPLE PARCIALMENTE) = 0 | E132: =+COUNTA(D126:D129) -> 0
D134: PORCENTAJE PROMEDIO DE AVANCE PLANES ACCIÓN | F134: =+IFERROR(AVERAGE(F126:F129),0) -> 0
B136: JERARCA MAXIMO
D137: NOMBRE | E137: FIRMA
B139: DIRECTOR ADMINISTRATIVO Y FINANCIERO
D140: NOMBRE | E140: FIRMA
B142: CONTADOR
D143: NOMBRE | E143: FIRMA

Sheet NICSP 17
B2: NICSP 17
B3: Propiedades, Planta y Equipo
B4: Objetivo: Prescribir el tratamiento contable de propiedades, planta y equipo, de forma que los usuarios de los estados financieros puedan conocer la información acerca de la inversión que la entidad tiene en sus propiedades, planta y equipo, así como los cambios que se hayan producido en dicha inversión.
B5: La norma es aplicable en la entidad (Indique SI o No) | E5: Si
B7: Complete cada una de las preguntas según corresponda con "No aplica", "Cumple", "No Cumple" o "Cumple Parcialmente".
B8: Número de párrafo | C8: Número pregunta | D8: Requisito de la Norma | E8: Respuesta | F8: Impacto | G8: Esfuerzo | H8: Observaciones
B10: Reconocimiento y medición | E10: No llenar | Q10: 0
B11: 9 | C11: 1 | D11: Si la entidad reconoce bienes del patrimonio histórico artístico y/o cultural, aplica los requerimientos de revelación de la información de esta Norma ? | E11: No aplica | H11: La Municipalidad no tienen identificados bienes del patrimonio histórico artístico y/o cultural. Sin embargo, como parte del proceeso se tiene previsto la identificación de estos bienes para posteriormente tomar la decisión que se estime apropiada con apego a la NICSP. | Q11: 1
B12: 17 | C12: 2 | D12: ¿Las piezas de repuesto importantes y el equipo de mantenimiento permanente, que la entidad espere utilizar durante más de un periodo, se califican como elementos de propiedades, planta y equipo? | E12: Cumple | H12: Se presentaron por primera vez los EEFF el 31 de marzo de 2021 | Q12: 1
B13: 19 | C13: 3 | D13: ¿Se evalúa con el principio de reconocimiento, todos los costos de propiedades, planta y equipo en el momento en que se incurre en ellos, incluyendo aquellos en los que se incurre para adquirirlos? | E13: Cumple | Q13: 1
B14: 21 | C14: 4 | D14: ¿Se contabilizan las infraestructuras dentro de la categoría de propiedades, planta y equipo? | E14: Cumple Parcialmente | F14: Medio | G14: Medio | H14: Se tiene contabilizada información sobre infraestructura vial la cual está siendo objeto de revisión par ajuste y registro de la depreciación del mismo | Q14: 1
B15: 24 | C15: 5 | D15: ¿Se eximen los costos derivados del mantenimiento diario del elemento del criterio de reconocimiento de la propiedad, planta y equipo? | E15: Cumple | Q15: 1
B16: 13 | C16: 6 | D16: ¿La entidad tiene actualmente una política contable para el tratamiento de propiedades, planta y equipo (PPE)? La NICSP 17.13 define propiedades, planta y equipo como activos tangibles que: (a) posee una entidad para su uso en la producción o suministro de bienes y servicios, para arrendarlos a terceros o para propósitos administrativos; y (b) se espera que serán utilizados durante más de un periodo contable. | E16: Cumple | Q16: 1
B17: 14 | C17: 7 | D17: ¿El costo de una partida de propiedades, planta y equipo se reconoce como activo si, y sólo si: (a) es probable que la entidad reciba beneficios económicos o potencial de servicio asociados al activo; y (b) el valor razonable o el costo del activo puedan ser medidos de forma fiable? (c) Tenga control de activo | E17: Cumple | Q17: 1
B18: 26 | C18: 8 | D18: ¿Los elemento de propiedades, planta y equipo, que cumpla las condiciones para ser reconocido como un activo, se miden por su costo? | E18: Cumple | Q18: 1
B19: 27 | C19: 9 | D19: Cuando se adquiere un activo a través de una transacción sin contraprestación, ¿su costo se mide con su valor razonable en la fecha de adquisición? | E19: No aplica | H19: A la feccha no se ha presentado este tipo de transacción en la Municipalidad. | Q19: 1
B20: Medición posterior al reconocimiento | E20: No llenar | Q20: 0
B21: Modelo del costo | E21: No llenar | Q21: 0
B22: 35 | C22: 10 | D22: Cuando se realizan operaciones accesorias relacionadas a propiedades planta y equipo, pero no imprescindible para su uso, ¿se reconocen los ingresos y gastos de estas operaciones secundarias en el resultado del periodo? | E22: Cumple | Q22: 1
B23: 38 | C23: 11 | D23: Cuando elementos de propiedades, planta y equipo se cambian por uno o varios activos no monetarios ¿el costo de dicho elemento de propiedades, planta y equipo se mide por su valor razonable, a menos que (a) la transacción de intercambio no tenga carácter comercial, o (b) no pueda medirse con fiabilidad el valor razonable del activo recibido ni el del activo entregado? | E23: No aplica | H23: A la feccha no se ha presentado este tipo de transacción en la Municipalidad. | Q23: 1
B24: 39 | C24: 12 | D24: ¿La entidad determina si una transacción de intercambio tiene carácter comercial, considerando en qué medida se espera que cambien los flujos de efectivo futuros o potencial de servicio como consecuencia de dicha transacción.? | E24: No aplica | H24: A la feccha no se ha presentado este tipo de transacción en la Municipalidad. | Q24: 1
B25: 42 | C25: 13 | D25: ¿La entidad ha elegido como política contable el modelo del costo del párrafo 43 o el modelo de revaluación del párrafo 44, y aplica esa política a todos los elementos que compongan una clase de propiedades, planta y equipo? | E25: Cumple | Q25: 1
B26: 43 | C26: 14 | D26: Con posterioridad a su reconocimiento como activo, ¿los elementos de propiedades, planta y equipo se registran por su costo menos la depreciación acumulada y el importe acumulado de las pérdidas por deterioro del valor? | E26: Cumple Parcialmente | F26: Alto | G26: Medio | H26: La Municipalidad esta llevando a cabo un proceso de mediante el cual se levanta un inventario de los activos de Propiedad Planta y equipo que posee, para su posterior, medición y contabilización, con base en lo estalecido en la NICSP 17. | Q26: 1
B27: Modelo de revaluación | E27: No llenar | Q27: 0
B28: 44 | C28: 15 | D28: Con posterioridad a su reconocimiento como activo, ¿ los elemento de propiedades, planta y equipo cuyo valor razonable pueda medirse con fiabilidad, se contabilizan por su valor revaluado, que es su valor razonable, en el momento de la revaluación, menos la depreciación acumulada y el importe acumulado de las pérdidas por deterioro de valor que haya sufrido? | E28: No aplica | H28: La Municipalidad adoptó el método de costo, por lo tanto este requerimiento no le aplica. | Q28: 1
B29: 51 | C29: 16 | D29: Si se revalúa un elemento de propiedades, planta y equipo,¿ se revalúan también todos los elementos que pertenezcan a la misma clase de activos? | E29: No aplica | H29: La Municipalidad adoptó el método de costo, por lo tanto este requerimiento no le aplica. | Q29: 1
B30: 54 | C30: 17 | D30: Cuando se incrementa el importe de un activo en libros como consecuencia de una revaluación, tal aumento debe ¿Se acredita directamente a una cuenta de reservas por revaluación? No obstante, ¿el incremento se reconoce en el resultado (ahorro o desahorro) en la medida en que suponga una reversión de una disminución por devaluación de la misma clase de activos, que fue reconocida previamente en resultados? | E30: No aplica | H30: La Municipalidad adoptó el método de costo, por lo tanto este requerimiento no le aplica. | Q30: 1
B31: 55 | C31: 18 | D31: Si se reduce el importe en libros de una clase de activos como consecuencia de una revaluación, ¿ tal disminución debe ser reconocida en el resultado (ahorro o desahorro)? | E31: No aplica | H31: La Municipalidad adoptó el método de costo, por lo tanto este requerimiento no le aplica. | Q31: 1
B32: 56 | C32: 19 | D32: Los incrementos y disminuciones en la revaluación relativos a activos individuales dentro de una clase de propiedades, planta y equipo ¿se compensan entre sí dentro de esa clase pero no con los correspondientes a activos de diferentes clases? | E32: No aplica | H32: La Municipalidad adoptó el método de costo, por lo tanto este requerimiento no le aplica. | Q32: 1
B33: 59 | C33: 20 | D33: ¿Se deprecia de forma separada cada parte de un elemento de propiedades, planta y equipo que tenga un costo significativo con relación al costo total del elemento? | E33: Cumple | H33: La Municipalidad adoptó el método de costo, por lo tanto este requerimiento no le aplica. | Q33: 1
B34: 66 | C34: 21 | D34: ¿El importe depreciable de un activo se distribuye de forma sistemática a lo largo de su vida útil? | E34: Cumple | H34: La Municipalidad adoptó el método de costo, por lo tanto este requerimiento no le aplica. | Q34: 1
B35: 76 | C35: 22 | D35: ¿El método de depreciación refleja el patrón con arreglo al cual se espera que sean consumidos, por parte de la entidad, los beneficios económicos o potencial de servicio futuros del activo? | E35: Cumple | H35: La Municipalidad adoptó el método de costo, por lo tanto este requerimiento no le aplica. | Q35: 1
B36: 64 | C36: 23 | D36: El cargo por depreciación de cada periodo ¿se reconoce en el resultado (ahorro o desahorro), salvo que se haya incluido en el importe en libros de otro activo? | E36: Cumple | H36: La Municipalidad adoptó el método de costo, por lo tanto este requerimiento no le aplica. | Q36: 1
B37: 77 | C37: 24 | D37: ¿El método de depreciación aplicado a un activo se revisa, como mínimo, al término de cada periodo anual sobre el que se informe y, si hubiera habido un cambio significativo en el patrón esperado de consumo de los beneficios económicos futuros o potencial de servicio incorporados al activo, se cambia para reflejar el nuevo patrón? | E37: No aplica | H37: La Municipalidad inició con el proceso de implementación formal en el presente año. | Q37: 1
B38: 77 | C38: 25 | D38: ¿Cuándo se produce un cambio en el método de depreaciación, este se contabiliza como un cambio en una estimación contable, de acuerdo con la NICSP 3? | E38: No aplica | H38: A la fecha este tipo de transacción no se ha presentado en la Municipalidad. | Q38: 1
B39: 80 | C39: 26 | D39: ¿Las compensaciones procedentes de terceros, por elementos de propiedades, planta y equipo que hayan experimentado un deterioro del valor, se hayan perdido o se hayan abandonado, se incluyen en el resultado cuando tales compensaciones sean exigibles? | E39: No aplica | H39: A la fecha este tipo de transacción no se ha presentado en la Municipalidad. | Q39: 1
B40: 82 | C40: 27 | D40: ¿El importe en libros de un elemento de propiedades, planta y equipo se da de baja en cuentas: (a) por su o disposición; o (b) cuando no se espere obtener ningún beneficio futuro o potencial de servicio por su uso o disposición? | E40: No aplica | H40: La Municipalidad inició con el proceso de implementación formal en el presente año. | Q40: 1
B41: 83 | C41: 28 | D41: ¿La pérdida o ganancia surgida al dar de baja un elemento de propiedades, planta y equipo se incluye en el resultado cuando dicho elemento sea dado de baja en cuentas? | E41: No aplica | H41: La Municipalidad inició con el proceso de implementación formal en el presente año. | Q41: 1
B42: 86 | C42: 29 | D42: ¿La pérdida o ganancia derivada de la baja en cuentas de un elemento de propiedades, planta y equipo, se determina como la diferencia entre el importe neto que, en su caso, se obtenga por la disposición y el importe en libros del elemento? | E42: No aplica | H42: La Municipalidad inició con el proceso de implementación formal en el presente año. | Q42: 1
B43: 49 | C43: 30 | D43: Cuando el valor razonable del activo revaluado difiere significativamente de su importe en libros, ¿se hace revaluación.? | E43: No aplica | H43: Este requerimiento no le aplica a la Municipalidad, pues utiliza el método del costo. | Q43: 1
B44: 50 | C44: 31 | D44: Cuando se revalúe un elemento de propiedades, planta y equipo, ¿la depreciación acumulada en la fecha de la revaluación se ajusta reexpresando los Estados Financieros o del activo o eliminando contra el importe en libros bruto del activo y reexpresando el importe neto hasta alcanzar el importe revaluado del activo? | E44: No aplica | H44: Este requerimiento no le aplica a la Municipalidad, pues utiliza el método del costo. | Q44: 1
B45: 67 | C45: 32 | D45: El valor residual y la vida útil de un activo se revisan, como mínimo, al término de cada periodo anual sobre el que se informe y, si las expectativas difirieren de las estimaciones previas, los cambios se contabilizan como un cambio en una estimación contable? | E45: No aplica | H45: La Municipalidad inició con el proceso de implementación formal en el presente año. | Q45: 1
B46: 68 | C46: 33 | D46: ¿La depreciación se contabiliza incluso si el valor razonable del activo excede a su importe en libros, siempre y cuando el valor residual del activo no supere al importe en libros del mismo? | E46: Cumple | Q46: 1
B47: 69 | C47: 34 | D47: ¿El importe depreciable de un activo se determina después de deducir su valor residual? | E47: Cumple | Q47: 1
B48: 91 | C48: 35 | D48: ¿la entidad informa acerca de la naturaleza y del efecto de un cambio en una estimación contable, siempre que tenga una incidencia significativa en el periodo actual o que vaya a tenerla en periodos siguientes?. | E48: No aplica | H48: A la fecha este tipo de transacción no se ha presentado en la Municipalidad. | Q48: 1
B49: Revelaciones | E49: No llenar | Q49: 0
B50: 88 | C50: 36 | D50: ¿Se revela en los Estados Financieros para cada clase de elementos pertenecientes a las propiedades, planta y equipo la siguiente información? | E50: No llenar | Q50: 0
B51: 88 | C51: 36 (a) | D51: (a) las bases de medición utilizadas para determinar el importe en libros bruto; | E51: Cumple | Q51: 1
B52: 88 | C52: 36 (b) | D52: (b) los métodos de depreciación utilizados; | E52: Cumple | Q52: 1
B53: 88 | C53: 36 (c) | D53: (c) las vidas útiles o los porcentajes de depreciación utilizados; | E53: Cumple | Q53: 1
B54: 88 | C54: 36 (d) | D54: (d) el importe bruto en libros y la depreciación acumulada (incrementado por las pérdidas acumuladas por deterioro de valor) al inicio y al final del periodo; y | E54: No aplica | H54: La Municipalidad inicio con el proceso formal de implementación en el presente año y los primeros estados presentados fueron los de marzo 2021 | Q54: 1
B55: 88 | C55: 36 (e) | D55: (e) una conciliación entre los valores en libros al principio y al final del periodo, mostrando: | E55: No llenar | Q55: 0
B56: 88 | C56: 36 (ei) | D56: (i) las adiciones; | E56: Cumple | Q56: 1
B57: 88 | C57: 36 (eii) | D57: (ii) las disposiciones; | E57: Cumple | Q57: 1
B58: 88 | C58: 36 (eiii) | D58: (iii) Adquisiciones a través de combinaciones del sector público; | E58: No aplica | Q58: 1
B59: 88 | C59: 36 (eiv) | D59: (iv) los incrementos o disminuciones resultantes de las revaluaciones de acuerdo con los párrafos 44, 54 y 55, así como las pérdidas por deterioro del valor (si las hubiera) reconocidas o revertidas directamente en los activos netos/patrimonio, en función de lo establecido en la NICSP 21 o la NICSP 26, según proceda; | E59: No aplica | H59: La Municipalidad adoptó el método de costo, por lo tanto este requerimiento no le aplica. | Q59: 1
B60: 88 | C60: 36 (ev) | D60: (v) las pérdidas por deterioro del valor reconocidas en el resultado (ahorro o desahorro), aplicando la NICSP 21 o la NICSP 26, según proceda; | E60: No aplica | H60: La Municipalidad se encuentr revisando lo concerniente a las NICSP 21 y 26 para definir su aplicación futura. | Q60: 1
B61: 88 | C61: 36 (evi) | D61: (vi) las pérdidas por deterioro del valor que se hayan revertido en el resultado (ahorro o desahorro), aplicando la NICSP 21 o la NICSP 26, según proceda; | E61: No aplica | H61: La Municipalidad se encuentr revisando lo concerniente a las NICSP 21 y 26 para definir su aplicación futura. | Q61: 1
B62: 88 | C62: 36 (evii) | D62: (vii) depreciación; | E62: Cumple | Q62: 1
B63: 88 | C63: 36 (eviii) | D63: (viii) las diferencias de cambio netas surgidas en la conversión de estados financieros desde la moneda funcional a una moneda de presentación diferente (incluyendo también las diferencias de conversión de una operación en el extranjero a la moneda de presentación de la entidad que informa); y | E63: No aplica | H63: A la fecha este tipo de transacción no se ha presentado en la Municipalidad. | Q63: 1
B64: 88 | C64: 36 (eix) | D64: (ix) otros cambios. | E64: No aplica | H64: Este requerimiento no aplica a la Municipalidad. | Q64: 1
B65: 93 | D65: "De acuerdo con la NICSP 21 y la NICSP 26, la entidad revelará información sobre las partidas de propiedades, planta y equipo que hayan sufrido pérdidas por deterioro del valor, además de la información requerida en el párrafo 88(e)(iv) a (vi). " | E65: No llenar | Q65: 0
B66: 89 | C66: 37 | D66: ¿La compañía revela la siguiente información? | E66: No llenar | Q66: 0
B67: 89 | C67: 37 (a) | D67: (a) la existencia y los importes correspondientes a las restricciones de titularidad, así como las propiedades, planta y equipo que están afectos como garantía al cumplimiento de obligaciones; | E67: No aplica | H67: Este requerimiento no aplica a la Municipalidad. | Q67: 1
B68: 89 | C68: 37 (b) | D68: (b) el importe de los desembolsos reconocidos en el importe en libros, de un elemento de propiedades, planta y equipo en curso de construcción; | E68: No aplica | H68: Este requerimiento no aplica a la Municipalidad. | Q68: 1
B69: 89 | C69: 37 (c) | D69: (c) el importe de los compromisos de adquisición de propiedades, planta y equipo; y | E69: No aplica | H69: Este requerimiento no aplica a la Municipalidad. | Q69: 1
B70: 89 | C70: 37 (d) | D70: (d) si no se ha revelado de forma separada en estado de rendimiento financiero, el importe de las compensaciones de terceros que se incluyen en el resultado (ahorro o desahorro) por elementos de propiedades, planta y equipo cuyo valor se hubiera deteriorado, se hubieran perdido o se hubieran retirado. | E70: No aplica | H70: Este requerimiento no aplica a la Municipalidad. | Q70: 1
B71: 92 | C71: 38 | D71: Si una clase de propiedad, planta y equipo se registra por importes revaluados, se informa lo siguiente: | E71: No llenar | Q71: 0
B72: 92 | C72: 38 (a) | D72: (a) la fecha efectiva de la revaluación; | E72: No aplica | H72: Este requerimiento no aplica a la Municipalidad. | Q72: 1
B73: 92 | C73: 38 (b) | D73: (b) si se han utilizado los servicios de un tasador independiente; | E73: No aplica | H73: Este requerimiento no aplica a la Municipalidad. | Q73: 1
B74: 92 | C74: 38 (c) | D74: (c) los métodos e hipótesis significativos empleados en la estimación del valor razonable de los activos; | E74: No aplica | H74: Este requerimiento no aplica a la Municipalidad. | Q74: 1
B75: 92 | C75: 38 (d) | D75: (d) En qué medida el valor razonable de los elementos de propiedades, planta y equipo fue determinado directamente por referencia a los precios observables en un mercado activo o a transacciones de mercado recientes entre sujetos debidamente informados en condiciones de independencia, o fue estimado utilizando otras técnicas de valoración | E75: No aplica | H75: Este requerimiento no aplica a la Municipalidad. | Q75: 1
B76: 92 | C76: 38 (e) | D76: (e) el resultado de revaluación, indicando los movimientos del periodo, así como cualesquiera restricciones sobre la distribución de su saldo a los propietarios o tenedores de cuotas participativas; | E76: No aplica | H76: Este requerimiento no aplica a la Municipalidad. | Q76: 1
B77: 92 | C77: 38 (f) | D77: (f) la suma de todos los superávit de revaluación para los elementos individuales de la propiedad, planta y equipo dentro de cada clase; y | E77: No aplica | H77: Este requerimiento no aplica a la Municipalidad. | Q77: 1
B78: 92 | C78: 38 (g) | D78: (g) la suma de todos los déficit de revaluación para los elementos individuales de la propiedad, planta y equipo dentro de cada clase | E78: No aplica | H78: Este requerimiento no aplica a la Municipalidad. | Q78: 1
B79: 94 | C79: 39 | D79: ¿La entidad revela la siguiente información? | E79: No llenar | Q79: 0
B80: 94 | C80: 39 (a) | D80: (a) el importe en libros de los elementos de propiedades, planta y equipo, que se encuentran temporalmente ociosos; | E80: No aplica | H80: La Municipalidad de Buenos Aires en la fecha de cada cierre evalúa si existen activos en esta condición y hasta la fecha no se han identificado activos que cumplan este requerimiento. | Q80: 1
B81: 94 | C81: 39 (b) | D81: (b) el importe en libros bruto de cualesquiera propiedades, planta y equipo que, estando totalmente depreciados, se encuentran todavía en uso; | E81: Cumple | Q81: 1
B82: 94 | C82: 39 (c) | D82: (c) el importe en libros de los elementos componentes de propiedades, planta y equipo que, retirados de su uso activo, se mantienen para disponer de ellos; y | E82: No aplica | H82: La Municipalidad de Buenos Aires en la fecha de cada cierre evalúa si existen activos en esta condición y hasta la fecha no se han identificado activos que cumplan este requerimiento. | Q82: 1
B83: 94 | C83: 39 (d) | D83: (d) cuando se utiliza el modelo del costo, el valor razonable de las propiedades, planta y equipo cuando es significativamente diferente de su importe en libros. | E83: Cumple | H83: La Municipalidad de Buenos Aires tiene como política general registrar los activos al costo, sin embargo, en aquellos casos en que el valor razonable difiera materialmente del costo, se registran por su valor razonable | Q83: 1
B84: Totales | C84: =COUNT(C10:C83) -> 39 | E84: =+COUNTA(E10:E83)-COUNTIF($E$10:$E$83,"=No llenar") -> 63
B85: Preguntas pendientes de respuesta | E85: =+H87-E84 -> 0
F86: Reconocimiento y medición | G86: Revelaciones | H86: Total
E87: Número de ítems | F87: =+SUM(Q11:Q48) -> 35 | G87: =+SUM(Q50:Q83) -> 28 | H87: =+SUM(F87:G87) -> 63
E89: Ítems no aplicables | F89: =COUNTIF($E$11:$E$48,"=No aplica") -> 19 | G89: =(COUNTIF($E$50:$E$83,"=No aplica")) -> 20 | H89: =+SUM(F89:G89) -> 39
E91: ítems aplicables | F91: =+F87-F89 -> 16 | G91: =+G87-G89 -> 8 | H91: =+SUM(F91:G91) -> 24
E93: ítems cumplidos | F93: =COUNTIF($E$11:$E$48,"=Cumple") -> 14 | G93: =COUNTIF($E$50:$E$83,"=Cumple") -> 8 | H93: =+SUM(F93:G93) -> 22
E95: Ítems cumplidos parcialmente | F95: =COUNTIF($E$11:$E$48,"=Cumple Parcialmente") -> 2 | G95: =COUNTIF($E$50:$E$83,"=Cumple Parcialmente") -> 0 | H95: =+SUM(F95:G95) -> 2
E97: Ítems no cumplidos | F97: =COUNTIF($E$11:$E$48,"=No Cumple") -> 0 | G97: =COUNTIF($E$50:$E$83,"=No Cumple") -> 0 | H97: =+SUM(F97:G97) -> 0
E99: Porcentaje de aplicación | F99: =+IFERROR((F93+(F95*0.5))/F91,0) -> 0.9375 | G99: =+IFERROR((G93+(G95*0.5))/G91,0) -> 1 | H99: =+(F99*60%)+(G99*40%) -> 0.9625
F101: Bajo | G101: Medio | H101: Alto
E102: Impacto | F102: =COUNTIF($F$11:$F$83,"Bajo") -> 0 | G102: =COUNTIF($F$11:$F$83,"Medio") -> 1 | H102: =COUNTIF($F$11:$F$83,"Alto") -> 1
F103: Bajo | G103: Medio | H103: Alto
E104: Esfuerzo | F104: =COUNTIF($G$11:$G$83,"Bajo") -> 0 | G104: =COUNTIF($G$11:$G$83,"Medio") -> 2 | H104: =COUNTIF($G$11:$G$83,"Alto") -> 0
B107: En caso de que la entidad marque NO CUMPLE en la norma o en su defecto se acoga a algun transitorio debe responder la siguiente pregunta y completar el plan de acción para cada una de las brechas identificadas:
B108: Responda con SI o NO
B109: La norma posee transitorios | E109: Si
B111: La norma posee Planes de Acción | E111: Si
J112: PLAZO
B113: Número de párrafo | C113: Número pregunta | D113: Acciones para brechas | E113: Actividades de cumplimiento | F113: % de Avance Plan de acción | G113: Requerimientos | H113: Recursos | I113: Responsable | J113: Fecha de Inicio | K113: Fecha para Finalizar | L113: Fecha Actual | M113: Duración meses | N113: Meses Transcurridos | O113: Meses para finalizar actividad
B114: 21 | C114: 4 | D114: Contabilizan las infraestructuras dentro de la categoría de propiedades, planta y equipo. | E114: 6 | F114: 0.9 | G114: Plan General Contabilidad Nacional, Manual Funcional Contable, Normativa emitida por la DCN, Asesoría Externa. | H114: Recurso Humano, Recursos Financieros, Tiempo laboral para realizar la actividad | I114: Contador Municipal Con apoyo de: Comisión de NICSP Responsable de Proveeduría, Responsable de Unidad Técnica, Responsable de Unidad Legal | J114: 2019-01-01 | K114: 2024-12-31 | L114: =NOW() -> 2024-07-26T09:10:52.190 | M114: =DATEDIF(J114,K114,"D")/30 -> 73.03333333 | N114: =DATEDIF(J114,L114,"D")/30 -> 67.76666667 | O114: =+M114-N114 -> 5.266666667
B115: 43 | C115: 14 | D115: Concluir con el proceso de reconocimiento, medición y presentación de los activos de Propiedad, Plante y Equipo propiedad de la Municipalidad, según lo establecido en la NICSP 17. | E115: 6 | F115: 0.9 | G115: Plan General Contabilidad Nacional, Manual Funcional Contable, Normativa emitida por la DCN, Asesoría Externa. | H115: Recurso Humano, Recursos Financieros, Tiempo laboral para realizar la actividad | I115: Contador Municipal Con apoyo de: Comisión de NICSP Responsable de Proveeduría, Responsable de Unidad Técnica, Responsable de Unidad Legal | J115: 2019-01-01 | K115: 2024-12-31 | L115: =NOW() -> 2024-07-26T09:10:52.190 | M115: =DATEDIF(J115,K115,"D")/30 -> 73.03333333 | N115: =DATEDIF(J115,L115,"D")/30 -> 67.76666667 | O115: =+M115-N115 -> 5.266666667
L116: =NOW() -> 2024-07-26T09:10:52.190 | M116: =DATEDIF(J116,K116,"D")/30 -> 0 | N116: =DATEDIF(J116,L116,"D")/30 -> 1516.633333 | O116: =+M116-N116 -> -1516.633333
L117: 2024-07-26T09:10:52.190 | M117: =DATEDIF(J117,K117,"D")/30 -> 0 | N117: =DATEDIF(J117,L117,"D")/30 -> 1516.633333 | O117: =+M117-N117 -> -1516.633333
D120: =+"TOTAL DE BRECHAS (NO CUMPLE-CUMPLE PARCIALMENTE) = "&COUNTA(D114:D117) -> TOTAL DE BRECHAS (NO CUMPLE-CUMPLE PARCIALMENTE) = 2 | E120: =+COUNTA(D114:D117) -> 2
D122: PORCENTAJE PROMEDIO DE AVANCE PLANES ACCIÓN | F122: =+IFERROR(AVERAGE(F114:F117),0) -> 0.9
B124: JERARCA MAXIMO
D125: NOMBRE | E125: FIRMA
B127: DIRECTOR ADMINISTRATIVO Y FINANCIERO
D128: NOMBRE | E128: FIRMA
B130: CONTADOR
D131: NOMBRE | E131: FIRMA

Sheet NICSP 18
B2: NICSP 18
B3: Información Financiera por Segmentos
B4: Objetivo: Establecer los principios para la presentación de información financiera por segmentos
B5: La norma es aplicable en la entidad (Indique SI o No) | E5: No
B7: Complete cada una de las preguntas según corresponda con "No aplica", "Cumple", "No Cumple" o "Cumple Parcialmente".
B8: Número de párrafo | C8: Número pregunta | D8: Requisito de la Norma | E8: Respuesta | F8: Impacto | G8: Esfuerzo | H8: Observaciones
B10: Reconocimiento y medición | E10: No llenar | Q10: 0
B11: 9 | C11: 1 | D11: ¿La definición de un segmento en las políticas contables de la entidad se corresponde con la definición de un segmento en el estándar NICSP? Segmento es una actividad o grupo de actividades de la entidad, que son identificables y para las cuales es apropiado presentar información financiera separada con el fin de (a) evaluar el rendimiento pasado de la entidad en la consecución de sus objetivos, y (b) tomar decisiones respecto a la futura asignación de recursos. | Q11: 1
B12: 17 | C12: 2 | D12: Segmentos: ¿La entidad informa en función del servicio o segmentos geográficos? De acuerdo con la NICSP 18.17, un segmento de servicio se refiere a un componente identificable de una entidad encargado de suministrar bienes o servicios afines, o de alcanzar determinados objetivos operativos de acuerdo con la misión general de la entidad; y un segmento geográfico se define como un componente idetificable de una entidad encargado de suministrar bienes o servicios o de alcanzar determinados objetivos operativos dentro de un área geográfica concreta. | Q12: 1
B13: 27 | C13: 3 | D13: ¿Las definiciones de la entidad de los activos del segmento, los pasivos del segmento, los ingresos del segmento y los gastos del segmento coinciden con la definición de NICSP? | Q13: 1
B14: 13 | C14: 4 | D14: ¿Se identifican como segmentos separados, cada actividad o grupo de actividades identificables para las cuales se deba presentar información financiera que permita evaluar el rendimiento pasado de la entidad en el logro de sus objetivos, y que posibilite la toma de decisiones de la entidad con respecto a la asignación de recursos? | Q14: 1
B15: 34 | C15: 5 | D15: Si se incluyen elementos de activo en la los activos del segmento, ¿se incluyen también la depreciación y plusvalía? | Q15: 1
B16: 35 | C16: 6 | D16: ¿Si los costos por intereses de un segmento se incluyen en la determinación del gasto del mismo, los pasivos que los originen se incluyen entre los pasivos del segmento? | Q16: 1
B17: 43 | C17: 7 | D17: La información segmentada se prepara de acuerdo con las políticas contables adoptadas para preparar y presentar los estados financieros de la entidad, sean éstos individuales o consolidados? | Q17: 1
B18: 47 | C18: 8 | D18: Los activos que sean utilizados conjuntamente por dos o más segmentos se distribuyen entre los mismos si, y solo si, los ingresos y gastos relacionados con dichos activos son también objeto de reparto entre los segmentos | Q18: 1
B19: 49 | C19: 9 | D19: Si, un segmento es identificado por primera vez en el ejercicio corriente,¿ los datos comparativos del periodo anterior deberán reexpresarse para reflejar el nuevo segmento como un segmento separado, salvo que la reexpresión sea impracticable? | Q19: 1
B20: Revelaciones | E20: No llenar | Q20: 0
B21: 6 | D21: "En caso de que los estados financieros consolidados del gobierno u otra entidad económica y los estados financieros separados de la controladora se presenten conjuntamente, solo será necesario presentar la información segmentada correspondiente a los estados financieros consolidados. " | E21: No llenar | Q21: 0
B22: Información del segmento primario | E22: No llenar | Q22: 0
B23: 52 | C23: 10 | D23: ¿Se revela en los Estados Financieros para cada segmento el ingreso y gasto correspondiente de forma separada? | Q23: 1
B24: 52 | C24: 11 | D24: Se considera de forma separada para cada segmento la siguiente información | E24: No llenar | Q24: 0
B25: 52 | C25: 11 (a) | D25: (a) el ingreso del segmento proveniente de las aplicaciones presupuestarias o asignaciones similares; | Q25: 1
B26: 52 | C26: 11 (b) | D26: (b) el proveniente el de otras fuentes externas; y | Q26: 1
B27: 52 | C27: 11 (c) | D27: (c) el proveniente el de las transacciones con otros segmentos | Q27: 1
B28: 56 | C28: 12 | D28: ¿Se revela en los Estados Financieros información sobre la naturaleza e importe de todas y cada una de las partidas de ingreso y gasto que sean de tal magnitud, cualidad o incidencia, que su conocimiento sea relevante para explicar el rendimiento de cada uno de los segmentos del periodo.? | Q28: 1
B29: 45 | C29: 13 | D29: ¿La entidad ha revelado alguna política contable específica para el segmento? | Q29: 1
B30: 53 - 54 | C30: 14 | D30: ¿Se revela en los Estados Financieros para cada uno de los segmentos, el importe de los activos y el importe de los pasivos en libros que le corresponden? | Q30: 1
B31: 55 | C31: 15 | D31: ¿Se revela en los Estados Financieros para cada uno de los segmentos, el costo total incurrido en el periodo para adquirir activos del segmento cuya duración esperada sea mayor de un periodo contable? | Q31: 1
B32: 58 | D32: "La presente Norma no exige que se revelen los resultados por segmento. Sin embargo, de calcularse el resultado de un segmento y revelar la información, éste será el resultado de sus operaciones sin incluir cargas financieras. " | E32: No llenar | Q32: 0
B33: 59 | C33: 16 | D33: ¿La entidad revela en los Estados Financieros los flujos de efectivo por segmento en coherencia con los requerimientos de la NICSP 2? | Q33: 1
B34: 60 | C34: 17 | D34: Si la entidad no revela los flujos de efectivo del segmento de acuerdo con la NICSP 2, ¿revela voluntariamente lo siguiente sobre cada segmento sobre el que se informa? | E34: No llenar | Q34: 0
B35: 60 | C35: 17 (a) | D35: (a) el gasto por segmento correspondiente a depreciación y amortización de los activos de dicho segmento; | Q35: 1
B36: 60 | C36: 17 (b) | D36: (b) otros gastos significativos que no hayan dado lugar a salida de efectivo; y | Q36: 1
B37: 60 | C37: 17 (c) | D37: (c) los ingresos significativos que no hayan dado lugar a entrada de efectivo incluidos en el ingreso del segmento. | Q37: 1
B38: 61 | C38: 18 | D38: ¿Se revela en los Estados Financieros para cada uno de los segmentos total de la participación del segmento en el resultado neto de las entidades asociadas, negocios conjuntos u otras, de sus inversiones que estén contabilizadas por el método de la participación, siempre y cuando las operaciones de esas entidades estén, esencialmente, dentro del segmento en cuestión? | Q38: 1
B39: 63 | C39: 19 | D39: Si una entidad revela, para cada uno de los segmentos pertinentes, información agregada sobre su participación en el resultado neto de las asociadas, negocios conjuntos y otras entidades contabilizadas por el método de la participación, ¿presenta también, en la información del segmento, el importe agregado que corresponda a las inversiones agregadas en dichas asociadas y negocios conjuntos? | Q39: 1
B40: 64 | C40: 20 | D40: ¿La entidad presenta una conciliación entre la siguiente información? | E40: No llenar | Q40: 0
B41: 64 | C41: 20 (a) | D41: (a) el ingreso de los segmentos debe conciliado con los ingresos de la entidad provenientes de fuentes externas (incluyendo la información a revelar sobre el importe de los ingresos que la entidad ha obtenido de fuentes externas que no figuren en ningún segmento); | Q41: 1
B42: 64 | C42: 20 (b) | D42: (b) el gasto de los segmentos debe ser conciliado con la medida comparable del gasto de la entidad; | Q42: 1
B43: 64 | C43: 20 (c) | D43: (c) los activos de los segmentos deben ser objeto de conciliación con los de la entidad; y | Q43: 1
B44: 64 | C44: 20 (d) | D44: (d) los pasivos de los segmentos deben ser objeto de conciliación con los pasivos de la entidad. | Q44: 1
B45: 9,12,65 | D45: "La NICSP 18 no requiere la divulgación de información sobre segmentos secundarios, pero alienta ciertas revelaciones mínimas sobre los segmentos de servicio y los segmentos geográficos. Se anticipa que los segmentos generalmente se basarán en los bienes y servicios principales que la entidad proporcionó, los programas que opera o las actividades que realiza. Sin embargo, en algunas organizaciones, una base geográfica u otra puede reflejar mejor la base sobre la cual se proporcionan los servicios y los recursos asignados dentro de la entidad" | E45: No llenar | Q45: 0
B46: 66 | C46: 21 | D46: Si una entidad informa la información de segmentos sobre la base de segmentos de servicio, se recomienda informar lo siguiente para cada segmento geográfico que se informa internamente al órgano rector y al gerente principal de la entidad: | E46: No llenar | Q46: 0
B47: 66 | C47: 21 (a) | D47: (a) el gasto del segmento; | Q47: 1
B48: 66 | C48: 21 (b) | D48: (b) el importe en libros total de los activos del segmento; y | Q48: 1
B49: 66 | C49: 21 (c) | D49: (c) el desembolso total efectuado durante el periodo para adquirir activos para el segmento que esperen utilizar durante más de un periodo (propiedades, planta, equipo y activos intangibles); | Q49: 1
B50: 66 | C50: 22 | D50: Si una entidad presenta información de segmentos sobre la base de segmentos geográficos u otra base no incluida en el segmento anterior, se recomienda informar lo siguiente para cada segmento de servicio principal que se informe internamente al órgano rector y al gerente principal de la entidad: | E50: No llenar | Q50: 0
B51: 66 | C51: 22 (a) | D51: (a) el gasto del segmento; | Q51: 1
B52: 66 | C52: 22 (b) | D52: (b) el importe en libros total de los activos del segmento; y | Q52: 1
B53: 66 | C53: 22 (c) | D53: (c) el desembolso total efectuado durante el periodo para adquirir activos para el segmento que esperen utilizar durante más de un periodo (propiedades, planta, equipo y activos intangibles). | Q53: 1
B54: 73 | C54: 23 | D54: ¿La entidad revela la siguiente información? | E54: No llenar | Q54: 0
B55: 73 | C55: 23 (a) | D55: (a) el tipo de bienes y servicios incluidos en cada segmento de servicios sobre el que se informa; | Q55: 1
B56: 73 | C56: 23 (b) | D56: (b) la composición de cada segmento geográfico incluido en la información financiera; y | Q56: 1
B57: 73 | C57: 23 (c) | D57: (c) en caso de no haberse adoptado una base de segmentación por servicios o por localización geográfica, la naturaleza de los segmentos y las actividades que abarcan. | Q57: 1
B58: 74 | C58: 23 (d) | D58: (d) los objetivos operativos generales establecidos para cada segmento al inicio del ejercicio de presentación e indique el grado en el que se han alcanzado dichos objetivos. | Q58: 1
B59: 67 | C59: 24 | D59: ¿Se revelan las bases de fijación de los precios inter-segmentos, como cualquier cambio en los criterios utilizados deben ser objeto de revelación en los estados financieros? | Q59: 1
B60: 68 | C60: 25 | D60: Si la entidad ha adoptado cambios en las políticas contables para la información de segmentos que tienen un efecto importante en la información de segmentos, se ha revelado la siguiente información: | E60: No llenar | Q60: 0
B61: 68 | C61: 25 (a) | D61: (a) una descripción de la naturaleza del cambio efectuado; | Q61: 1
B62: 68 | C62: 25 (b) | D62: (b) las razones del cambio | Q62: 1
B63: 68 | C63: 25 (c) | D63: (c) el hecho de que la información comparativa ha sido reexpresada o de que es impracticable hacerlo, | Q63: 1
B64: 68 | C64: 25 (d) | D64: (d) el efecto financiero del cambio, si se puede determinar razonablemente | Q64: 1
B65: 68 | C65: 25 (e) | D65: (e) para presentación de información comparativa | E65: No llenar | Q65: 0
B66: 68 | C66: 25 (ei) | D66: (i) información de segmento del período anterior reafirmada , a menos que no sea posible hacerlo; o | Q66: 1
B67: 68 | C67: 25 (eii) | D67: (ii) la información del segmento según el modo antiguo y nuevo de segmentación en el año en el que cambia la identificación de sus segmentos. | Q67: 1
B68: 74 | C68: 26 | D68: ¿La entidad revela voluntariamente, si no se informa en otra parte del informe anual, los objetivos operativos generales establecidos para cada segmento y en que grado se lograron estos objetivos? | Q68: 1
B69: Totales | C69: =COUNT(C11:C68) -> 26 | E69: =+COUNTA(E10:E68)-COUNTIF($E$10:$E$68,"=No llenar") -> 0
B70: Preguntas pendientes de respuesta | E70: =+H72-E69 -> 45
F71: Reconocimiento y medición | G71: Revelaciones | H71: Total
E72: Número de ítems | F72: =+SUM(Q11:Q19) -> 9 | G72: =+SUM(Q21:Q68) -> 36 | H72: =+SUM(F72:G72) -> 45
E74: Ítems no aplicables | F74: =COUNTIF($E$11:$E$19,"=No aplica") -> 0 | G74: =(COUNTIF($E$21:$E$68,"=No aplica")) -> 0 | H74: =+SUM(F74:G74) -> 0
E76: ítems aplicables | F76: =+F72-F74 -> 9 | G76: =+G72-G74 -> 36 | H76: =+SUM(F76:G76) -> 45
E78: ítems cumplidos | F78: =COUNTIF($E$11:$E$19,"=Cumple") -> 0 | G78: =COUNTIF($E$21:$E$68,"=Cumple") -> 0 | H78: =+SUM(F78:G78) -> 0
E80: Ítems cumplidos parcialmente | F80: =COUNTIF($E$11:$E$19,"=Cumple Parcialmente") -> 0 | G80: =COUNTIF($E$21:$E$68,"=Cumple Parcialmente") -> 0 | H80: =+SUM(F80:G80) -> 0
E82: Ítems no cumplidos | F82: =COUNTIF($E$11:$E$19,"=No Cumple") -> 0 | G82: =COUNTIF($E$21:$E$68,"=No Cumple") -> 0 | H82: =+SUM(F82:G82) -> 0
E84: Porcentaje de aplicación | F84: =+IFERROR((F78+(F80*0.5))/F76,0) -> 0 | G84: =+IFERROR((G78+(G80*0.5))/G76,0) -> 0 | H84: =+(F84*60%)+(G84*40%) -> 0
F86: Bajo | G86: Medio | H86: Alto
E87: Impacto | F87: =COUNTIF($F$11:$F$68,"Bajo") -> 0 | G87: =COUNTIF($F$11:$F$68,"Medio") -> 0 | H87: =COUNTIF($F$11:$F$68,"Alto") -> 0
F88: Bajo | G88: Medio | H88: Alto
E89: Esfuerzo | F89: =COUNTIF($G$11:$G$68,"Bajo") -> 0 | G89: =COUNTIF($G$11:$G$68,"Medio") -> 0 | H89: =COUNTIF($G$11:$G$68,"Alto") -> 0
B92: En caso de que la entidad marque NO CUMPLE en la norma o en su defecto se acoga a algun transitorio debe responder la siguiente pregunta y completar el plan de acción para cada una de las brechas identificadas:
B93: Responda con SI o NO
B94: La norma posee transitorios
B96: La norma posee Planes de Acción
J97: PLAZO
B98: Número de párrafo | C98: Número pregunta | D98: Acciones para brechas | E98: Actividades de cumplimiento | F98: % de Avance Plan de acción | G98: Requerimientos | H98: Recursos | I98: Responsable | J98: Fecha de Inicio | K98: Fecha para Finalizar | L98: Fecha Actual | M98: Duración meses | N98: Meses Transcurridos | O98: Meses para finalizar actividad
L99: =NOW() -> 2024-07-26T09:10:52.190 | M99: =DATEDIF(J99,K99,"D")/30 -> 0 | N99: =DATEDIF(J99,L99,"D")/30 -> 1516.633333 | O99: =+M99-N99 -> -1516.633333
L100: =NOW() -> 2024-07-26T09:10:52.190 | M100: =DATEDIF(J100,K100,"D")/30 -> 0 | N100: =DATEDIF(J100,L100,"D")/30 -> 1516.633333 | O100: =+M100-N100 -> -1516.633333
D103: =+"TOTAL DE BRECHAS (NO CUMPLE-CUMPLE PARCIALMENTE) = "&COUNTA(D99:D100) -> TOTAL DE BRECHAS (NO CUMPLE-CUMPLE PARCIALMENTE) = 0 | E103: =+COUNTA(D99:D100) -> 0
D105: PORCENTAJE PROMEDIO DE AVANCE PLANES ACCIÓN | F105: =+IFERROR(AVERAGE(F99:F100),0) -> 0
B107: JERARCA MAXIMO
D108: NOMBRE | E108: FIRMA
B110: DIRECTOR ADMINISTRATIVO Y FINANCIERO
D111: NOMBRE | E111: FIRMA
B113: CONTADOR
D114: NOMBRE | E114: FIRMA

Sheet NICSP 19
B2: NICSP 19
B3: Provisiones, Activos Contingentes y Pasivos Contingentes
B4: Objetivo: establecer una definición para las provisiones, pasivos contingentes y activos contingentes, e identificar las circunstancias en que deben reconocerse las provisiones, la forma en que deben medirse y la información que debe revelarse sobre ellas.
B5: La norma es aplicable en la entidad (Indique SI o No) | E5: Si
B7: Complete cada una de las preguntas según corresponda con "No aplica", "Cumple", "No Cumple" o "Cumple Parcialmente".
B8: Número de párrafo | C8: Número pregunta | D8: Requisito de la Norma | E8: Respuesta | F8: Impacto | G8: Esfuerzo | H8: Observaciones
B10: Reconocimiento y medición | E10: No llenar | Q10: 0
B11: 22 | C11: 1 | D11: ¿Se reconoce una provisión cuando una entidad tiene una obligación presente (ya sea legal o implícita) como resultado de un suceso pasado? | E11: Cumple | H11: En el mes de setiembre de 2022 se implementó una política partiular en la cual se estabblece lo relacionado con este requerimiento. | Q11: 1
B12: 22 | C12: 2 | D12: ¿Se reconoce una provisión cuando es probable que la entidad tenga que desprenderse de recursos, que incorporen beneficios económicos para cancelar tal obligación? | E12: Cumple | H12: En el mes de setiembre de 2022 se implementó una política partiular en la cual se estabblece lo relacionado con este requerimiento. | Q12: 1
B13: 22 | C13: 3 | D13: ¿Se reconoce una provisión cuando puede hacerse una estimación fiable del importe de la obligación? | E13: Cumple | H13: En el mes de setiembre de 2022 se implementó una política partiular en la cual se estabblece lo relacionado con este requerimiento. | Q13: 1
B14: 24 | C14: 4 | D14: ¿Si es menos probable que la obligación presente exista en la fecha de presentación, la entidad informa en las notas de la existencia de un pasivo contingente? | E14: Cumple | Q14: 1
B15: 35 | C15: 5 | D15: ¿La entidad reconoce pasivos contingentes? | E15: Cumple | H15: En el mes de setiembre de 2022 se implementó una política partiular en la cual se estabblece lo relacionado con este requerimiento. | Q15: 1
B16: 39 | C16: 6 | D16: ¿Se exime la entidad de reconocer activos contingentes? | E16: No aplica | H16: Se debe revisar la aplicación de este requisito | Q16: 1
B17: Medición | E17: No llenar | Q17: 0
B18: 42 | C18: 7 | D18: ¿Informa la entidad de activos contingentes en las notas de los Estados Financieros? | E18: Cumple | Q18: 1
B19: 43 | C19: 8 | D19: ¿Se evalúan de forma continua los activos contingentes? | E19: Cumple | H19: En el mes de setiembre de 2022 se implementó una política partiular en la cual se estabblece lo relacionado con este requerimiento. | Q19: 1
B20: 44 | C20: 9 | D20: Cuando se reconoce una provisión, ¿el importe reconocido es la mejor estimación, en la fecha de presentación del desembolso necesario para cancelar la obligación presente? | E20: Cumple | Q20: 1
B21: 50 | C21: 10 | D21: ¿Para llegar a la mejor estimación de una provisión se tienen en cuenta los riesgos e incertidumbres que inevitablemente rodean a muchos sucesos y circunstancias? | E21: Cumple | H21: En el mes de setiembre de 2022 se implementó una política partiular en la cual se estabblece lo relacionado con este requerimiento. | Q21: 1
B22: 53 | C22: 11 | D22: Cuando resulte importante el efecto temporal sobre el valor del dinero, el importe de la provisión ¿se calcula usando el valor presente de los desembolsos que se espera sean necesarios para cancelar la obligación? | E22: Cumple | H22: En el mes de setiembre de 2022 se implementó una política partiular en la cual se estabblece lo relacionado con este requerimiento. | Q22: 1
B23: 56 | C23: 12 | D23: ¿La tasa de descuento (o tasas) es una tasa (o tasas) antes de impuestos que refleja las evaluaciones actuales del mercado del valor temporal del dinero y los riesgos específicos del pasivo? ¿Las tasas de descuento reflejan riesgos para los cuales se han ajustado las estimaciones de flujos de efectivo futuros? | E23: No aplica | H23: Este requerimiento no le aplica actualmente a la Municipalidad. | Q23: 1
B24: 58 | C24: 13 | D24: Los sucesos futuros, que puedan afectar a la cuantía necesaria para liquidar una obligación ¿se reflejan en el importe de la provisión, siempre que haya una evidencia objetiva suficiente de que tales hechos van a ocurrir?. | E24: No aplica | H24: Este requerimiento no le aplica actualmente a la Municipalidad. | Q24: 1
B25: 61 | C25: 14 | D25: ¿Las ganancias esperadas por la disposición de activos no son tenidas en cuenta al evaluar el importe de la provisión? | E25: No aplica | H25: Este requerimiento no le aplica actualmente a la Municipalidad. | Q25: 1
B26: 63 | C26: 15 | D26: En el caso de que la entidad espere que una parte o la totalidad del desembolso necesario para liquidar la provisión le sea reembolsado por un tercero, ¿tal reembolso es objeto de reconocimiento cuando, y solo cuando, sea prácticamente segura su recepción si la entidad cancela la obligación objeto de la provisión? | E26: No aplica | H26: Este requerimiento no le aplica actualmente a la Municipalidad. | Q26: 1
B27: 64 | C27: 16 | D27: ¿En el estado de rendimiento financiero, el gasto relacionado con la provisión se presenta por el neto después de descontar el importe reconocido para el reembolso.? | E27: No aplica | H27: Este requerimiento no le aplica actualmente a la Municipalidad. | Q27: 1
B28: 69 | C28: 17 | D28: ¿Las provisiones se revisan en cada fecha de presentación, y deben ajustarse, en su caso, para reflejar la mejor estimación existente en ese momento? | E28: Cumple | Q28: 1
B29: 69 | C29: 18 | D29: Si ya no es probable que, para liquidar la obligación, se vaya a requerir de un flujo de salida de recursos que incorporen beneficios económicos o un potencial de servicio, ¿se reversa la provisión? | E29: No aplica | H29: Este requerimiento no le aplica actualmente a la Municipalidad. | Q29: 1
B30: 76 | C30: 19 | D30: ¿Si la entidad tiene un contrato de carácter oneroso, las obligaciones presentes bajo tal contrato (netas después de deducir los importes recuperados) se reconocen y miden como provisiones? | E30: No aplica | H30: Este requerimiento no le aplica actualmente a la Municipalidad. | Q30: 1
B31: 71 | C31: 20 | D31: ¿Las provisiones son utilizadas solo para afrontar los desembolsos para los cuales fueron originalmente reconocidas? | E31: No aplica | H31: Este requerimiento no le aplica actualmente a la Municipalidad. | Q31: 1
B32: 73 | C32: 21 | D32: ¿La entidad se exime de reconocimiento provisiones por resultados negativos netos futuros derivados de las operaciones? | E32: No aplica | H32: Este requerimiento no le aplica actualmente a la Municipalidad. | Q32: 1
B33: 81 | C33: 22 | D33: ¿Se reconoce una provisión por costos de reestructuración? | E33: No aplica | H33: Este requerimiento no le aplica actualmente a la Municipalidad. | Q33: 1
B34: 83 | C34: 23 | D34: ¿La entidad reconoce obligación implícita de proceder a una reestructuración cuando: (a) tiene un plan formal y detallado para proceder a la reestructuración, en el que se identifican, al menos: (i) la actividad/unidad de operaciones o parte de la misma involucradas; (ii) las principales ubicaciones afectadas; (iii) la ubicación, función y número aproximado de empleados que serán indemnizados por prescindir de sus servicios; (iv) los desembolsos que se llevarán a cabo; y (v) cuando el plan será implementado; y (b) ha producido una expectativa válida entre los afectados, en el sentido de que la reestructuración se llevará a cabo, ya sea por haber comenzando a implementar el plan o por haber anunciado sus principales características a los mismos. | E34: No aplica | H34: Este requerimiento no le aplica actualmente a la Municipalidad. | Q34: 1
B35: 87 | C35: 24 | D35: Si una entidad comienza a ejecutar el plan de reestructuración, o anuncia sus principales características a los afectados por el mismo, después de la fecha de presentación, ¿revela este hecho' | E35: No aplica | H35: Este requerimiento no le aplica actualmente a la Municipalidad. | Q35: 1
B36: 90 | C36: 25 | D36: Como consecuencia de la venta o transferencia de una unidad de operaciones, ¿no se reconoce ninguna obligación hasta que la entidad se comprometa a vender o transferir la unidad, es decir, hasta que exista un acuerdo vinculante? | E36: No aplica | H36: Este requerimiento no le aplica actualmente a la Municipalidad. | Q36: 1
B37: 93 | C37: 26 | D37: ¿La provisión por reestructuración incluye solo los desembolsos que surjan directamente de la reestructuración, que son aquellos que de forma simultánea están: (a) necesariamente impuestos por la reestructuración; y (b) no asociados con las actividades que continúan en la entidad? | E37: No aplica | H37: Este requerimiento no le aplica actualmente a la Municipalidad. | Q37: 1
B38: Revelaciones | E38: No llenar | Q38: 0
B39: 97 | C39: 27 | D39: ¿Se revela en los Estados Financieros, para cada tipo de provisión la siguiente información? | E39: No llenar | Q39: 0
B40: 97 | C40: 27 (a) | D40: (a) el valor en libros al inicio y al final del periodo; | E40: Cumple | H40: En las Nota s a los EEFF se incluye la información correspondiente | Q40: 1
B41: 97 | C41: 27 (b) | D41: (b) las dotaciones efectuadas en el periodo, incluyendo también los incrementos en las provisiones existentes; | E41: Cumple Parcialmente | F41: Medio | G41: Medio | Q41: 1
B42: 97 | C42: 27 (c) | D42: (c) los importes utilizados (es decir, los importes aplicados y cargados contra la provisión) durante el periodo; | E42: Cumple Parcialmente | F42: Medio | G42: Medio | Q42: 1
B43: 97 | C43: 27 (d) | D43: (d) los importes no utilizados que han sido objeto de liquidación o reversión en el periodo; y | E43: Cumple Parcialmente | F43: Medio | G43: Medio | Q43: 1
B44: 97 | C44: 27 (e) | D44: (e) el incremento durante el periodo en el importe descontado, resultante del paso del tiempo y el efecto de los cambios en la tasa de descuento | E44: Cumple Parcialmente | F44: Medio | G44: Medio | Q44: 1
B45: 10 | C45: 28 | D45: Si la compañía reconoce una provisión por beneficios sociales deberá considerar lo siguiente; | E45: No llenar | Q45: 0
B46: 10 | C46: 28 (a) | D46: (a) la base adoptada para reconocer la provisión y la base para hacer la valoración. | E46: No aplica | H46: Este requerimiento no le aplica actualmente a la Municipalidad. | Q46: 1
B47: 99 | C47: 28 (b) | D47: (b) Cuando una entidad opte por reconocer, en sus estados financieros, provisiones por beneficios sociales por los cuales no va a recibir a cambio, directamente de los receptores de los mismos, una contraprestación que sea aproximadamente igual al valor de los bienes y servicios proveídos, deberá suministrar la información requerida en los párrafos 97 y 98 con respecto a dichas provisiones. | E47: No aplica | H47: Este requerimiento no le aplica actualmente a la Municipalidad. | Q47: 1
B48: 98 | C48: 29 | D48: La entidad revela, por cada tipo de provisión, información sobre los siguientes extremos: | E48: No llenar | Q48: 0
B49: 98 | C49: 29 (a) | D49: (a) una breve descripción de la naturaleza de la obligación y del momento previsible en el tiempo, en el que se producirán los flujos de salida; | E49: Cumple Parcialmente | F49: Bajo | G49: Bajo | H49: En el mes de setiembre de 2022 se implementó una política partiular en la cual se estabblece lo relacionado con este requerimiento. | Q49: 1
B50: 98 | C50: 29 (b) | D50: (b) una indicación de las incertidumbres sobre el importe o vencimiento de dichos flujos de salida; | E50: Cumple | H50: En el mes de setiembre de 2022 se implementó una política partiular en la cual se estabblece lo relacionado con este requerimiento. En el mes de diciembre 2022 se registro el monto estimado de deterioro de las cuentas por cobrar, con base en el método de antiguedad de saldos. | Q50: 1
B51: 98 | C51: 29 (c) | D51: (c) el importe de los reembolsos probables, expresando la cuantía de cualquier activo que haya sido reconocido con respecto a dicho reembolso. | E51: Cumple Parcialmente | F51: Bajo | G51: Bajo | Q51: 1
B52: 100 | C52: 30 | D52: Salvo que la posibilidad de que vaya a existir un flujo de salida de recursos para liquidar una obligación sea remota, ¿la entidad presenta, para cada clase de pasivo contingente en la fecha de presentación, la siguiete información? | E52: No llenar | Q52: 0
B53: 100 | C53: 30 (a) | D53: (a) la naturaleza del pasivo contingente | E53: Cumple | H53: En el mes de setiembre de 2022 se implementó una política partiular en la cual se estabblece lo relacionado con este requerimiento. | Q53: 1
B54: 100 | C54: 30 (b) | D54: (b) una estimación de su efecto financiero, medido según lo establecido en los párrafos 44 a 62; | E54: Cumple | H54: En el mes de setiembre de 2022 se implementó una política partiular en la cual se estabblece lo relacionado con este requerimiento. | Q54: 1
B55: 100 | C55: 30 (c) | D55: (c) una indicación de las incertidumbres relacionadas con el importe o el calendario de las salidas de recursos correspondientes; y | E55: Cumple | H55: En el mes de setiembre de 2022 se implementó una política partiular en la cual se estabblece lo relacionado con este requerimiento. | Q55: 1
B56: 100 | C56: 30 (d) | D56: (d) la posibilidad de obtener eventuales reembolsos. | E56: Cumple | H56: En el mes de setiembre de 2022 se implementó una política partiular en la cual se estabblece lo relacionado con este requerimiento. | Q56: 1
B57: 102 | C57: 31 | D57: Cuando de un mismo conjunto de circunstancias surgen una provisión y un pasivo contingente, ¿la entidad presenta la información requerida en los párrafos 97, 98 y 100 de forma que muestre la vinculación existente entre la provisión y el pasivo contingente? | E57: No aplica | H57: Este requerimiento no le aplica actualmente a la Municipalidad. | Q57: 1
B58: 105 | C58: 32 | D58: Cuando es probable que exista un flujo de entrada de beneficios económicos o un potencial de servicio, ¿la entidad presenta la siguiente información? | E58: No llenar | Q58: 0
B59: 105 | C59: 32 (a) | D59: (a) descripción de la naturaleza de los activos contingentes en la fecha de presentación; | E59: Cumple | H59: En el mes de setiembre de 2022 se implementó una política partiular en la cual se estabblece lo relacionado con este requerimiento. | Q59: 1
B60: 105 | C60: 32 (b) | D60: (b) cuando sea factible, una estimación de su efecto financiero , evaluado aplicando los principios establecidos para las provisiones en los párrafos 44 a 62. | E60: Cumple | H60: En el mes de setiembre de 2022 se implementó una política partiular en la cual se estabblece lo relacionado con este requerimiento. | Q60: 1
B61: 105 | C61: 32 (c) | D61: (c) Si la entidad no revela información en (a) y (b), se revela el hecho de que no sea factible hacerlo | E61: Cumple | H61: En el mes de setiembre de 2022 se implementó una política partiular en la cual se estabblece lo relacionado con este requerimiento. | Q61: 1
B62: 109 | C62: 33 | D62: En casos extremadamente raros, algunas o todas las revelaciones relacionadas con provisiones, pasivos contingentes o activos contingentes pueden perjudicar seriamente la posición de la entidad en una disputa con otras partes. ¿En tales casos la entidad revela la siguiente información? | E62: No llenar | Q62: 0
B63: 109 | C63: 33 (a) | D63: (a) La naturaleza general del conflicto. | E63: No aplica | H63: Este requerimiento no le aplica actualmente a la Municipalidad. | Q63: 1
B64: 109 | C64: 33 (b) | D64: (b) El hecho de que, y la razón por la cual, la información no se divulga | E64: No aplica | H64: Este requerimiento no le aplica actualmente a la Municipalidad. | Q64: 1
B65: Totales | C65: =COUNT(C11:C64) -> 33 | E65: =+COUNTA(E10:E64)-COUNTIF($E$10:$E$64,"=No llenar") -> 46
B66: Preguntas pendientes de respuesta | E66: =+H68-E65 -> 0
F67: Reconocimiento y medición | G67: Revelaciones | H67: Total
E68: Número de ítems | F68: =+SUM(Q11:Q37) -> 26 | G68: =+SUM(Q39:Q64) -> 20 | H68: =+SUM(F68:G68) -> 46
E70: Ítems no aplicables | F70: =COUNTIF($E$11:$E$37,"=No aplica") -> 15 | G70: =(COUNTIF($E$39:$E$64,"=No aplica")) -> 5 | H70: =+SUM(F70:G70) -> 20
E72: ítems aplicables | F72: =+F68-F70 -> 11 | G72: =+G68-G70 -> 15 | H72: =+SUM(F72:G72) -> 26
E74: ítems cumplidos | F74: =COUNTIF($E$11:$E$37,"=Cumple") -> 11 | G74: =COUNTIF($E$39:$E$64,"=Cumple") -> 9 | H74: =+SUM(F74:G74) -> 20
E76: Ítems cumplidos parcialmente | F76: =COUNTIF($E$11:$E$37,"=Cumple Parcialmente") -> 0 | G76: =COUNTIF($E$39:$E$64,"=Cumple Parcialmente") -> 6 | H76: =+SUM(F76:G76) -> 6
E78: Ítems no cumplidos | F78: =COUNTIF($E$11:$E$37,"=No Cumple") -> 0 | G78: =COUNTIF($E$39:$E$64,"=No Cumple") -> 0 | H78: =+SUM(F78:G78) -> 0
E80: Porcentaje de aplicación | F80: =+IFERROR((F74+(F76*0.5))/F72,0) -> 1 | G80: =+IFERROR((G74+(G76*0.5))/G72,0) -> 0.8 | H80: =+(F80*60%)+(G80*40%) -> 0.92
F82: Bajo | G82: Medio | H82: Alto
E83: Impacto | F83: =COUNTIF($F$11:$F$64,"Bajo") -> 2 | G83: =COUNTIF($F$11:$F$64,"Medio") -> 4 | H83: =COUNTIF($F$11:$F$64,"Alto") -> 0
F84: Bajo | G84: Medio | H84: Alto
E85: Esfuerzo | F85: =COUNTIF($G$11:$G$64,"Bajo") -> 2 | G85: =COUNTIF($G$11:$G$64,"Medio") -> 4 | H85: =COUNTIF($G$11:$G$64,"Alto") -> 0
B88: En caso de que la entidad marque NO CUMPLE en la norma o en su defecto se acoga a algun transitorio debe responder la siguiente pregunta y completar el plan de acción para cada una de las brechas identificadas:
B89: Responda con SI o NO
B90: La norma posee transitorios | E90: Si
B92: La norma posee Planes de Acción | E92: Si
J93: PLAZO
B94: Número de párrafo | C94: Número pregunta | D94: Acciones para brechas | E94: Actividades de cumplimiento | F94: % de Avance Plan de acción | G94: Requerimientos | H94: Recursos | I94: Responsable | J94: Fecha de Inicio | K94: Fecha para Finalizar | L94: Fecha Actual | M94: Duración meses | N94: Meses Transcurridos | O94: Meses para finalizar actividad
B95: 97 | C95: 27 (b) | D95: Revelar en las notas a los estados financieros las dotaciones efectuadas en el periodo, incluyendo también los incrementos en las provisiones existentes; | E95: 2 | F95: 0.75 | G95: Plan General Contabilidad Nacional, Manual Funcional Contable, Normativa emitida por la DCN, Asesoría Externa. | H95: Recurso Humano, Recursos Financieros, Tiempo laboral para realizar la actividad. | I95: Contador Municipal Con apoyo de: Comisión de NICSP Responsable Unidad Técnica | J95: 2019-01-01 | K95: 2024-12-31 | L95: =NOW() -> 2024-07-26T09:10:52.190 | M95: =DATEDIF(J95,K95,"D")/30 -> 73.03333333 | N95: =DATEDIF(J95,L95,"D")/30 -> 67.76666667 | O95: =+M95-N95 -> 5.266666667
B96: 97 | C96: 27 (c) | D96: Revelar en las notas a los estados financieros los importes utilizados (es decir, los importes aplicados y cargados contra la provisión) durante el periodo; | E96: 2 | F96: 0.75 | G96: Plan General Contabilidad Nacional, Manual Funcional Contable, Normativa emitida por la DCN, Asesoría Externa. | H96: Recurso Humano, Recursos Financieros, Tiempo laboral para realizar la actividad. | I96: Contador Municipal Con apoyo de: Comisión de NICSP Responsable Unidad Técnica | J96: 2019-01-01 | K96: 2024-12-31 | L96: 2024-07-26T09:10:52.190 | M96: 73.03333333 | N96: 67.76666667 | O96: 5.266666667
B97: 97 | C97: 27 (d) | D97: Revelar en las notas a los estados financieros los importes no utilizados que han sido objeto de liquidación o reversión en el periodo; y | E97: 2 | F97: 0.75 | G97: Plan General Contabilidad Nacional, Manual Funcional Contable, Normativa emitida por la DCN, Asesoría Externa. | H97: Recurso Humano, Recursos Financieros, Tiempo laboral para realizar la actividad. | I97: Contador Municipal Con apoyo de: Comisión de NICSP Responsable Unidad Técnica | J97: 2019-01-01 | K97: 2024-12-31 | L97: 2024-07-26T09:10:52.190 | M97: 73.03333333 | N97: 67.76666667 | O97: 5.266666667
B98: 97 | C98: 27 (e) | D98: Revelar en las notas a los estados financieros el incremento durante el periodo en el importe descontado, resultante del paso del tiempo y el efecto de los cambios en la tasa de descuento | E98: 2 | F98: 0.75 | G98: Plan General Contabilidad Nacional, Manual Funcional Contable, Normativa emitida por la DCN, Asesoría Externa. | H98: Recurso Humano, Recursos Financieros, Tiempo laboral para realizar la actividad. | I98: Contador Municipal Con apoyo de: Comisión de NICSP Responsable Unidad Técnica | J98: 2019-01-01 | K98: 2024-12-31 | L98: 2024-07-26T09:10:52.190 | M98: 73.03333333 | N98: 67.76666667 | O98: 5.266666667
B99: 98 | C99: 29 (a) | D99: Revelar en las notas una breve descripción de la naturaleza de la obligación y del momento previsible en el tiempo, en el que se producirán los flujos de salida; | E99: 2 | F99: 0.75 | G99: Plan General Contabilidad Nacional, Manual Funcional Contable, Normativa emitida por la DCN, Asesoría Externa. | H99: Recurso Humano, Recursos Financieros, Tiempo laboral para realizar la actividad. | I99: Contador Municipal Con apoyo de: Comisión de NICSP Responsable Unidad Técnica | J99: 2019-01-01 | K99: 2024-12-31 | L99: 2024-07-26T09:10:52.190 | M99: 73.03333333 | N99: 67.76666667 | O99: 5.266666667
B100: 98 | C100: 29 (c) | D100: Revelar en las notas a los estados financieros el importe de los reembolsos probables, expresando la cuantía de cualquier activo que haya sido reconocido con respecto a dicho reembolso. | E100: 2 | F100: 0.75 | G100: Plan General Contabilidad Nacional, Manual Funcional Contable, Normativa emitida por la DCN, Asesoría Externa. | H100: Recurso Humano, Recursos Financieros, Tiempo laboral para realizar la actividad. | I100: Contador Municipal Con apoyo de: Comisión de NICSP Responsable Unidad Técnica | J100: 2019-01-01 | K100: 2024-12-31 | L100: 2024-07-26T09:10:52.190 | M100: 73.03333333 | N100: 67.76666667 | O100: 5.266666667
L101: 2024-07-26T09:10:52.190 | M101: 0 | N101: 1516.633333 | O101: -1516.633333
L102: 2024-07-26T09:10:52.190 | M102: =DATEDIF(J102,K102,"D")/30 -> 0 | N102: =DATEDIF(J102,L102,"D")/30 -> 1516.633333 | O102: =+M102-N102 -> -1516.633333
D105: =+"TOTAL DE BRECHAS (NO CUMPLE-CUMPLE PARCIALMENTE) = "&COUNTA(D95:D102) -> TOTAL DE BRECHAS (NO CUMPLE-CUMPLE PARCIALMENTE) = 6 | E105: =+COUNTA(D95:D102) -> 6
D107: PORCENTAJE PROMEDIO DE AVANCE PLANES ACCIÓN | F107: =+IFERROR(AVERAGE(F95:F102),0) -> 0.75
B109: JERARCA MAXIMO
D110: NOMBRE | E110: FIRMA
B112: DIRECTOR ADMINISTRATIVO Y FINANCIERO
D113: NOMBRE | E113: FIRMA
B115: CONTADOR
D116: NOMBRE | E116: FIRMA

Sheet NICSP 20
B2: NICSP 20
B3: Información a Revelar Sobre Partes Relacionadas
B4: Objetivo: exigir la revelación de información sobre la existencia de relaciones entre partes relacionadas cuando existe control y la revelación de información sobre transacciones entre la entidad y sus partes relacionadas bajo ciertas circunstancias. Esta información se exige para fines de rendición de cuentas y para facilitar una mejor comprensión de la situación financiera y rendimiento de la entidad que informa.
B5: La norma es aplicable en la entidad (Indique SI o No) | E5: Si
B7: Complete cada una de las preguntas según corresponda con "No aplica", "Cumple", "No Cumple" o "Cumple Parcialmente".
B8: Número de párrafo | C8: Número pregunta | D8: Requisito de la Norma | E8: Respuesta | F8: Impacto | G8: Esfuerzo | H8: Observaciones
B10: Reconocimiento y medición | E10: No llenar | Q10: 0
B11: 4 | C11: 1 | D11: ¿La entidad está actualmente presente y tiene una política sobre revelaciones para partes relacionadas? Se considera relacionada con otra parte si una de ellas tiene la posibilidad (a) de ejercer el control sobre la otra, o (b) de ejercer influencia significativa sobre ella al tomar sus decisiones financieras y operativas o si la parte relacionada y la otra entidad están sujetas a control común. | E11: Cumple | Q11: 1
B12: 4 | C12: 2 | D12: ¿Las políticas contables de la entidad definen las partes relacionadas y las transacciones con partes relacionadas de acuerdo con las NICSP? | E12: Cumple | Q12: 1
B13: 33 | C13: 3 | D13: ¿Las transacciones entre partes relacionadas que tienen lugar entre entidades dentro de una entidad económica se eliminan en la consolidación? | E13: No Cumple | F13: Medio | G13: Medio | Q13: 1
B14: 36 | C14: 4 | D14: ¿La entidad revela por separado las principales clases de personal clave de la gerencia? | E14: No aplica | H14: Este requerimiento no le aplica actualmente a la Municipalidad. | Q14: 1
B15: Revelaciones | E15: No llenar | Q15: 0
B16: 25 | C16: 5 | D16: ¿Cuando exista control, la identidad de las partes relacionadas se revela en los estados financieros, con independencia de que se hayan producido transacciones entre las misma? | E16: Cumple | Q16: 1
B17: 14 | C17: 6 | D17: ¿La entidad revela voluntariamente que su entidad depende económicamente de otra entidad? | E17: No aplica | H17: Este requerimiento no le aplica actualmente a la Municipalidad. | Q17: 1
B18: 24 | D18: "El requisito de revelar las relaciones entre partes relacionadas bajo la NICSP 20 es adicional a los requisitos de divulgación en la NICSP 1 y la NICSP 38, por ejemplo" | E18: No llenar | Q18: 0
B19: 27 | C19: 7 | D19: Con respecto a las transacciones entre partes relacionadas distintas a las transacciones que tendrían lugar dentro de la relación normal entre un proveedor y un cliente bajo plazos y condiciones ni más ni menos favorables que aquellas que razonablemente se espera que la entidad habría adoptado, en las mismas circunstancias, si estuviera negociando con un individuo o entidad en una transacción libre, la entidad que presenta sus estados financieros revela: | E19: No llenar | Q19: 0
B20: 27 | C20: 7 (a) | D20: (a) la naturaleza de la relación con la parte relacionada; | E20: No aplica | H20: Este requerimiento no le aplica actualmente a la Municipalidad. | Q20: 1
B21: 27 | C21: 7 (b) | D21: (b) los tipos de transacciones que han tenido lugar; y | E21: No aplica | H21: Este requerimiento no le aplica actualmente a la Municipalidad. | Q21: 1
B22: 27 | C22: 7 (c) | D22: (c) los elementos de las transacciones necesarios para clarificar el significado de las mismas para sus operaciones y suficientes como para permitir que los estados financieros proporcionen información relevante y fiable para la toma de decisiones y a efectos de la rendición de cuentas. | E22: No aplica | H22: Este requerimiento no le aplica actualmente a la Municipalidad. | Q22: 1
B23: 28 | C23: 8 | D23: ¿La entidad revela, por ejemplo, las siguientes transacciones si están con una parte relacionada: | E23: No llenar | Q23: 0
B24: 28 | C24: 8 (a) | D24: (a) prestación o recepción de servicios; | E24: No aplica | H24: Este requerimiento no le aplica actualmente a la Municipalidad. | Q24: 1
B25: 28 | C25: 8 (b) | D25: (b) compras o transferencias/ventas de bienes (terminados o no); | E25: No aplica | H25: Este requerimiento no le aplica actualmente a la Municipalidad. | Q25: 1
B26: 28 | C26: 8 (c) | D26: (c) compras o transferencias/ventas de propiedades y otros activos; | E26: No aplica | H26: Este requerimiento no le aplica actualmente a la Municipalidad. | Q26: 1
B27: 28 | C27: 8 (d) | D27: (d) acuerdos de agencia; | E27: No aplica | H27: Este requerimiento no le aplica actualmente a la Municipalidad. | Q27: 1
B28: 28 | C28: 8 (e) | D28: (e) acuerdos sobre arrendamientos financieros; | E28: No aplica | H28: Este requerimiento no le aplica actualmente a la Municipalidad. | Q28: 1
B29: 28 | C29: 8 (f) | D29: (f) transferencias de investigación y desarrollo; | E29: No aplica | H29: Este requerimiento no le aplica actualmente a la Municipalidad. | Q29: 1
B30: 28 | C30: 8 (g) | D30: (g) acuerdos sobre licencias; | E30: No aplica | H30: Este requerimiento no le aplica actualmente a la Municipalidad. | Q30: 1
B31: 28 | C31: 8 (h) | D31: (h) financiación (incluyendo préstamos, aportaciones de capital, donaciones, ya sean en efectivo o especie, y otro tipo de soporte financiero incluyendo acuerdos para compartir costos); y | E31: No aplica | H31: Este requerimiento no le aplica actualmente a la Municipalidad. | Q31: 1
B32: 28 | C32: 8 (i) | D32: (i) garantías y avales. | E32: No aplica | H32: Este requerimiento no le aplica actualmente a la Municipalidad. | Q32: 1
B33: 30 | C33: 9 | D33: Revela la información sobre transacciones entre partes relacionadas incluye | E33: No llenar | Q33: 0
B34: 30 | C34: 9 (a) | D34: (a) una descripción de la naturaleza de la relación existente entre las partes relacionadas involucradas en esas transacciones, | E34: Cumple | H34: En el mes de diciembre 2022 se efectuó la revelación pertinente sobre la relación existente entre la Municipalidad y el CCDR. | Q34: 1
B35: 30 | C35: 9 (b) | D35: (b) una descripción de las transacciones entre partes relacionadas dentro de cada clase general de transacción y una indicación sobre el volumen de las transacciones, | E35: Cumple | Q35: 1
B36: 30 | C36: 9 (c) | D36: (c) un resumen de los plazos y condiciones generales de las transacciones con partes relacionadas, | E36: No aplica | H36: Este requerimiento no le aplica actualmente a la Municipalidad. | Q36: 1
B37: 30 | C37: 9 (d) | D37: (d) las cuantías absolutas o las proporciones, sobre una base apropiada, de las partidas más importantes | E37: No Cumple | F37: Medio | G37: Medio | Q37: 1
B38: 32 | C38: 10 | D38: ¿Las partidas de naturaleza similar se revelan de forma agregada excepto cuando la revelación por separado sea necesaria para suministrar información relevante y fiable para la toma de decisiones y a efectos de la rendición de cuentas.? | E38: No Cumple | F38: Medio | G38: Medio | Q38: 1
B39: 24 | D39: El requisito de revelar las relaciones entre partes relacionadas bajo la NICSP 20 es adicional a los requisitos de divulgación en la NICSP 1 y la NICSP 38, por ejemplo. | E39: No llenar | Q39: 0
B40: Personal Clave | E40: No llenar | Q40: 0
B41: 34 | C41: 11 | D41: La compañía revela la siguiente información | E41: No llenar | Q41: 0
B42: 34 | C42: 11 (a) | D42: (a) remuneración total del personal clave de la gerencia y el número de individuos, determinado como el equivalente en una base de medición de jornada completa, que recibe remuneración dentro de esta categoría, mostrando las clases principales de personal clave de la gerencia e incluyendo una descripción de cada clase. | E42: No aplica | H42: Este requerimiento no le aplica actualmente a la Municipalidad. | Q42: 1
B43: 34 | C43: 11 (b) | D43: (b) el importe total del resto de remuneraciones y compensaciones suministradas al personal clave de la gerencia y sus familiares próximos por la entidad que presenta los estados financieros durante el periodo, mostrando separadamente las importes agregados e suministrados a: | E43: No llenar | Q43: 0
B44: 34 | C44: 11 (bi) | D44: (i) el personal clave de la gerencia; y | E44: No aplica | H44: Este requerimiento no le aplica actualmente a la Municipalidad. | Q44: 1
B45: 34 | C45: 11 (bii) | D45: (ii) los familiares próximos del personal clave de la gerencia | E45: No aplica | H45: Este requerimiento no le aplica actualmente a la Municipalidad. | Q45: 1
B46: 34 | C46: 11 (c) | D46: (c) con respecto a préstamos que generalmente no están a disposición de personas que no pertenezcan al personal clave de la gerencia, y préstamos cuya disponibilidad no es muy conocida por el público en general, para cada individuo del personal clave de la gerencia y cada familiar próximo del personal clave de la gerencia; | E46: No llenar | Q46: 0
B47: 34 | C47: 11 (ci) | D47: (i) el importe de los préstamos anticipados durante el periodo y sus plazos y condiciones; | E47: No aplica | H47: Este requerimiento no le aplica actualmente a la Municipalidad. | Q47: 1
B48: 34 | C48: 11 (cii) | D48: (ii) el importe de los préstamos que han sido devueltos durante el periodo; | E48: No aplica | H48: Este requerimiento no le aplica actualmente a la Municipalidad. | Q48: 1
B49: 34 | C49: 11 (ciii) | D49: (iii) el importe, en la fecha de cierre del estado de situación financiera, de los préstamos y cuentas por cobrar; y | E49: No aplica | H49: Este requerimiento no le aplica actualmente a la Municipalidad. | Q49: 1
B50: 34 | C50: 11 (civ) | D50: (iv) si el individuo no es un directivo o un miembro del órgano de gobierno o del grupo de altos cargos de la entidad, la relación existente entre el individuo y la entidad. | E50: No aplica | H50: Este requerimiento no le aplica actualmente a la Municipalidad. | Q50: 1
B51: Totales | C51: =COUNT(C11:C50) -> 11 | E51: =+COUNTA(E10:E50)-COUNTIF($E$10:$E$50,"=No llenar") -> 30
B52: Preguntas pendientes de respuesta | E52: =+H54-E51 -> 0
F53: Reconocimiento y medición | G53: Revelaciones | H53: Total
E54: Número de ítems | F54: =+SUM(Q11:Q14) -> 4 | G54: =+SUM(Q16:Q50) -> 26 | H54: =+SUM(F54:G54) -> 30
E56: Ítems no aplicables | F56: =COUNTIF($E$11:$E$14,"=No aplica") -> 1 | G56: =(COUNTIF($E$16:$E$50,"=No aplica")) -> 21 | H56: =+SUM(F56:G56) -> 22
E58: ítems aplicables | F58: =+F54-F56 -> 3 | G58: =+G54-G56 -> 5 | H58: =+SUM(F58:G58) -> 8
E60: ítems cumplidos | F60: =COUNTIF($E$11:$E$14,"=Cumple") -> 2 | G60: =COUNTIF($E$16:$E$50,"=Cumple") -> 3 | H60: =+SUM(F60:G60) -> 5
E62: Ítems cumplidos parcialmente | F62: =COUNTIF($E$11:$E$14,"=Cumple Parcialmente") -> 0 | G62: =COUNTIF($E$16:$E$50,"=Cumple Parcialmente") -> 0 | H62: =+SUM(F62:G62) -> 0
E64: Ítems no cumplidos | F64: =COUNTIF($E$11:$E$14,"=No Cumple") -> 1 | G64: =COUNTIF($E$16:$E$50,"=No Cumple") -> 2 | H64: =+SUM(F64:G64) -> 3
E66: Porcentaje de aplicación | F66: =+IFERROR((F60+(F62*0.5))/F58,0) -> 0.6666666667 | G66: =+IFERROR((G60+(G62*0.5))/G58,0) -> 0.6 | H66: =+(F66*60%)+(G66*40%) -> 0.64
F68: Bajo | G68: Medio | H68: Alto
E69: Impacto | F69: =COUNTIF($F$11:$F$50,"Bajo") -> 0 | G69: =COUNTIF($F$11:$F$50,"Medio") -> 3 | H69: =COUNTIF($F$11:$F$50,"Alto") -> 0
F70: Bajo | G70: Medio | H70: Alto
E71: Esfuerzo | F71: =COUNTIF($G$11:$G$50,"Bajo") -> 0 | G71: =COUNTIF($G$11:$G$50,"Medio") -> 3 | H71: =COUNTIF($G$11:$G$50,"Alto") -> 0
B74: En caso de que la entidad marque NO CUMPLE en la norma o en su defecto se acoga a algun transitorio debe responder la siguiente pregunta y completar el plan de acción para cada una de las brechas identificadas:
B75: Responda con SI o NO
B76: La norma posee transitorios | E76: Si
B78: La norma posee Planes de Acción | E78: Si
J79: PLAZO
B80: Número de párrafo | C80: Número pregunta | D80: Acciones para brechas | E80: Actividades de cumplimiento | F80: % de Avance Plan de acción | G80: Requerimientos | H80: Recursos | I80: Responsable | J80: Fecha de Inicio | K80: Fecha para Finalizar | L80: Fecha Actual | M80: Duración meses | N80: Meses Transcurridos | O80: Meses para finalizar actividad
B81: 33 | C81: 3 | D81: Eliminar en los estados financieros consolidados las transacciones que se efectúen entre partes relacionadas. | E81: 2 | F81: 0.3 | G81: Plan General Contabilidad Nacional, Manual Funcional Contable, Normativa emitida por la DCN, Asesoría Externa. | H81: Recurso Humano, Recursos Financieros, Tiempo laboral para realizar la actividad. | I81: Contador Municipal, Con apoyo de: Comisión NICSP. | J81: 2019-01-01 | K81: 2024-12-31 | L81: =NOW() -> 2024-07-26T09:10:52.190 | M81: =DATEDIF(J81,K81,"D")/30 -> 73.03333333 | N81: =DATEDIF(J81,L81,"D")/30 -> 67.76666667 | O81: =+M81-N81 -> 5.266666667
B82: 30 | C82: 9 (d) | D82: Establecer las revelaciones que procede efectuar sobre en relación con la naturaleza de la relación existente entre las partes, la cuantía de las partidas más importantes. | E82: 2 | F82: 0.3 | G82: Plan General Contabilidad Nacional, Manual Funcional Contable, Normativa emitida por la DCN, Asesoría Externa. | H82: Recurso Humano, Recursos Financieros, Tiempo laboral para realizar la actividad. | I82: Contador Municipal, Con apoyo de: Comisión NICSP, Contador del CCDR | J82: 2019-01-01 | K82: 2024-12-31 | L82: =NOW() -> 2024-07-26T09:10:52.190 | M82: =DATEDIF(J82,K82,"D")/30 -> 73.03333333 | N82: =DATEDIF(J82,L82,"D")/30 -> 67.76666667 | O82: =+M82-N82 -> 5.266666667
B83: 32 | C83: 10 | D83: Revelar en las notas a los estados financieros consolidades de forma agregada o por separado las partidas de naturaleza similar, dependiendo de la relevancia y fiablilidad de la información para su uso en la toma de decisiones y para efectos de la rendición de cuentas. | E83: 2 | F83: 0.3 | G83: Plan General Contabilidad Nacional, Manual Funcional Contable, Normativa emitida por la DCN, Asesoría Externa. | H83: Recurso Humano, Recursos Financieros, Tiempo laboral para realizar la actividad. | I83: Contador Municipal, Con apoyo de: Comisión NICSP, Contador del CCDR | J83: 2019-01-01 | K83: 2024-12-31 | L83: 2024-07-26T09:10:52.190 | M83: 73.03333333 | N83: 67.76666667 | O83: 5.266666667
L84: 2024-07-26T09:10:52.190 | M84: 0 | N84: 1516.633333 | O84: -1516.633333
L85: =NOW() -> 2024-07-26T09:10:52.190 | M85: =DATEDIF(J85,K85,"D")/30 -> 0 | N85: =DATEDIF(J85,L85,"D")/30 -> 1516.633333 | O85: =+M85-N85 -> -1516.633333
D88: =+"TOTAL DE BRECHAS (NO CUMPLE-CUMPLE PARCIALMENTE) = "&COUNTA(D81:D85) -> TOTAL DE BRECHAS (NO CUMPLE-CUMPLE PARCIALMENTE) = 3 | E88: =+COUNTA(D81:D85) -> 3
D90: PORCENTAJE PROMEDIO DE AVANCE PLANES ACCIÓN | F90: =+IFERROR(AVERAGE(F81:F85),0) -> 0.3
B92: JERARCA MAXIMO
D93: NOMBRE | E93: FIRMA
B95: DIRECTOR ADMINISTRATIVO Y FINANCIERO
D96: NOMBRE | E96: FIRMA
B98: CONTADOR
D99: NOMBRE | E99: FIRMA

Sheet NICSP 21
B2: NICSP 21
B3: Deterioro del Valor de Activos No Generadores de Efectivo
B4: Objetivo: establecer los procedimientos que una entidad debe aplicar para determinar si un activo no generador de efectivo se ha deteriorado y asegurar que se reconocen las correspondientes pérdidas por deterioro. Esta Norma también especifica cuándo la entidad debe revertir la pérdida por deterioro del valor, así como la información a revelar.
B5: La norma es aplicable en la entidad (Indique SI o No) | E5: Si
B7: Complete cada una de las preguntas según corresponda con "No aplica", "Cumple", "No Cumple" o "Cumple Parcialmente".
B8: Número de párrafo | C8: Número pregunta | D8: Requisito de la Norma | E8: Respuesta | F8: Impacto | G8: Esfuerzo | H8: Observaciones
B10: Reconocimiento y medición | E10: No llenar | Q10: 0
B11: 14 | C11: 1 | D11: ¿La entidad difiere entre los activos generadores de efectivo y los activos no generadores de efectivo? Los Activos generadores de efectivo son activos mantenidos con el objetivo fundamental de generar un rendimiento comercial. A efectos del deterioro de valor, la plusvalía se considera un activo generador de efectivo. | E11: No Cumple | F11: Bajo | G11: Medio | Q11: 1
B12: 14 | C12: 2 | D12: ¿La entidad define el deterioro como una pérdida en los beneficios económicos o potencial de servicio futuros de un activo, además del reconocimiento sistemático de la pérdida de beneficios económicos o potencial de servicio futuros que se lleva a cabo a través de la depreciación? | E12: Cumple | Q12: 1
B13: 14 | C13: 3 | D13: ¿Define la entidad el monto de servicio recuperable como el mayor entre el valor razonable de un activo que no genera efectivo, menos los costos de venta y su valor en uso? | E13: Cumple | Q13: 1
B14: 26 | C14: 4 | D14: ¿La entidad evalúa, en cada fecha de presentación, si existe algún indicio de deterioro del valor de sus activos. Si se detectase algún indicio, la entidad estima el importe de servicio recuperable? | E14: No Cumple | F14: Bajo | G14: Bajo | Q14: 1
B15: 26A | C15: 5 | D15: ¿Independientemente de cualquier indicio de deterioro del valor la entidad también comprueba anualmente si un activo intangible con una vida útil indefinida o si un activo intangible que no está todavía disponible para el uso ha experimentado deterioro del valor comparando su importe en libros con su importe de servicio recuperable?. | E15: No Cumple | F15: Bajo | G15: Bajo | Q15: 1
B16: 27 | C16: 6 | D16: La entidad considera los indicios que indica la norma que pueda haber deteriorado el valor de un activo? | E16: Cumple | Q16: 1
B17: 44-49 | C17: 7 | D17: Para la medición del valor en uso, las políticas contables de la entidad permiten (a) enfoque de costo de reposición depreciado; (b) enfoque de costo de restauración; o (c) enfoque de unidades de servicio? | E17: Cumple | Q17: 1
B18: 52 | C18: 8 | D18: ¿La entidad reconoce una pérdida por deterioro del valor cuando el monto de servicio recuperable de un activo es menor que su valor en libros ? | E18: No aplica | H18: A la fecha este tipo de transacción no se ha presentado en la Municipalidad. | Q18: 1
